Department Family,Entity,Date of Payment,Expense Type,Expense Area,Supplier,Voluntary & Community Sector,SME Class,Sole Trader,D-U-N-S Number,Transaction number,PSPES Level 2,Narrative,Postal Code,Amount in Sterling,Grant?
"Housing, Communities & Local Government",MHCLG,01/06/2020,Agency Staff,Corporate and GOLD Secretariat Cells,ALEXANDER MANN SOLUTIONS LTD,,Large,,,5106260686,Contingent Labour,Interim Staff,EC2N 3AQ,"1,968.96",
"Housing, Communities & Local Government",MHCLG,01/06/2020,Agency Staff,Corporate and GOLD Secretariat Cells,ALEXANDER MANN SOLUTIONS LTD,,Large,,,5106260687,Contingent Labour,Interim Staff,EC2N 3AQ,"2,189.52",
"Housing, Communities & Local Government",MHCLG,01/06/2020,Agency Staff,Corporate and GOLD Secretariat Cells,ALEXANDER MANN SOLUTIONS LTD,,Large,,,5106260688,Contingent Labour,Interim Staff,EC2N 3AQ,"2,771.66",
"Housing, Communities & Local Government",MHCLG,01/06/2020,Agency Staff,Corporate and GOLD Secretariat Cells,ALEXANDER MANN SOLUTIONS LTD,,Large,,,5106260689,Contingent Labour,Interim Staff,EC2N 3AQ,"4,003.56",
"Housing, Communities & Local Government",MHCLG,01/06/2020,Agency Staff,Corporate and GOLD Secretariat Cells,ALEXANDER MANN SOLUTIONS LTD,,Large,,,5106260690,Contingent Labour,Temporary Admintrative Staff,EC2N 3AQ,"2,520.24",
"Housing, Communities & Local Government",MHCLG,01/06/2020,Agency Staff,Corporate and GOLD Secretariat Cells,ALEXANDER MANN SOLUTIONS LTD,,Large,,,5106260693,Contingent Labour,Interim Staff,EC2N 3AQ,"1,940.22",
"Housing, Communities & Local Government",MHCLG,01/06/2020,Agency Staff,Corporate and GOLD Secretariat Cells,ALEXANDER MANN SOLUTIONS LTD,,Large,,,5106260694,Contingent Labour,Interim Staff,EC2N 3AQ,"3,118.80",
"Housing, Communities & Local Government",MHCLG,01/06/2020,Agency Staff,Corporate and GOLD Secretariat Cells,ALEXANDER MANN SOLUTIONS LTD,,Large,,,5106260695,Contingent Labour,Interim Staff,EC2N 3AQ,"2,956.46",
"Housing, Communities & Local Government",MHCLG,01/06/2020,Agency Staff,Economic and Business Response,ALEXANDER MANN SOLUTIONS LTD,,Large,,,5106260683,Contingent Labour,contingent labour,EC2N 3AQ,586.66,
"Housing, Communities & Local Government",MHCLG,01/06/2020,Agency Staff,Economic and Business Response,ALEXANDER MANN SOLUTIONS LTD,,Large,,,5106260705,Contingent Labour,contingent labour,EC2N 3AQ,"1,025.53",
"Housing, Communities & Local Government",MHCLG,01/06/2020,Agency Staff,Emergency Response,ALEXANDER MANN SOLUTIONS LTD,,Large,,,5106260684,Contingent Labour,Interim Staff,EC2N 3AQ,"1,016.28",
"Housing, Communities & Local Government",MHCLG,01/06/2020,Agency Staff,Housing and Vulnerable People Responses,ALEXANDER MANN SOLUTIONS LTD,,Large,,,5106260685,Contingent Labour,Short term policy backfill contractor,EC2N 3AQ,"6,898.42",
"Housing, Communities & Local Government",MHCLG,01/06/2020,Agency Staff,Housing and Vulnerable People Responses,ALEXANDER MANN SOLUTIONS LTD,,Large,,,5106260691,Contingent Labour,Short term policy backfill contractor,EC2N 3AQ,"4,003.56",
"Housing, Communities & Local Government",MHCLG,01/06/2020,Agency Staff,Housing and Vulnerable People Responses,ALEXANDER MANN SOLUTIONS LTD,,Large,,,5106260692,Contingent Labour,Short term policy backfill contractor,EC2N 3AQ,"5,336.60",
"Housing, Communities & Local Government",MHCLG,01/06/2020,Agency Staff,Housing and Vulnerable People Responses,ALEXANDER MANN SOLUTIONS LTD,,Large,,,5106260699,Not Addressable,Short term programme backfill contractor,EC2N 3AQ,"3,233.64",
"Housing, Communities & Local Government",MHCLG,01/06/2020,Agency Staff,Housing and Vulnerable People Responses,ALEXANDER MANN SOLUTIONS LTD,,Large,,,5106260702,Contingent Labour,Short term policy backfill contractor,EC2N 3AQ,"1,323.12",
"Housing, Communities & Local Government",MHCLG,01/06/2020,Agency Staff,Economic and Business Response,ALEXANDER MANN SOLUTIONS LTD,,Large,,,5106260704,Contingent Labour,Specialist Contractor ,EC2N 3AQ,"1,822.20",
"Housing, Communities & Local Government",MHCLG,01/06/2020,BRR Central List Income,Emergency Response,OFFICE OF THE PAYMASTER GENERAL (NN,,,,239956253,2100306254,,Central List Receipts,RH10 1UH,"151,859,725.00",Yes
"Housing, Communities & Local Government",MHCLG,01/06/2020,BRR Estimated Collection Fund Surplus PY,Emergency Response,OFFICE OF THE PAYMASTER GENERAL (NN,,,,239956253,2100306254,,BRR Estimated Collection Fund Surplus,RH10 1UH,"15,041,375.00",
"Housing, Communities & Local Government",MHCLG,01/06/2020,BRR Transitional Receipts Income,Emergency Response,OFFICE OF THE PAYMASTER GENERAL (NN,,,,239956253,2100306254,,Transitional Receipts Income,RH10 1UH,"11,541,520.00",
"Housing, Communities & Local Government",MHCLG,01/06/2020,Cap Grants to Local Authorities (DEL),Corporate and GOLD Secretariat Cells,WATES PROPERTY SERVICES LTD,,Large,,,5106260707,Business Process Outsourcing Services,Specialist Contractors for Grenfell,EN1 3XA,"208,842.83",Yes
"Housing, Communities & Local Government",MHCLG,01/06/2020,Current (non AEF) Grants to Local Authorities,Economic and Business Response,ARUN DC,,,,211217668,3700061633,,Grant payable by the Exchequer,BN17 5LF,"6,987.00",Yes
"Housing, Communities & Local Government",MHCLG,01/06/2020,Current (non AEF) Grants to Local Authorities,Economic and Business Response,BARROW BC,,,,295632913,3700061684,,Grant payable by the Exchequer,LA14 2LD,"7,549.00",Yes
"Housing, Communities & Local Government",MHCLG,01/06/2020,Current (non AEF) Grants to Local Authorities,Economic and Business Response,BATH & NE SOMERSET DC (HSG),,,,214502499,3700061630,,Grant payable by the Exchequer,BA1 5AW,"34,000.00",Yes
"Housing, Communities & Local Government",MHCLG,01/06/2020,Current (non AEF) Grants to Local Authorities,Economic and Business Response,BIRMINGHAM CITY CNCL,,,,213780559,3700061685,,Grant payable by the Exchequer,B2 2AJ,"212,450.00",Yes
"Housing, Communities & Local Government",MHCLG,01/06/2020,Current (non AEF) Grants to Local Authorities,Economic and Business Response,"Bournemouth, Christchurch and Poole",,,,,3700061663,,Grant payable by the Exchequer,BH2 6DY,"80,484.00",Yes
"Housing, Communities & Local Government",MHCLG,01/06/2020,Current (non AEF) Grants to Local Authorities,Economic and Business Response,BRACKNELL FOREST DC,,,,236184867,3700061639,,Grant payable by the Exchequer,RG12 1AQ,"30,591.00",Yes
"Housing, Communities & Local Government",MHCLG,01/06/2020,Current (non AEF) Grants to Local Authorities,Economic and Business Response,BRADFORD MBC,,,,,3700061669,,Grant payable by the Exchequer,BD1 1HX,"42,527.00",Yes
"Housing, Communities & Local Government",MHCLG,01/06/2020,Current (non AEF) Grants to Local Authorities,Economic and Business Response,BRIGHTON & HOVE CITY COUNCIL,,Large,,228455218,3700061662,,Grant payable by the Exchequer,BN1 3JE,"19,046.00",Yes
"Housing, Communities & Local Government",MHCLG,01/06/2020,Current (non AEF) Grants to Local Authorities,Economic and Business Response,BRISTOL CITY COUNCIL (HSG),,,,211103882,3700061671,,Grant payable by the Exchequer,BS3 9FS,"78,680.00",Yes
"Housing, Communities & Local Government",MHCLG,01/06/2020,Current (non AEF) Grants to Local Authorities,Economic and Business Response,BURNLEY BC,,,,229413281,3700061683,,Grant payable by the Exchequer,BB11 1JA,"8,050.00",Yes
"Housing, Communities & Local Government",MHCLG,01/06/2020,Current (non AEF) Grants to Local Authorities,Economic and Business Response,CAMDEN LB,,,,211651836,3700061643,,Grant payable by the Exchequer,WC1H 8NG,"218,288.00",Yes
"Housing, Communities & Local Government",MHCLG,01/06/2020,Current (non AEF) Grants to Local Authorities,Economic and Business Response,CHARNWOOD BC,,,,,3700061675,,Grant payable by the Exchequer,LE11 2TU,"12,747.00",Yes
"Housing, Communities & Local Government",MHCLG,01/06/2020,Current (non AEF) Grants to Local Authorities,Economic and Business Response,CHELTENHAM BC,,,,,3700061667,,Grant payable by the Exchequer,GL50 1PW,"22,900.00",Yes
"Housing, Communities & Local Government",MHCLG,01/06/2020,Current (non AEF) Grants to Local Authorities,Economic and Business Response,CHICHESTER DC,,,,739800998,3700061640,,Grant payable by the Exchequer,PO19 1TY,"17,485.00",Yes
"Housing, Communities & Local Government",MHCLG,01/06/2020,Current (non AEF) Grants to Local Authorities,Economic and Business Response,CITY OF LINCOLN COUNCIL,,,,,3700061646,,Grant payable by the Exchequer,LN1 1DB,"20,653.00",Yes
"Housing, Communities & Local Government",MHCLG,01/06/2020,Current (non AEF) Grants to Local Authorities,Economic and Business Response,CITY OF WAKEFIELD MDC,,,,,3700061642,,Grant payable by the Exchequer,WF1 2QW,"24,308.00",Yes
"Housing, Communities & Local Government",MHCLG,01/06/2020,Current (non AEF) Grants to Local Authorities,Economic and Business Response,DORSET COUNCIL,,,,,3700061635,,Grant payable by the Exchequer,DT1 1UZ,"32,900.00",Yes
"Housing, Communities & Local Government",MHCLG,01/06/2020,Current (non AEF) Grants to Local Authorities,Economic and Business Response,DUDLEY MBC,,,,,3700061672,,Grant payable by the Exchequer,DY1 1HF,"5,650.00",Yes
"Housing, Communities & Local Government",MHCLG,01/06/2020,Current (non AEF) Grants to Local Authorities,Economic and Business Response,EAST HERTFORDSHIRE DC,,,,236176954,3700061668,,Grant payable by the Exchequer,SG13 8EQ,"9,730.00",Yes
"Housing, Communities & Local Government",MHCLG,01/06/2020,Current (non AEF) Grants to Local Authorities,Economic and Business Response,EASTLEIGH BOROUGH COUNCIL,,,,232669911,3700061638,,Grant payable by the Exchequer,SO5 9YN,"9,383.00",Yes
"Housing, Communities & Local Government",MHCLG,01/06/2020,Current (non AEF) Grants to Local Authorities,Economic and Business Response,EDEN DC (HSG),,,,,3700061656,,Grant payable by the Exchequer,CA11 7QF,"8,635.00",Yes
"Housing, Communities & Local Government",MHCLG,01/06/2020,Current (non AEF) Grants to Local Authorities,Economic and Business Response,EXETER CITY COUNCIL,,,,,3700061658,,Grant payable by the Exchequer,EX1 1JW,"29,850.00",Yes
"Housing, Communities & Local Government",MHCLG,01/06/2020,Current (non AEF) Grants to Local Authorities,Economic and Business Response,GREATER MANCHESTER COMBINED AUT,,,,,3700061631,,Grant payable by the Exchequer,M27 8US,"60,467.00",Yes
"Housing, Communities & Local Government",MHCLG,01/06/2020,Current (non AEF) Grants to Local Authorities,Economic and Business Response,HAMBLETON DC (HSG),,,,503481319,3700061679,,Grant payable by the Exchequer,DL6 2UU,"19,986.00",Yes
"Housing, Communities & Local Government",MHCLG,01/06/2020,Current (non AEF) Grants to Local Authorities,Economic and Business Response,HARTLEPOOL BOROUGH COUNCIL,,,,424291797,3700061696,,Grant payable by the Exchequer,TS24 8AY,"2,936.00",Yes
"Housing, Communities & Local Government",MHCLG,01/06/2020,Current (non AEF) Grants to Local Authorities,Economic and Business Response,HAVERING LB,,,,211209770,3700061655,,Grant payable by the Exchequer,RM1 3BB,"43,304.00",Yes
"Housing, Communities & Local Government",MHCLG,01/06/2020,Current (non AEF) Grants to Local Authorities,Economic and Business Response,HILLINGDON LB,,,,211198585,3700061648,,Grant payable by the Exchequer,UB8 1UW,"28,265.00",Yes
"Housing, Communities & Local Government",MHCLG,01/06/2020,Current (non AEF) Grants to Local Authorities,Economic and Business Response,HINCKLEY & BOSWORTH BC,,,,211176144,3700061691,,Grant payable by the Exchequer,LE10 1BZ,"10,072.00",Yes
"Housing, Communities & Local Government",MHCLG,01/06/2020,Current (non AEF) Grants to Local Authorities,Economic and Business Response,HULL CITY COUNCIL,,,,217460984,3700061634,,Grant payable by the Exchequer,HU1 2AA,"19,175.00",Yes
"Housing, Communities & Local Government",MHCLG,01/06/2020,Current (non AEF) Grants to Local Authorities,Economic and Business Response,IPSWICH BC,,,,226861391,3700061690,,Grant payable by the Exchequer,IP1 2DE,"32,450.00",Yes
"Housing, Communities & Local Government",MHCLG,01/06/2020,Current (non AEF) Grants to Local Authorities,Economic and Business Response,KINGS LYNN & WEST NORFOLK BC,,,,236417671,3700061657,,Grant payable by the Exchequer,PE30 1EX,"11,012.00",Yes
"Housing, Communities & Local Government",MHCLG,01/06/2020,Current (non AEF) Grants to Local Authorities,Economic and Business Response,KINGSTON UPON THAMES  (HSG),,,,211379941,3700061697,,Grant payable by the Exchequer,KT1 1EU,"45,710.00",Yes
"Housing, Communities & Local Government",MHCLG,01/06/2020,Current (non AEF) Grants to Local Authorities,Economic and Business Response,KIRKLEES COUNCIL (HSG),,Large,,,3700061647,,Grant payable by the Exchequer,HD1 2YU,"10,770.00",Yes
"Housing, Communities & Local Government",MHCLG,01/06/2020,Current (non AEF) Grants to Local Authorities,Economic and Business Response,LEEDS CITY CNCL,,Micro,,,3700061678,,Grant payable by the Exchequer,LS1 1JF,"130,166.00",Yes
"Housing, Communities & Local Government",MHCLG,01/06/2020,Current (non AEF) Grants to Local Authorities,Economic and Business Response,LIVERPOOL CITY COUNCIL,,,,,3700061652,,Grant payable by the Exchequer,L2 2DH,"67,429.00",Yes
"Housing, Communities & Local Government",MHCLG,01/06/2020,Current (non AEF) Grants to Local Authorities,Economic and Business Response,LONDON BOROUGH OF NEWHAM,,,,211381004,3700061695,,Grant payable by the Exchequer,E16 2QU,"14,827.00",Yes
"Housing, Communities & Local Government",MHCLG,01/06/2020,Current (non AEF) Grants to Local Authorities,Economic and Business Response,LONDON BOROUGH OF REDBRIDGE,,,,211341417,3700061694,,Grant payable by the Exchequer,IG1 1NN,"24,673.00",Yes
"Housing, Communities & Local Government",MHCLG,01/06/2020,Current (non AEF) Grants to Local Authorities,Economic and Business Response,LUTON BC,,,,365112155,3700061688,,Grant payable by the Exchequer,LU1 2BQ,"17,131.00",Yes
"Housing, Communities & Local Government",MHCLG,01/06/2020,Current (non AEF) Grants to Local Authorities,Economic and Business Response,MAIDSTONE BC,,Public Bodies,,293004214,3700061664,,Grant payable by the Exchequer,ME15 6JQ,"21,091.00",Yes
"Housing, Communities & Local Government",MHCLG,01/06/2020,Current (non AEF) Grants to Local Authorities,Economic and Business Response,MOLE VALLEY DC,,,,225385772,3700061632,,Grant payable by the Exchequer,RH4 1SJ,"10,618.00",Yes
"Housing, Communities & Local Government",MHCLG,01/06/2020,Current (non AEF) Grants to Local Authorities,Economic and Business Response,NEWCASTLE UNDER LYME BC,,,,229894373,3700061673,,Grant payable by the Exchequer,ST5 2AG,"16,508.00",Yes
"Housing, Communities & Local Government",MHCLG,01/06/2020,Current (non AEF) Grants to Local Authorities,Economic and Business Response,NORTH HERTS DC (HOUSING) (HSG),,,,233593917,3700061686,,Grant payable by the Exchequer,SG6 3JF,"28,163.00",Yes
"Housing, Communities & Local Government",MHCLG,01/06/2020,Current (non AEF) Grants to Local Authorities,Economic and Business Response,NORWICH CITY CNCL,,,,235981297,3700061644,,Grant payable by the Exchequer,NR2 1NH,"44,470.00",Yes
"Housing, Communities & Local Government",MHCLG,01/06/2020,Current (non AEF) Grants to Local Authorities,Economic and Business Response,NOTTINGHAM CITY COUNCIL,,,,214495447,3700061680,,Grant payable by the Exchequer,NG2 3NG,"62,786.00",Yes
"Housing, Communities & Local Government",MHCLG,01/06/2020,Current (non AEF) Grants to Local Authorities,Economic and Business Response,PLYMOUTH CITY CNCL,,Public Bodies,,236416095,3700061687,,Grant payable by the Exchequer,PL1 2AA,"39,495.00",Yes
"Housing, Communities & Local Government",MHCLG,01/06/2020,Current (non AEF) Grants to Local Authorities,Economic and Business Response,RICHMOND UPON THAMES LB,,,,228868535,3700061674,,Grant payable by the Exchequer,TW1 3BZ,"76,509.00",Yes
"Housing, Communities & Local Government",MHCLG,01/06/2020,Current (non AEF) Grants to Local Authorities,Economic and Business Response,ROCHDALE MBC,,,,,3700061665,,Grant payable by the Exchequer,OL16 1YG,"9,484.00",Yes
"Housing, Communities & Local Government",MHCLG,01/06/2020,Current (non AEF) Grants to Local Authorities,Economic and Business Response,SANDWELL MBC,,,,,3700061666,,Grant payable by the Exchequer,B69 3BS,"34,099.00",Yes
"Housing, Communities & Local Government",MHCLG,01/06/2020,Current (non AEF) Grants to Local Authorities,Economic and Business Response,SEFTON MBC,,Public Bodies,,232936125,3700061641,,Grant payable by the Exchequer,L20 3NJ,"27,393.00",Yes
"Housing, Communities & Local Government",MHCLG,01/06/2020,Current (non AEF) Grants to Local Authorities,Economic and Business Response,SOLIHULL MBC,,,,,3700061661,,Grant payable by the Exchequer,B91 3QR,"28,947.00",Yes
"Housing, Communities & Local Government",MHCLG,01/06/2020,Current (non AEF) Grants to Local Authorities,Economic and Business Response,SOMERSET COUNTY CNCL,,,,211229406,3700061677,,Grant payable by the Exchequer,TA1 4DY,"5,322.00",Yes
"Housing, Communities & Local Government",MHCLG,01/06/2020,Current (non AEF) Grants to Local Authorities,Economic and Business Response,SOUTH LAKELAND DC,,Large,,236445466,3700061670,,Grant payable by the Exchequer,LA9 4DQ,"12,854.00",Yes
"Housing, Communities & Local Government",MHCLG,01/06/2020,Current (non AEF) Grants to Local Authorities,Economic and Business Response,SPELTHORNE BOROUGH COUNCIL,,,,211177332,3700061689,,Grant payable by the Exchequer,TW18 1XB,"15,926.00",Yes
"Housing, Communities & Local Government",MHCLG,01/06/2020,Current (non AEF) Grants to Local Authorities,Economic and Business Response,STOCKPORT MBC,,,,228706248,3700061693,,Grant payable by the Exchequer,SK1 3XE,"23,956.00",Yes
"Housing, Communities & Local Government",MHCLG,01/06/2020,Current (non AEF) Grants to Local Authorities,Economic and Business Response,SURREY HEATH BC,,,,236445441,3700061682,,Grant payable by the Exchequer,GU15 3HD,"10,057.00",Yes
"Housing, Communities & Local Government",MHCLG,01/06/2020,Current (non AEF) Grants to Local Authorities,Economic and Business Response,SUTTON LB,,,,,3700061637,,Grant payable by the Exchequer,SM1 1EA,"28,207.00",Yes
"Housing, Communities & Local Government",MHCLG,01/06/2020,Current (non AEF) Grants to Local Authorities,Economic and Business Response,TEST VALLEY BC,,,,225442698,3700061636,,Grant payable by the Exchequer,SP10 3AJ,"10,305.00",Yes
"Housing, Communities & Local Government",MHCLG,01/06/2020,Current (non AEF) Grants to Local Authorities,Economic and Business Response,TORBAY BC,,,,,3700061692,,Grant payable by the Exchequer,TQ1 3DR,"25,717.00",Yes
"Housing, Communities & Local Government",MHCLG,01/06/2020,Current (non AEF) Grants to Local Authorities,Economic and Business Response,TOWER HAMLETS LB (HSG),,,,231315144,3700061651,,Grant payable by the Exchequer,E14 2BG,"11,354.00",Yes
"Housing, Communities & Local Government",MHCLG,01/06/2020,Current (non AEF) Grants to Local Authorities,Economic and Business Response,TRAFFORD MBC,,,,,3700061698,,Grant payable by the Exchequer,M32 0TH,"15,313.00",Yes
"Housing, Communities & Local Government",MHCLG,01/06/2020,Current (non AEF) Grants to Local Authorities,Economic and Business Response,UTTLESFORD DC,,,,424423242,3700061654,,Grant payable by the Exchequer,CB11 4ER,"4,726.00",Yes
"Housing, Communities & Local Government",MHCLG,01/06/2020,Current (non AEF) Grants to Local Authorities,Economic and Business Response,WALTHAM FOREST LB,,,,,3700061681,,Grant payable by the Exchequer,E17 4JA,"5,325.00",Yes
"Housing, Communities & Local Government",MHCLG,01/06/2020,Current (non AEF) Grants to Local Authorities,Economic and Business Response,WARRINGTON BC,,,,,3700061645,,Grant payable by the Exchequer,WA1 1BN,"12,271.00",Yes
"Housing, Communities & Local Government",MHCLG,01/06/2020,Current (non AEF) Grants to Local Authorities,Economic and Business Response,WELWYN HATFIELD COUNCIL,,,,210360804,3700061659,,Grant payable by the Exchequer,AL8 6AE,"13,758.00",Yes
"Housing, Communities & Local Government",MHCLG,01/06/2020,Current (non AEF) Grants to Local Authorities,Economic and Business Response,WILTSHIRE COUNCIL,,,,211341656,3700061653,,Grant payable by the Exchequer,BA14 4DS,"18,074.00",Yes
"Housing, Communities & Local Government",MHCLG,01/06/2020,Current (non AEF) Grants to Local Authorities,Economic and Business Response,WIRRAL MBC,,,,211222602,3700061676,,Grant payable by the Exchequer,CH41 6BU,"21,844.00",Yes
"Housing, Communities & Local Government",MHCLG,01/06/2020,Current (non AEF) Grants to Local Authorities,Economic and Business Response,WORCESTERSHIRE COUNTY COUNCIL,,,,230359643,3700061650,,Grant payable by the Exchequer,WR5 2NP,"19,475.00",Yes
"Housing, Communities & Local Government",MHCLG,01/06/2020,Current (non AEF) Grants to Local Authorities,Economic and Business Response,WORTHING BC,,,,236429734,3700061660,,Grant payable by the Exchequer,BN11 1HA,"71,399.00",Yes
"Housing, Communities & Local Government",MHCLG,01/06/2020,Current (non AEF) Grants to Local Authorities,Economic and Business Response,WYRE FOREST DISTRICT COUNCIL,,,,,3700061649,,Grant payable by the Exchequer,DY11 7WF,"10,252.00",Yes
"Housing, Communities & Local Government",MHCLG,01/06/2020,ERDF Work in Progress � Capital,Economic and Business Response,SOUTH HOLLAND DISTRICT COUNCIL,,,,,7700006611,,ERDF grant payment,PE11 2XE,"62,751.76",Yes
"Housing, Communities & Local Government",MHCLG,01/06/2020,ERDF Work in Progress � Capital,Economic and Business Response,WORCESTERSHIRE COUNTY COUNCIL,,,,,7700006616,,ERDF grant payment,WR5 2NP,"4,161.86",Yes
"Housing, Communities & Local Government",MHCLG,01/06/2020,ERDF Work in Progress � Resource,Economic and Business Response,BIRMINGHAM SCIENCE PARK ASTON LTD,,Small,,,7700006615,,ERDF grant payment,B7 4BB,"72,262.31",Yes
"Housing, Communities & Local Government",MHCLG,01/06/2020,ERDF Work in Progress � Resource,Economic and Business Response,BRITISH FASHION COUNCIL,,,,,7700006618,,ERDF grant payment,WC2R 1LA,"28,376.40",Yes
"Housing, Communities & Local Government",MHCLG,01/06/2020,ERDF Work in Progress � Resource,Economic and Business Response,DEVON COUNTY COUNCIL,,Large,,,7700006612,,ERDF grant payment,EX2 4QD,"71,315.08",Yes
"Housing, Communities & Local Government",MHCLG,01/06/2020,ERDF Work in Progress � Resource,Economic and Business Response,LIVERPOOL CITY REGION COMB AUTH,,,,,7700006614,,ERDF grant payment,L3 1FZ,"12,385.78",Yes
"Housing, Communities & Local Government",MHCLG,01/06/2020,ERDF Work in Progress � Resource,Economic and Business Response,MEDILINK EAST MIDLANDS,,Small,,,7700006613,,ERDF grant payment,NG1 1GF,"37,035.35",Yes
"Housing, Communities & Local Government",MHCLG,01/06/2020,ERDF Work in Progress � Resource,Economic and Business Response,OXFORDSHIRE LOCAL ENTERPRISE PARTNE,,,,,7700006609,,ERDF grant payment,OX1 1SA,"52,723.79",Yes
"Housing, Communities & Local Government",MHCLG,01/06/2020,ERDF Work in Progress � Resource,Economic and Business Response,SOUTH HOLLAND DISTRICT COUNCIL,,,,,7700006611,,ERDF grant payment,PE11 2XE,"50,966.17",Yes
"Housing, Communities & Local Government",MHCLG,01/06/2020,ERDF Work in Progress � Resource,Economic and Business Response,UNIVERSITY OF THE WEST OF ENGLAND,,Large,,,7700006617,,ERDF grant payment,BS16 1QY,"40,692.95",Yes
"Housing, Communities & Local Government",MHCLG,01/06/2020,ERDF Work in Progress � Resource,Economic and Business Response,WORCESTERSHIRE COUNTY COUNCIL,,,,,7700006610,,ERDF grant payment,WR5 2NP,"15,195.95",Yes
"Housing, Communities & Local Government",MHCLG,01/06/2020,ERDF Work in Progress � Resource,Economic and Business Response,WORCESTERSHIRE COUNTY COUNCIL,,,,,7700006616,,ERDF grant payment,WR5 2NP,"20,395.78",Yes
"Housing, Communities & Local Government",MHCLG,01/06/2020,"Furniture, Fittings and carpets",Corporate and GOLD Secretariat Cells,WAGSTAFF BROS LTD,,,,210307773,5106260719,"Furniture, Fixtures and Fittings",Reasonable Adjustments 20/21,EC1V 4JR,568.54,
"Housing, Communities & Local Government",MHCLG,01/06/2020,IT - Software Maintenance,Corporate and GOLD Secretariat Cells,DATAVID LIMITED,,Micro,,223819458,5106260713,IT Managed / Outsourced Services,E-Claims Technical Support & Development,RG4 6NZ,"24,992.50",
"Housing, Communities & Local Government",MHCLG,01/06/2020,IT - Software Maintenance,Corporate and GOLD Secretariat Cells,DATAVID LIMITED,,Micro,,223819458,5106260714,IT Managed / Outsourced Services,E-Claims Technical Support & Development,RG4 6NZ,"26,625.00",
"Housing, Communities & Local Government",MHCLG,01/06/2020,IT - Software Maintenance,Corporate and GOLD Secretariat Cells,DATAVID LIMITED,,Micro,,223819458,5106260715,IT Managed / Outsourced Services,E-Claims Technical Support & Development,RG4 6NZ,"1,700.00",
"Housing, Communities & Local Government",MHCLG,01/06/2020,IT - Software Maintenance,Economic and Business Response,DEXTROUS WEB LTD,,Micro,,211267270,5106260717,IT Managed / Outsourced Services,"MyTowns website hosting, maintenance and",N1 7NG,900.00,
"Housing, Communities & Local Government",MHCLG,01/06/2020,Printing,Economic and Business Response,APS GROUP,,Micro,,212228001,5106260662,Printing Services,Corporate Publishing   Command & House,SK3 02P,823.34,
"Housing, Communities & Local Government",MHCLG,01/06/2020,Professional services,Housing and Vulnerable People Responses,LOCALITY,,Medium,,347998312,5106260712,Technical Services,N'hood Planning Support Contract (Discounted Market Homes),N1 6DR,"8,514.17",
"Housing, Communities & Local Government",MHCLG,01/06/2020,Publicity,Economic and Business Response,PRESS ASSOCIATION,,Large,,217191704,5106260567,Advertising,Press Association Mediapoint service costs,DN14 7YH,"1,291.67",
"Housing, Communities & Local Government",MHCLG,01/06/2020,Services provided by other Govt Orgs,Housing and Vulnerable People Responses,VALUATION OFFICE AGENCY,,Public Bodies,,215253886,2100306245,Financial,Fair Rent Cases Quarterly Invoice to Valuation Office Agency,W1D 5BU,"432,500.00",Yes
"Housing, Communities & Local Government",MHCLG,01/06/2020,Steady State Service Provision,Corporate and GOLD Secretariat Cells,PLOWMAN CRAVEN LIMITED,,Medium,,,5106260696,Business Process Outsourcing Services,Grenfell Tower Surveying services,AL5 5EQ,"82,132.92",
"Housing, Communities & Local Government",MHCLG,01/06/2020,Steady State Service Provision,Housing and Vulnerable People Responses,GROUNDWORK UK,Yes,,,739193758,5106260290,Business Process Outsourcing Services,Admin Costs for Neighbourhood Planning Support Contract,B1 2RR,"6,522.00",
"Housing, Communities & Local Government",MHCLG,01/06/2020,Training,Economic and Business Response,WISE OWL BUSINESS SOLUTIONS LTD,,Micro,,738553754,5106260660,Development and Training,Civil Service Training,SK13 2AA,"1,050.00",
"Housing, Communities & Local Government",MHCLG,02/06/2020,Agency Staff,Corporate and GOLD Secretariat Cells,ALEXANDER MANN SOLUTIONS LTD,,Large,,,5106260744,Contingent Labour,WC Contingent Labour,EC2N 3AQ,"2,520.54",
"Housing, Communities & Local Government",MHCLG,02/06/2020,ERDF Work in Progress � Capital,Economic and Business Response,COUNCIL OF THE ISLES OF SCILLY,,Large,,,7700006629,,ERDF grant payment,TR21 0LW,"11,490.28",Yes
"Housing, Communities & Local Government",MHCLG,02/06/2020,ERDF Work in Progress � Capital,Economic and Business Response,GLOUCESTER CITY COUNCIL,,,,,7700006627,,ERDF grant payment,GL1 2EQ,"136,526.05",Yes
"Housing, Communities & Local Government",MHCLG,02/06/2020,ERDF Work in Progress � Capital,Economic and Business Response,ROTHERHAM METROPOLITAN BC,,,,,7700006632,,ERDF grant payment,S60 1AE,"109,055.16",Yes
"Housing, Communities & Local Government",MHCLG,02/06/2020,ERDF Work in Progress � Resource,Economic and Business Response, WEST YORKSHIRE COMBINED AUTHORITY,,Large,,,7700006623,,ERDF grant payment,LS1 2DE,"127,892.86",Yes
"Housing, Communities & Local Government",MHCLG,02/06/2020,ERDF Work in Progress � Resource,Economic and Business Response, WEST YORKSHIRE COMBINED AUTHORITY,,Large,,,7700006624,,ERDF grant offset,LS1 2DE,-827.58,Yes
"Housing, Communities & Local Government",MHCLG,02/06/2020,ERDF Work in Progress � Resource,Economic and Business Response,COMMUNITY MEDIA SOLUTIONS LTD,,Micro,,,7700006619,,ERDF grant payment,S1 2BX,"90,887.59",Yes
"Housing, Communities & Local Government",MHCLG,02/06/2020,ERDF Work in Progress � Resource,Economic and Business Response,COUNCIL OF THE ISLES OF SCILLY,,Large,,,7700006629,,ERDF grant payment,TR21 0LW,"21,632.41",Yes
"Housing, Communities & Local Government",MHCLG,02/06/2020,ERDF Work in Progress � Resource,Economic and Business Response,GLOUCESTER CITY COUNCIL,,,,,7700006627,,ERDF grant payment,GL1 2EQ,"28,502.18",Yes
"Housing, Communities & Local Government",MHCLG,02/06/2020,ERDF Work in Progress � Resource,Economic and Business Response,NORTHUMBERLAND BUSINESS SERVICE LTD,,Small,,,7700006621,,ERDF grant payment,NE63 8AP,"66,206.90",Yes
"Housing, Communities & Local Government",MHCLG,02/06/2020,ERDF Work in Progress � Resource,Economic and Business Response,NORTHUMBERLAND BUSINESS SERVICE LTD,,Small,,,7700006631,,ERDF grant payment,NE63 8AP,"53,027.63",Yes
"Housing, Communities & Local Government",MHCLG,02/06/2020,ERDF Work in Progress � Resource,Economic and Business Response,NTH EAST BUSINESS INNOVATION CENTRE,,Medium,,,7700006626,,ERDF grant payment,SR5 2TA,"64,156.01",Yes
"Housing, Communities & Local Government",MHCLG,02/06/2020,ERDF Work in Progress � Resource,Economic and Business Response,ROTHERHAM METROPOLITAN BC,,,,,7700006632,,ERDF grant payment,S60 1AE,"4,816.55",Yes
"Housing, Communities & Local Government",MHCLG,02/06/2020,ERDF Work in Progress � Resource,Economic and Business Response,UNIVERSITY OF CENTRAL LANCASHIRE,,Large,,,7700006628,,ERDF grant payment,PR7 7DL,"88,412.13",Yes
"Housing, Communities & Local Government",MHCLG,02/06/2020,ERDF Work in Progress � Resource,Economic and Business Response,UNIVERSITY OF THE WEST OF ENGLAND,,Large,,,7700006625,,ERDF grant payment,BS16 1QY,"78,760.39",Yes
"Housing, Communities & Local Government",MHCLG,02/06/2020,ERDF Work in Progress � Resource,Economic and Business Response,UNIVERSITY OF THE WEST OF ENGLAND,,Large,,,7700006630,,ERDF grant payment,BS16 1QY,"13,317.02",Yes
"Housing, Communities & Local Government",MHCLG,02/06/2020,ERDF Work in Progress � Resource,Economic and Business Response,WAKEFIELD COUNCIL,,,,,7700006620,,ERDF grant payment,WF1 2EB,"43,728.75",Yes
"Housing, Communities & Local Government",MHCLG,02/06/2020,ERDF Work in Progress � Resource,Economic and Business Response,WAKEFIELD COUNCIL,,,,,7700006622,,ERDF grant offset,WF1 2EB,"-1,744.87",Yes
"Housing, Communities & Local Government",MHCLG,02/06/2020,IT - Service Contracts,Corporate and GOLD Secretariat Cells,WSP UK LTD,,Large,,,5106260730,IT Managed / Outsourced Services,Employment Instructions,WC2A 1AF,"9,377.15",
"Housing, Communities & Local Government",MHCLG,02/06/2020,IT - Service Contracts,Corporate and GOLD Secretariat Cells,X M A LTD,,Large,,298484148,5106260751,IT Managed / Outsourced Services,Hardware Supp Services 2019/20,NG11 7EP,437.20,
"Housing, Communities & Local Government",MHCLG,02/06/2020,IT - Service Contracts,Corporate and GOLD Secretariat Cells,X M A LTD,,Large,,298484148,5106260752,IT Managed / Outsourced Services,Hardware Supp Services 2019/20,NG11 7EP,578.80,
"Housing, Communities & Local Government",MHCLG,02/06/2020,IT - Service Contracts,Corporate and GOLD Secretariat Cells,X M A LTD,,Large,,298484148,5106260753,IT Managed / Outsourced Services,Hardware Supp Services 2019/20,NG11 7EP,437.20,
"Housing, Communities & Local Government",MHCLG,02/06/2020,IT - Service Contracts,Corporate and GOLD Secretariat Cells,X M A LTD,,Large,,298484148,5106260754,IT Managed / Outsourced Services,Hardware Supp Services 2019/20,NG11 7EP,427.20,
"Housing, Communities & Local Government",MHCLG,02/06/2020,IT - Service Contracts,Economic and Business Response,STORM ID LTD,,Medium,,,5106260658,IT Managed / Outsourced Services,High Streets Task Force Website,EH7 6BG,"7,407.60",
"Housing, Communities & Local Government",MHCLG,02/06/2020,Management Consultancy,Emergency Response,KPMG,,Large,,232252833,5106260724,Consultancy,Shielding PMO,WD17 1DE,"30,156.54",
"Housing, Communities & Local Government",MHCLG,02/06/2020,Management Consultancy,Emergency Response,KPMG,,Large,,232252833,5106260733,Consultancy,Shielding PMO,WD17 1DE,"597,068.72",
"Housing, Communities & Local Government",MHCLG,02/06/2020,Management Consultancy,Housing and Vulnerable People Responses,CABINET OFFICE,,Public Bodies,,232159186,5106260743,Consultancy,Planning Consultancy Services,FY5 3TA,"81,981.31",
"Housing, Communities & Local Government",MHCLG,02/06/2020,Recruitment,Corporate and GOLD Secretariat Cells,CABINET OFFICE,,Public Bodies,,232159186,5106260745,Business Process Outsourcing Services,SCS recruitment - psychometric assessmen,FY5 3TA,"7,292.10",
"Housing, Communities & Local Government",MHCLG,02/06/2020,Steady State Service Provision,Corporate and GOLD Secretariat Cells,CABINET OFFICE,,Public Bodies,,232159186,5106260747,Business Process Outsourcing Services,Employment Costs,FY5 3TA,"314,967.41",
"Housing, Communities & Local Government",MHCLG,02/06/2020,Steady State Service Provision,Corporate and GOLD Secretariat Cells,CABINET OFFICE,,Public Bodies,,232159186,5106260748,Business Process Outsourcing Services,Recruitment and ADC Costs,FY5 3TA,"17,080.00",
"Housing, Communities & Local Government",MHCLG,02/06/2020,Steady State Service Provision,Corporate and GOLD Secretariat Cells,H M TREASURY,,Public Bodies,,233590996,5106260596,Business Process Outsourcing Services,GIAA counter-fraud activity 18-19,NR7 0HS,"5,397.73",
"Housing, Communities & Local Government",MHCLG,02/06/2020,Training,Corporate and GOLD Secretariat Cells,Professional Development Group TA G,,Small,,223808651,5106260746,Development and Training,Civil Service Training,WC2H 9JQ,330.65,
"Housing, Communities & Local Government",MHCLG,02/06/2020,Training,Corporate and GOLD Secretariat Cells,TCC LTD,,Micro,,,5106260723,Development and Training,Civil Service Training,CW11 1FY,890.00,
"Housing, Communities & Local Government",MHCLG,02/06/2020,Utilisation of Unfunded Pension Scheme,Corporate and GOLD Secretariat Cells,LONDON PENSIONS FUND AUTHORITY,,Public Bodies,,236915880,5106260725,Financial,Pension fund management,SE1 0LL,403.89,
"Housing, Communities & Local Government",MHCLG,02/06/2020,Web Services,Economic and Business Response,DEXTROUS WEB LTD,,Micro,,211267270,5106260749,ICT Services,Hosting and support of Own Your Home web,N1 7NG,"1,746.60",
"Housing, Communities & Local Government",MHCLG,03/06/2020,ERDF Work in Progress � Resource,Economic and Business Response,INNOVATION AGENCY AHSN,,,,,7700006635,,ERDF grant payment,PR5 6XT,"64,932.23",Yes
"Housing, Communities & Local Government",MHCLG,03/06/2020,ERDF Work in Progress � Resource,Economic and Business Response,KING'S COLLEGE LONDON,,,,,7700006638,,ERDF grant payment,WC2R 2LS,"19,243.72",Yes
"Housing, Communities & Local Government",MHCLG,03/06/2020,ERDF Work in Progress � Resource,Economic and Business Response,LIVERPOOL CITY REGION COMB AUTH,,,,,7700006633,,ERDF grant payment,L3 1FZ,"1,682.00",Yes
"Housing, Communities & Local Government",MHCLG,03/06/2020,ERDF Work in Progress � Resource,Economic and Business Response,LIVERPOOL CITY REGION COMB AUTH,,,,,7700006636,,ERDF grant payment,L3 1FZ,"2,129.42",Yes
"Housing, Communities & Local Government",MHCLG,03/06/2020,ERDF Work in Progress � Resource,Economic and Business Response,NORTH OF TYNE COMB AUTHORITY,,,,,7700006634,,ERDF grant payment,NE27 0QQ,"23,376.13",Yes
"Housing, Communities & Local Government",MHCLG,03/06/2020,ERDF Work in Progress � Resource,Economic and Business Response,NOTTINGHAM TRENT UNIVERSITY,,Large,,,7700006637,,ERDF grant payment,NG1 4FQ,"104,376.93",Yes
"Housing, Communities & Local Government",MHCLG,03/06/2020,"IT - PC, Network & Hardware",Corporate and GOLD Secretariat Cells,X M A LTD,,Large,,298484148,5106260808,ICT Hardware,Cables,NG11 7EP,297.12,
"Housing, Communities & Local Government",MHCLG,03/06/2020,"IT - PC, Network & Hardware",Corporate and GOLD Secretariat Cells,X M A LTD,,Large,,298484148,5106260808,ICT Hardware,Headsets,NG11 7EP,"2,852.40",
"Housing, Communities & Local Government",MHCLG,03/06/2020,"IT - PC, Network & Hardware",Corporate and GOLD Secretariat Cells,X M A LTD,,Large,,298484148,5106260808,ICT Hardware,Keyboard/ Mice,NG11 7EP,452.40,
"Housing, Communities & Local Government",MHCLG,03/06/2020,"IT - PC, Network & Hardware",Corporate and GOLD Secretariat Cells,X M A LTD,,Large,,298484148,5106260808,ICT Hardware,Power Supplies,NG11 7EP,288.96,
"Housing, Communities & Local Government",MHCLG,03/06/2020,IT - Service Contracts,Corporate and GOLD Secretariat Cells,IAME LTD,,Small,,,5106260764,IT Managed / Outsourced Services,Identity Management Integration,N14 6LD,"7,287.50",
"Housing, Communities & Local Government",MHCLG,03/06/2020,IT - Service Contracts,Corporate and GOLD Secretariat Cells,X M A LTD,,Large,,298484148,5106260807,IT Managed / Outsourced Services,Hardware Supp Services 2019/20,NG11 7EP,"14,341.45",
"Housing, Communities & Local Government",MHCLG,03/06/2020,IT - Service Contracts,Economic and Business Response,STORM ID LTD,,Medium,,,5106260800,IT Managed / Outsourced Services,High Streets Task Force Website,EH7 6BG,435.00,
"Housing, Communities & Local Government",MHCLG,03/06/2020,IT Consultancy,Emergency Response,DEXTROUS WEB LTD,,Micro,,211267270,5106260490,Consultancy,Local Plans Data - Alpha Phase,N1 7NG,"33,060.00",
"Housing, Communities & Local Government",MHCLG,03/06/2020,IT Consultancy,Emergency Response,DEXTROUS WEB LTD,,Micro,,211267270,5106260491,Consultancy,Local Plans Data - Alpha Phase,N1 7NG,"23,940.00",
"Housing, Communities & Local Government",MHCLG,03/06/2020,IT Consultancy,Emergency Response,DEXTROUS WEB LTD,,Micro,,211267270,5106260614,Consultancy,Local Plans Data - Alpha Phase,N1 7NG,"28,500.00",
"Housing, Communities & Local Government",MHCLG,03/06/2020,Management Consultancy,Housing and Vulnerable People Responses,I F F RESEARCH LTD,,,,211574041,5106260768,Research,Designing of HIF Evaluation,N1 6DD,"19,890.63",
"Housing, Communities & Local Government",MHCLG,03/06/2020,Professional services,Corporate and GOLD Secretariat Cells,ADJAYE ASSOCIATES LTD,,Large,,,5106260801,Financial,Design of Holocaust Memorial,NW1 5QT,"7,620.00",
"Housing, Communities & Local Government",MHCLG,03/06/2020,Professional services,Corporate and GOLD Secretariat Cells,ATKINS LTD,,Large,,293650339,5106260517,Financial,Support to Holocaust Memorial,KT18 5BW,"15,146.40",
"Housing, Communities & Local Government",MHCLG,03/06/2020,Professional services,Corporate and GOLD Secretariat Cells,TURNER&TOWNSEND PROJECT MAN LTD,,Large,,,5106260817,Financial,Employment Instructions,LS18 4GH,"10,061.54",
"Housing, Communities & Local Government",MHCLG,03/06/2020,Publications,Economic and Business Response,PRESS DATA LTD,,Small,,,5106260766,Learning and Development Materials,Media Monitoring - Press Cuttings,SE1 1JA,"1,316.88",
"Housing, Communities & Local Government",MHCLG,03/06/2020,Steady State Service Provision,Corporate and GOLD Secretariat Cells,CGI IT UK LIMITED,,Large,,239881618,5106260797,Business Process Outsourcing Services,Payroll Services and Licences 2020-21,EC3M 3BY,500.03,
"Housing, Communities & Local Government",MHCLG,03/06/2020,Steady State Service Provision,Corporate and GOLD Secretariat Cells,CGI IT UK LIMITED,,Large,,239881618,5106260798,Business Process Outsourcing Services,Payroll Services and Licences 2020-21,EC3M 3BY,"13,116.37",
"Housing, Communities & Local Government",MHCLG,03/06/2020,Steady State Service Provision,Corporate and GOLD Secretariat Cells,CGI IT UK LIMITED,,Large,,239881618,5106260804,Business Process Outsourcing Services,Payroll Services and Licences 2020-21,EC3M 3BY,339.97,
"Housing, Communities & Local Government",MHCLG,04/06/2020,Current (non AEF) Grants to Local Authorities,Economic and Business Response,WESTMINSTER CITY CNCL,,,,229845706,3700061793,,Grant payable by the Exchequer,SW1E 6QP,"1,047,264.00",Yes
"Housing, Communities & Local Government",MHCLG,04/06/2020,Current Grants to Non Profit Bodies,Emergency Response,TWO RIDINGS COMMUNITY FOUNDATION,Yes,,,,2100306297,,"Match Funding   Richmondshire floods, July 2019",YO30 4XT,"248,856.53",Yes
"Housing, Communities & Local Government",MHCLG,04/06/2020,ERDF Work in Progress � Capital,Economic and Business Response,DUDLEY METROPOLITAN BC,,,,,7700006647,,ERDF grant payment,DY1 1HF,"301,850.23",Yes
"Housing, Communities & Local Government",MHCLG,04/06/2020,ERDF Work in Progress � Capital,Economic and Business Response,HALTON BOROUGH COUNCIL,,Large,,,7700006643,,ERDF grant payment,WA8 7QF,"194,925.71",Yes
"Housing, Communities & Local Government",MHCLG,04/06/2020,ERDF Work in Progress � Capital,Economic and Business Response,LANCASTER CITY  COUNCIL,,,,,7700006642,,ERDF grant payment,LA1 1PJ,"540,077.31",Yes
"Housing, Communities & Local Government",MHCLG,04/06/2020,ERDF Work in Progress � Capital,Economic and Business Response,WESTCOUNTRY RIVERS TRUST,,,,,7700006641,,ERDF grant payment,PL17 8PH,"21,663.69",Yes
"Housing, Communities & Local Government",MHCLG,04/06/2020,ERDF Work in Progress � Resource,Economic and Business Response,ASTON UNIVERSITY,,Large,,227749751,7700006646,,ERDF grant payment,B4 7ET,"64,883.83",Yes
"Housing, Communities & Local Government",MHCLG,04/06/2020,ERDF Work in Progress � Resource,Economic and Business Response,BIRMINGHAM CITY COUNCIL,,,,,7700006649,,ERDF grant payment,B2 2AJ,"54,145.36",Yes
"Housing, Communities & Local Government",MHCLG,04/06/2020,ERDF Work in Progress � Resource,Economic and Business Response,DUDLEY METROPOLITAN BC,,,,,7700006647,,ERDF grant payment,DY1 1HF,"6,891.91",Yes
"Housing, Communities & Local Government",MHCLG,04/06/2020,ERDF Work in Progress � Resource,Economic and Business Response,HALTON BOROUGH COUNCIL,,Large,,,7700006643,,ERDF grant payment,WA8 7QF,"4,050.30",Yes
"Housing, Communities & Local Government",MHCLG,04/06/2020,ERDF Work in Progress � Resource,Economic and Business Response,LANCASTER CITY  COUNCIL,,,,,7700006642,,ERDF grant payment,LA1 1PJ,"18,626.29",Yes
"Housing, Communities & Local Government",MHCLG,04/06/2020,ERDF Work in Progress � Resource,Economic and Business Response,LIVERPOOL CITY REGION COMB AUTH,,,,,7700006640,,ERDF grant payment,L3 1FZ,"175,858.61",Yes
"Housing, Communities & Local Government",MHCLG,04/06/2020,ERDF Work in Progress � Resource,Economic and Business Response,MANCHESTER METROPOLITAN UNIVERSITY,,,,,7700006648,,ERDF grant payment,M15 6BH,"24,841.67",Yes
"Housing, Communities & Local Government",MHCLG,04/06/2020,ERDF Work in Progress � Resource,Economic and Business Response,NGAGE SOLUTIONS LTD,,Small,,,7700006639,,ERDF grant payment,HP14 4BF,"106,635.05",Yes
"Housing, Communities & Local Government",MHCLG,04/06/2020,ERDF Work in Progress � Resource,Economic and Business Response,UNIVERSITY OF CENTRAL LANCASHIRE,,Large,,,7700006645,,ERDF grant payment,PR7 7DL,"75,062.55",Yes
"Housing, Communities & Local Government",MHCLG,04/06/2020,ERDF Work in Progress � Resource,Economic and Business Response,UNIVERSITY OF KEELE,,,,,7700006644,,ERDF grant payment,ST5 5BG,"44,756.90",Yes
"Housing, Communities & Local Government",MHCLG,04/06/2020,ERDF Work in Progress � Resource,Economic and Business Response,WESTCOUNTRY RIVERS TRUST,,,,,7700006641,,ERDF grant payment,PL17 8PH,"55,881.74",Yes
"Housing, Communities & Local Government",MHCLG,04/06/2020,"IT - PC, Network & Hardware",Corporate and GOLD Secretariat Cells,21st CENTURY OFFICE CONCEPTS LTD,,Small,,,5106260489,ICT Hardware,CV-19 Home Working Requirements,SG12 0SS,"15,253.20",
"Housing, Communities & Local Government",MHCLG,04/06/2020,"IT - PC, Network & Hardware",Corporate and GOLD Secretariat Cells,21st CENTURY OFFICE CONCEPTS LTD,,Small,,,5106260726,ICT Hardware,CV-19 Home Working Requirements,SG12 0SS,"10,902.12",
"Housing, Communities & Local Government",MHCLG,04/06/2020,"IT - PC, Network & Hardware",Corporate and GOLD Secretariat Cells,21st CENTURY OFFICE CONCEPTS LTD,,Small,,,5106260844,ICT Hardware,CV-19 Home Working Requirements,SG12 0SS,"18,198.00",
"Housing, Communities & Local Government",MHCLG,04/06/2020,IT - Service Contracts,Economic and Business Response,ARCUS GLOBAL LIMITED,,Medium,,,5106260833,IT Managed / Outsourced Services,Data Analytics Platform,CB4 2HY,"6,570.00",
"Housing, Communities & Local Government",MHCLG,04/06/2020,IT - Software Maintenance,Corporate and GOLD Secretariat Cells,INTERQUEST GROUP UK LIMITED,,Large,,423935241,5106260854,IT Managed / Outsourced Services,SAP Project Manager,EC4R 0AN,"13,256.46",
"Housing, Communities & Local Government",MHCLG,04/06/2020,IT - Software Maintenance,Corporate and GOLD Secretariat Cells,KAIZEN ASSOCIATES LTD,,Micro,,217482430,5106260849,IT Managed / Outsourced Services,Project Support Costs,SE1 6SW,"17,892.12",
"Housing, Communities & Local Government",MHCLG,04/06/2020,IT - Software Maintenance,Corporate and GOLD Secretariat Cells,KAIZEN ASSOCIATES LTD,,Micro,,217482430,5106260849,IT Managed / Outsourced Services,Project Support Costs,SE1 6SW,169.32,
"Housing, Communities & Local Government",MHCLG,04/06/2020,Legal Fees,Corporate and GOLD Secretariat Cells,GOVERNMENT LEGAL DEPARTMENT,,Public Bodies,,215580680,5106260857,IT Managed / Outsourced Services,Legal Advice,SW1H 9GL,"103,000.00",
"Housing, Communities & Local Government",MHCLG,04/06/2020,Legal Fees,Corporate and GOLD Secretariat Cells,LANDMARK CHAMBERS,,Medium,,732521732,5106260847,Legal,Legal Advice,EC4A 2HG,300.00,
"Housing, Communities & Local Government",MHCLG,04/06/2020,Legal Fees,Corporate and GOLD Secretariat Cells,LANDMARK CHAMBERS,,Medium,,732521732,5106260859,Legal,Legal Advice,EC4A 2HG,450.00,
"Housing, Communities & Local Government",MHCLG,04/06/2020,Management Consultancy,Housing and Vulnerable People Responses,VERACITY OSI UK LTD,,Medium,,,5106260839,Consultancy,Building Safety Programme � Project Management Services,EC3R 8LJ,"89,640.00",
"Housing, Communities & Local Government",MHCLG,04/06/2020,Physical Storage,Corporate and GOLD Secretariat Cells,IRON MOUNTAIN (UK) LIMITED,,Large,,501338354,5106260831,Warehousing and Storage,off-site tapes 2018-2019,EH54 7DF,552.78,
"Housing, Communities & Local Government",MHCLG,04/06/2020,Steady State Service Provision,Corporate and GOLD Secretariat Cells,ALLPAY LIMITED,,Medium,,738359918,5106260823,Business Process Outsourcing Services,BACS processing service,HR1 3SE,757.87,
"Housing, Communities & Local Government",MHCLG,05/06/2020,Agency Staff,Corporate and GOLD Secretariat Cells,GREEN PARK INTERIM & EXECUTIVE,,Small,,348738829,5106260735,Business Process Outsourcing Services,UKHMF Curator Salary,W1K 4EG,"20,944.20",
"Housing, Communities & Local Government",MHCLG,05/06/2020,Current Grants to Non Profit Bodies,Emergency Response,FAITH MATTERS,Yes,Small,,218968621,2100306302,,Tell MAMA Outreach Project,SW7 1EE,"210,250.00",Yes
"Housing, Communities & Local Government",MHCLG,05/06/2020,Current Grants to Non Profit Bodies,Emergency Response,UMMA HELP,,,,,2100306314,,Project about genocide and intolerance,B16 9NX,"100,000.00",Yes
"Housing, Communities & Local Government",MHCLG,05/06/2020,Current Grants to Non Profit Bodies,Housing and Vulnerable People Responses,HOMELESS LINK,,Medium,,,2100306270,,COVID-19 Homelessness Response Fund (VCSE Fund),EC3N 1BJ,"6,000,000.00",Yes
"Housing, Communities & Local Government",MHCLG,05/06/2020,ERDF Work in Progress � Capital,Economic and Business Response,BIRMINGHAM CITY UNIVERSITY,,Large,,,7700006664,,ERDF grant payment,B5 5JU,"3,125.92",Yes
"Housing, Communities & Local Government",MHCLG,05/06/2020,ERDF Work in Progress � Capital,Economic and Business Response,LAKE DISTRICT NATIONAL PARK AUTH (N,,,,,7700006658,,ERDF grant payment,LA9 7RL,"515,373.36",Yes
"Housing, Communities & Local Government",MHCLG,05/06/2020,ERDF Work in Progress � Capital,Economic and Business Response,SHEFFIELD HALLAM UNIVERSITY,,,,,7700006650,,ERDF grant payment,S1 1WB,"278,149.13",Yes
"Housing, Communities & Local Government",MHCLG,05/06/2020,ERDF Work in Progress � Capital,Economic and Business Response,UNIVERSITY OF YORK,,,,,7700006668,,ERDF grant payment,YO10 5DD,"70,052.08",Yes
"Housing, Communities & Local Government",MHCLG,05/06/2020,ERDF Work in Progress � Resource,Economic and Business Response,BIRMINGHAM CITY UNIVERSITY,,Large,,,7700006664,,ERDF grant payment,B5 5JU,"33,978.78",Yes
"Housing, Communities & Local Government",MHCLG,05/06/2020,ERDF Work in Progress � Resource,Economic and Business Response,CORNWALL COLLEGE,,,,,7700006662,,ERDF grant payment,PL25 4DJ,"57,793.22",Yes
"Housing, Communities & Local Government",MHCLG,05/06/2020,ERDF Work in Progress � Resource,Economic and Business Response,COVENTRY UNIVERSITY ENTERPRISES LTD,,,,,7700006659,,ERDF grant payment,CV1 2TT,"79,161.26",Yes
"Housing, Communities & Local Government",MHCLG,05/06/2020,ERDF Work in Progress � Resource,Economic and Business Response,DURHAM COUNTY COUNCIL,,,,,7700006653,,ERDF grant payment,DH1 5UF,"78,294.74",Yes
"Housing, Communities & Local Government",MHCLG,05/06/2020,ERDF Work in Progress � Resource,Economic and Business Response,DURHAM UNIVERSITY,,Large,,,7700006652,,ERDF grant payment,DH1 3LE,"30,484.71",Yes
"Housing, Communities & Local Government",MHCLG,05/06/2020,ERDF Work in Progress � Resource,Economic and Business Response,LAKE DISTRICT NATIONAL PARK AUTH (N,,,,,7700006658,,ERDF grant payment,LA9 7RL,"24,981.18",Yes
"Housing, Communities & Local Government",MHCLG,05/06/2020,ERDF Work in Progress � Resource,Economic and Business Response,LANCASHIRE COUNTY COUNCIL,,Large,,,7700006661,,ERDF grant payment,PR1 8XJ,"244,812.19",Yes
"Housing, Communities & Local Government",MHCLG,05/06/2020,ERDF Work in Progress � Resource,Economic and Business Response,LIVERPOOL CITY REGION COMB AUTH,,,,,7700006660,,ERDF grant payment,L3 1FZ,"237,750.51",Yes
"Housing, Communities & Local Government",MHCLG,05/06/2020,ERDF Work in Progress � Resource,Economic and Business Response,LIVERPOOL UNIVERSITY,,,,,7700006651,,ERDF grant payment,L69 3BX,"123,935.13",Yes
"Housing, Communities & Local Government",MHCLG,05/06/2020,ERDF Work in Progress � Resource,Economic and Business Response,MANCHESTER METROPOLITAN UNIVERSITY,,,,,7700006654,,ERDF grant payment,M15 6BH,"33,703.32",Yes
"Housing, Communities & Local Government",MHCLG,05/06/2020,ERDF Work in Progress � Resource,Economic and Business Response,NEWCASTLE CITY COUNCIL,,,,,7700006667,,ERDF grant payment,NE1 8QH,"35,929.20",Yes
"Housing, Communities & Local Government",MHCLG,05/06/2020,ERDF Work in Progress � Resource,Economic and Business Response,NORTH EAST WORLDWIDE LTD,,Small,,,7700006656,,ERDF grant payment,DH1 5TS,"61,277.38",Yes
"Housing, Communities & Local Government",MHCLG,05/06/2020,ERDF Work in Progress � Resource,Economic and Business Response,UNIVERSITY OF EXETER,,,,,7700006655,,ERDF grant payment,EX4 4QJ,"259,713.88",Yes
"Housing, Communities & Local Government",MHCLG,05/06/2020,ERDF Work in Progress � Resource,Economic and Business Response,UNIVERSITY OF EXETER,,,,,7700006666,,ERDF grant offset,EX4 4QJ,"-10,256.02",Yes
"Housing, Communities & Local Government",MHCLG,05/06/2020,ERDF Work in Progress � Resource,Economic and Business Response,UNIVERSITY OF YORK,,,,,7700006668,,ERDF grant payment,YO10 5DD,"59,724.54",Yes
"Housing, Communities & Local Government",MHCLG,05/06/2020,ERDF Work in Progress � Resource,Economic and Business Response,UNIVERSITY SHEFFIELD,,Large,,,7700006663,,ERDF grant payment,S10 2TN,"217,022.29",Yes
"Housing, Communities & Local Government",MHCLG,05/06/2020,ERDF Work in Progress � Resource,Economic and Business Response,WORCESTERSHIRE COUNTY COUNCIL,,,,,7700006665,,ERDF grant payment,WR5 2NP,"5,838.96",Yes
"Housing, Communities & Local Government",MHCLG,05/06/2020,EXP � PURCHASE OF GOODS /SERVICES R & D,Economic and Business Response,RICS,,Large,,423826098,5106260885,Research,Subscription charges,CV4 8JE,"1,160.00",
"Housing, Communities & Local Government",MHCLG,05/06/2020,IT - Service Contracts,Corporate and GOLD Secretariat Cells,ARCUS GLOBAL LIMITED,,Medium,,,5106260767,IT Managed / Outsourced Services,Datamart/MCIS/TESA AWS Hosting,CB4 2HY,"163,718.94",
"Housing, Communities & Local Government",MHCLG,05/06/2020,IT - Service Contracts,Corporate and GOLD Secretariat Cells,ARCUS GLOBAL LIMITED,,Medium,,,5106260832,IT Managed / Outsourced Services,Datamart/MCIS/TESA AWS Hosting,CB4 2HY,"8,212.50",
"Housing, Communities & Local Government",MHCLG,05/06/2020,IT - Software Maintenance,Corporate and GOLD Secretariat Cells,INTERQUEST GROUP UK LIMITED,,Large,,423935241,5106260892,IT Managed / Outsourced Services,SAP Specialist Var08,EC4R 0AN,"12,198.00",
"Housing, Communities & Local Government",MHCLG,05/06/2020,IT - Software Maintenance,Corporate and GOLD Secretariat Cells,INTERQUEST GROUP UK LIMITED,,Large,,423935241,5106260895,IT Managed / Outsourced Services,SAP Finance Specialist Var03,EC4R 0AN,"11,400.00",
"Housing, Communities & Local Government",MHCLG,05/06/2020,IT - Software Maintenance,Corporate and GOLD Secretariat Cells,INTERQUEST GROUP UK LIMITED,,Large,,423935241,5106260896,IT Managed / Outsourced Services,SAP Project Manager,EC4R 0AN,"14,820.00",
"Housing, Communities & Local Government",MHCLG,05/06/2020,IT - Software Maintenance,Corporate and GOLD Secretariat Cells,INTERQUEST GROUP UK LIMITED,,Large,,423935241,5106260897,IT Managed / Outsourced Services,SAP Fiori Specialist,EC4R 0AN,"14,580.00",
"Housing, Communities & Local Government",MHCLG,05/06/2020,IT - Software Maintenance,Corporate and GOLD Secretariat Cells,INTERQUEST GROUP UK LIMITED,,Large,,423935241,5106260899,IT Managed / Outsourced Services,SAP Basis Support Services,EC4R 0AN,"9,949.19",
"Housing, Communities & Local Government",MHCLG,05/06/2020,IT - Software Maintenance,Corporate and GOLD Secretariat Cells,INTERQUEST GROUP UK LIMITED,,Large,,423935241,5106260899,IT Managed / Outsourced Services,SAP Fiori Specialist,EC4R 0AN,"3,550.81",
"Housing, Communities & Local Government",MHCLG,05/06/2020,Legal Fees,Housing and Vulnerable People Responses,HER MAJESTYS COURTS & TRIBUNAL SERV,,Public Bodies,,212437904,5106260870,Legal,Legal Advice,NP10 8FZ,"39,013.00",
"Housing, Communities & Local Government",MHCLG,05/06/2020,Legal Fees,Housing and Vulnerable People Responses,MILLS & REEVE LLP,,Large,,,5106260880,Legal,Legal Advice,EC4R 9AT,"9,600.00",
"Housing, Communities & Local Government",MHCLG,08/06/2020,Agency Staff,Corporate and GOLD Secretariat Cells,ALEXANDER MANN SOLUTIONS LTD,,Large,,,5106260906,Contingent Labour,WC Contingent Labour,EC2N 3AQ,"4,212.97",
"Housing, Communities & Local Government",MHCLG,08/06/2020,Agency Staff,Corporate and GOLD Secretariat Cells,ALEXANDER MANN SOLUTIONS LTD,,Large,,,5106260907,Contingent Labour,Interim Staff,EC2N 3AQ,"2,833.31",
"Housing, Communities & Local Government",MHCLG,08/06/2020,Agency Staff,Corporate and GOLD Secretariat Cells,ALEXANDER MANN SOLUTIONS LTD,,Large,,,5106260908,Contingent Labour,Interim Staff,EC2N 3AQ,"8,373.67",
"Housing, Communities & Local Government",MHCLG,08/06/2020,Agency Staff,Corporate and GOLD Secretariat Cells,ALEXANDER MANN SOLUTIONS LTD,,Large,,,5106260909,Contingent Labour,Interim Staff,EC2N 3AQ,"3,772.66",
"Housing, Communities & Local Government",MHCLG,08/06/2020,Agency Staff,Corporate and GOLD Secretariat Cells,ALEXANDER MANN SOLUTIONS LTD,,Large,,,5106260910,Contingent Labour,Interim Staff,EC2N 3AQ,"2,495.04",
"Housing, Communities & Local Government",MHCLG,08/06/2020,Agency Staff,Corporate and GOLD Secretariat Cells,ALEXANDER MANN SOLUTIONS LTD,,Large,,,5106260913,Contingent Labour,Interim Staff,EC2N 3AQ,"7,552.87",
"Housing, Communities & Local Government",MHCLG,08/06/2020,Agency Staff,Corporate and GOLD Secretariat Cells,ALEXANDER MANN SOLUTIONS LTD,,Large,,,5106260914,Contingent Labour,Interim Staff,EC2N 3AQ,"3,202.85",
"Housing, Communities & Local Government",MHCLG,08/06/2020,Agency Staff,Corporate and GOLD Secretariat Cells,ALEXANDER MANN SOLUTIONS LTD,,Large,,,5106260915,Contingent Labour,Interim Staff,EC2N 3AQ,"2,771.66",
"Housing, Communities & Local Government",MHCLG,08/06/2020,Agency Staff,Corporate and GOLD Secretariat Cells,ALEXANDER MANN SOLUTIONS LTD,,Large,,,5106260916,Contingent Labour,Interim Staff,EC2N 3AQ,"10,532.48",
"Housing, Communities & Local Government",MHCLG,08/06/2020,Agency Staff,Corporate and GOLD Secretariat Cells,ALEXANDER MANN SOLUTIONS LTD,,Large,,,5106260917,Contingent Labour,Interim Staff,EC2N 3AQ,"1,575.17",
"Housing, Communities & Local Government",MHCLG,08/06/2020,Agency Staff,Corporate and GOLD Secretariat Cells,ALEXANDER MANN SOLUTIONS LTD,,Large,,,5106260918,Contingent Labour,Interim Staff,EC2N 3AQ,"1,751.62",
"Housing, Communities & Local Government",MHCLG,08/06/2020,Agency Staff,Corporate and GOLD Secretariat Cells,ALEXANDER MANN SOLUTIONS LTD,,Large,,,5106260919,Contingent Labour,Interim Staff,EC2N 3AQ,"4,819.93",
"Housing, Communities & Local Government",MHCLG,08/06/2020,Agency Staff,Corporate and GOLD Secretariat Cells,ALEXANDER MANN SOLUTIONS LTD,,Large,,,5106260920,Contingent Labour,Interim Staff,EC2N 3AQ,"1,874.42",
"Housing, Communities & Local Government",MHCLG,08/06/2020,Agency Staff,Corporate and GOLD Secretariat Cells,ALEXANDER MANN SOLUTIONS LTD,,Large,,,5106260926,Contingent Labour,Temporary Admintrative Staff,EC2N 3AQ,"2,016.19",
"Housing, Communities & Local Government",MHCLG,08/06/2020,Agency Staff,Corporate and GOLD Secretariat Cells,ALEXANDER MANN SOLUTIONS LTD,,Large,,,5106260927,Contingent Labour,Interim Staff,EC2N 3AQ,"6,135.72",
"Housing, Communities & Local Government",MHCLG,08/06/2020,Agency Staff,Corporate and GOLD Secretariat Cells,ALEXANDER MANN SOLUTIONS LTD,,Large,,,5106260928,Contingent Labour,Interim Staff,EC2N 3AQ,"5,982.34",
"Housing, Communities & Local Government",MHCLG,08/06/2020,Agency Staff,Corporate and GOLD Secretariat Cells,ALEXANDER MANN SOLUTIONS LTD,,Large,,,5106260929,Contingent Labour,Interim Staff,EC2N 3AQ,"10,166.64",
"Housing, Communities & Local Government",MHCLG,08/06/2020,Agency Staff,Corporate and GOLD Secretariat Cells,ALEXANDER MANN SOLUTIONS LTD,,Large,,,5106260932,Contingent Labour,Interim Staff,EC2N 3AQ,"5,934.83",
"Housing, Communities & Local Government",MHCLG,08/06/2020,Agency Staff,Corporate and GOLD Secretariat Cells,ALEXANDER MANN SOLUTIONS LTD,,Large,,,5106260936,Contingent Labour,Interim Staff,EC2N 3AQ,"9,109.60",
"Housing, Communities & Local Government",MHCLG,08/06/2020,Agency Staff,Corporate and GOLD Secretariat Cells,ALEXANDER MANN SOLUTIONS LTD,,Large,,,5106260937,Contingent Labour,Interim Staff,EC2N 3AQ,985.49,
"Housing, Communities & Local Government",MHCLG,08/06/2020,Agency Staff,Corporate and GOLD Secretariat Cells,ALEXANDER MANN SOLUTIONS LTD,,Large,,,5106260939,Contingent Labour,Interim Staff,EC2N 3AQ,"1,693.79",
"Housing, Communities & Local Government",MHCLG,08/06/2020,Agency Staff,Corporate and GOLD Secretariat Cells,ALEXANDER MANN SOLUTIONS LTD,,Large,,,5106260940,Contingent Labour,Interim Staff,EC2N 3AQ,"7,545.13",
"Housing, Communities & Local Government",MHCLG,08/06/2020,Agency Staff,Economic and Business Response,ALEXANDER MANN SOLUTIONS LTD,,Large,,,5106260934,Contingent Labour,contingent labour,EC2N 3AQ,"1,025.53",
"Housing, Communities & Local Government",MHCLG,08/06/2020,Agency Staff,Emergency Response,ALEXANDER MANN SOLUTIONS LTD,,Large,,,5106260904,Contingent Labour,Interim Staff,EC2N 3AQ,"1,016.28",
"Housing, Communities & Local Government",MHCLG,08/06/2020,Agency Staff,Housing and Vulnerable People Responses,ALEXANDER MANN SOLUTIONS LTD,,Large,,,5106260905,Contingent Labour,Short term policy backfill contractor,EC2N 3AQ,"3,049.49",
"Housing, Communities & Local Government",MHCLG,08/06/2020,Agency Staff,Housing and Vulnerable People Responses,ALEXANDER MANN SOLUTIONS LTD,,Large,,,5106260911,Contingent Labour,Short term policy backfill contractor,EC2N 3AQ,"1,058.50",
"Housing, Communities & Local Government",MHCLG,08/06/2020,Agency Staff,Housing and Vulnerable People Responses,ALEXANDER MANN SOLUTIONS LTD,,Large,,,5106260912,Contingent Labour,Short term policy backfill contractor,EC2N 3AQ,"3,202.85",
"Housing, Communities & Local Government",MHCLG,08/06/2020,Agency Staff,Housing and Vulnerable People Responses,ALEXANDER MANN SOLUTIONS LTD,,Large,,,5106260923,Not Addressable,Short term programme backfill contractor,EC2N 3AQ,"2,586.91",
"Housing, Communities & Local Government",MHCLG,08/06/2020,Agency Staff,Housing and Vulnerable People Responses,ALEXANDER MANN SOLUTIONS LTD,,Large,,,5106260930,Contingent Labour,Short term programme backfill contractor,EC2N 3AQ,"6,237.53",
"Housing, Communities & Local Government",MHCLG,08/06/2020,Agency Staff,Housing and Vulnerable People Responses,ALEXANDER MANN SOLUTIONS LTD,,Large,,,5106260933,Contingent Labour,Agency Staff,EC2N 3AQ,"26,016.77",
"Housing, Communities & Local Government",MHCLG,08/06/2020,Agency Staff,Housing and Vulnerable People Responses,ALEXANDER MANN SOLUTIONS LTD,,Large,,,5106260942,Contingent Labour,Agency Staff,EC2N 3AQ,"8,130.24",
"Housing, Communities & Local Government",MHCLG,08/06/2020,Agency Staff,Economic and Business Response,ALEXANDER MANN SOLUTIONS LTD,,Large,,,5106260938,Contingent Labour,Specialist Contractor ,EC2N 3AQ,"1,457.76",
"Housing, Communities & Local Government",MHCLG,08/06/2020,Cap Grants to Private Sector Companies,Corporate and GOLD Secretariat Cells,CANTILLON LIMITED,,Medium,,,5106260765,Business Process Outsourcing Services,Grenfell Tower site costs,WD25 8HH,"27,588.00",Yes
"Housing, Communities & Local Government",MHCLG,08/06/2020,Cap Grants to Private Sector Companies,Corporate and GOLD Secretariat Cells,DERISK (UK) LTD,,Small,,220390649,5106260763,Consultancy,Appointment of Principal Designer,WC2N 6DU,"7,459.99",Yes
"Housing, Communities & Local Government",MHCLG,08/06/2020,Courier Services,Economic and Business Response,ROYAL MAIL,,Large,,212543784,5106260954,Office Solutions,Despatch Box Delivery Service LH,PE4 5PE,259.32,
"Housing, Communities & Local Government",MHCLG,08/06/2020,Courier Services,Economic and Business Response,ROYAL MAIL,,Large,,212543784,5106260955,Office Solutions,Despatch Box Delivery Service LH,PE4 5PE,529.44,
"Housing, Communities & Local Government",MHCLG,08/06/2020,Current Grants to Non Profit Bodies,Housing and Vulnerable People Responses,CEL GROUP,,Medium,,394794614,5106260903,Technical Services,Home Improvement Agency - 01.04.18 - 30.09.20,WA2 0YL,"78,609.92",Yes
"Housing, Communities & Local Government",MHCLG,08/06/2020,ERDF Work in Progress � Capital,Economic and Business Response,DERBYSHIRE COUNTY COUNCIL,,,,,7700006670,,ERDF grant payment,DE4 3AG,"118,508.85",Yes
"Housing, Communities & Local Government",MHCLG,08/06/2020,ERDF Work in Progress � Capital,Economic and Business Response,UNIVERSITY OF KEELE,,,,,7700006669,,ERDF grant payment,ST5 5BG,"102,299.79",Yes
"Housing, Communities & Local Government",MHCLG,08/06/2020,ERDF Work in Progress � Capital,Economic and Business Response,WEST SUSSEX SUSTAIN BUS PARTNERSHIP,,,,,7700006673,,ERDF grant payment,BN1 1YD,"3,134.18",Yes
"Housing, Communities & Local Government",MHCLG,08/06/2020,ERDF Work in Progress � Resource,Economic and Business Response,BIRMINGHAM CITY COUNCIL,,,,,7700006672,,ERDF grant payment,B2 2AJ,"37,835.42",Yes
"Housing, Communities & Local Government",MHCLG,08/06/2020,ERDF Work in Progress � Resource,Economic and Business Response,SOUTH EAST MIDLANDS LOCAL ENTERPRIS,,,,,7700006675,,ERDF grant payment,MK43 0BT,"1,691.77",Yes
"Housing, Communities & Local Government",MHCLG,08/06/2020,ERDF Work in Progress � Resource,Economic and Business Response,UNIVERSITY OF CENTRAL LANCASHIRE,,Large,,,7700006671,,ERDF grant payment,PR7 7DL,"47,105.56",Yes
"Housing, Communities & Local Government",MHCLG,08/06/2020,ERDF Work in Progress � Resource,Economic and Business Response,UNIVERSITY OF CENTRAL LANCASHIRE,,Large,,,7700006674,,ERDF grant payment,PR7 7DL,"42,874.55",Yes
"Housing, Communities & Local Government",MHCLG,08/06/2020,ERDF Work in Progress � Resource,Economic and Business Response,UNIVERSITY OF KEELE,,,,,7700006669,,ERDF grant payment,ST5 5BG,"304,825.66",Yes
"Housing, Communities & Local Government",MHCLG,08/06/2020,ERDF Work in Progress � Resource,Economic and Business Response,WEST SUSSEX SUSTAIN BUS PARTNERSHIP,,,,,7700006673,,ERDF grant payment,BN1 1YD,"24,194.93",Yes
"Housing, Communities & Local Government",MHCLG,08/06/2020,EXP � PURCHASE OF GOODS /SERVICES R & D,Economic and Business Response,ECONOMIC & SOCIAL RESEARCH CNCL,,Public Bodies,,239878051,5106260943,Research,Research - What Works Centre - Local Economic Growth,SN2 1UJ,"250,000.00",
"Housing, Communities & Local Government",MHCLG,08/06/2020,Grant in Aid to NDPBs (non budget),Emergency Response,COMMISSION LOCAL ADMINISTRATION,,,,215271508,2100306285,,DCLG DEL 20/21 budget contribution for the CLAE,CV1 3BH,"1,010,000.00",Yes
"Housing, Communities & Local Government",MHCLG,08/06/2020,Grant in Aid to NDPBs (non budget),Emergency Response,VALUATION TRIBUNAL SERVICE,,,,211218366,2100306318,,GIA to VTS,E1 8EU,"200,000.00",Yes
"Housing, Communities & Local Government",MHCLG,08/06/2020,IT - Service Contracts,Corporate and GOLD Secretariat Cells,AMAZON WEB SERVICES EMEA SARL,,Large,,,5106260931,IT Managed / Outsourced Services,Datamart Cloud Web Hosting - est costs,1885,"2,206.55",
"Housing, Communities & Local Government",MHCLG,08/06/2020,IT - Service Contracts,Economic and Business Response,CIVICA UK LTD,,Medium,,,5106260946,IT Managed / Outsourced Services,Despatch Box 2020/21,DY1 4TD,"54,000.00",
"Housing, Communities & Local Government",MHCLG,08/06/2020,IT - Service Contracts,Economic and Business Response,RISUAL LIMITED,,Medium,,,5106260728,IT Managed / Outsourced Services,Open Data Communities Development  work,ST18 0WP,"43,350.00",
"Housing, Communities & Local Government",MHCLG,08/06/2020,IT - Software Maintenance,Corporate and GOLD Secretariat Cells,INTERQUEST GROUP UK LIMITED,,Large,,423935241,5106260945,IT Managed / Outsourced Services,SAP Auth Specialist Var07,EC4R 0AN,"10,800.00",
"Housing, Communities & Local Government",MHCLG,08/06/2020,Management Consultancy,Corporate and GOLD Secretariat Cells,Boston Consulting Group UK LLP,,Large,,,5106260855,Consultancy,Strategic Consultancy Services,W1U 3PZ,"797,400.00",
"Housing, Communities & Local Government",MHCLG,08/06/2020,Management Consultancy,Housing and Vulnerable People Responses,ALEXANDER MANN SOLUTIONS LTD,,Large,,,5106260935,Contingent Labour,Agency Staff,EC2N 3AQ,301.56,
"Housing, Communities & Local Government",MHCLG,08/06/2020,Publicity,Economic and Business Response,PRESS ASSOCIATION,,Large,,217191704,5106260941,Advertising,Press Association Mediapoint service costs,DN14 7YH,"1,291.67",
"Housing, Communities & Local Government",MHCLG,08/06/2020,Steady State Service Provision,Corporate and GOLD Secretariat Cells,FACULTY SCIENCE LTD,,Medium,,,5106260821,Business Process Outsourcing Services,Additional analytical work - Covid 19,W1G 9XS,"45,804.58",
"Housing, Communities & Local Government",MHCLG,08/06/2020,Steady State Service Provision,Housing and Vulnerable People Responses,SERCO LTD,,Large,,216308056,5106260830,Business Process Outsourcing Services,Right to buy agent,RG27 9UY,"30,778.81",
"Housing, Communities & Local Government",MHCLG,08/06/2020,Training,Corporate and GOLD Secretariat Cells,KNOWLEDGEPOOL GROUP LIMITED,,Medium,,737096441,5106260921,Development and Training,Civil Service Training,RG1 8LS,946.74,
"Housing, Communities & Local Government",MHCLG,09/06/2020,Agency Staff,Corporate and GOLD Secretariat Cells,ALEXANDER MANN SOLUTIONS LTD,,Large,,,5106260994,Contingent Labour,Contingent labour KS PSR1WO00021511,EC2N 3AQ,"3,895.79",
"Housing, Communities & Local Government",MHCLG,09/06/2020,Current (non AEF) Grants to Local Authorities,Emergency Response,WILTSHIRE COUNCIL,,,,211341656,2300003147,,Grant payment return,BA14 4DS,"-10,000.00",Yes
"Housing, Communities & Local Government",MHCLG,09/06/2020,ERDF Work in Progress � Capital,Economic and Business Response,GM BUSINESS SUPPORT LTD,,,,,7700006680,,ERDF grant payment,M1 5JW,"96,581.64",Yes
"Housing, Communities & Local Government",MHCLG,09/06/2020,ERDF Work in Progress � Capital,Economic and Business Response,LEICESTER CITY COUNCIL,,,,,7700006681,,ERDF grant payment,LE1 1FZ,"7,212.50",Yes
"Housing, Communities & Local Government",MHCLG,09/06/2020,ERDF Work in Progress � Capital,Economic and Business Response,PLUS X BRIGHTON LTD,,,,,7700006676,,ERDF grant payment,SW1P 1DZ,"1,103,252.67",Yes
"Housing, Communities & Local Government",MHCLG,09/06/2020,ERDF Work in Progress � Capital,Economic and Business Response,SOUTH TYNESIDE BOROUGH COUNCIL,,,,,7700006683,,ERDF grant payment,NE33 2RL,"26,640.13",Yes
"Housing, Communities & Local Government",MHCLG,09/06/2020,ERDF Work in Progress � Resource,Economic and Business Response,GM BUSINESS SUPPORT LTD,,,,,7700006680,,ERDF grant payment,M1 5JW,"58,615.42",Yes
"Housing, Communities & Local Government",MHCLG,09/06/2020,ERDF Work in Progress � Resource,Economic and Business Response,GREATER LONDON AUTHORITY,,Large,,,7700006685,,ERDF grant payment,SE1 2AA,"92,183.01",Yes
"Housing, Communities & Local Government",MHCLG,09/06/2020,ERDF Work in Progress � Resource,Economic and Business Response,H & W CHAMBER OF COMMERCE,,Medium,,,7700006678,,ERDF grant payment,WR4 9NE,"23,318.07",Yes
"Housing, Communities & Local Government",MHCLG,09/06/2020,ERDF Work in Progress � Resource,Economic and Business Response,LEICESTER CITY COUNCIL,,,,,7700006681,,ERDF grant payment,LE1 1FZ,"11,246.85",Yes
"Housing, Communities & Local Government",MHCLG,09/06/2020,ERDF Work in Progress � Resource,Economic and Business Response,NEWCASTLE UNIVERSITY,,,,,7700006677,,ERDF grant payment,NE1 7RU,"77,552.32",Yes
"Housing, Communities & Local Government",MHCLG,09/06/2020,ERDF Work in Progress � Resource,Economic and Business Response,PLUS X BRIGHTON LTD,,,,,7700006676,,ERDF grant payment,SW1P 1DZ,"35,211.70",Yes
"Housing, Communities & Local Government",MHCLG,09/06/2020,ERDF Work in Progress � Resource,Economic and Business Response,SOUTH TYNESIDE BOROUGH COUNCIL,,,,,7700006683,,ERDF grant payment,NE33 2RL,"6,110.48",Yes
"Housing, Communities & Local Government",MHCLG,09/06/2020,ERDF Work in Progress � Resource,Economic and Business Response,SOUTH TYNESIDE BOROUGH COUNCIL,,,,,7700006684,,ERDF grant offset,NE33 2RL,"-2,967.84",Yes
"Housing, Communities & Local Government",MHCLG,09/06/2020,ERDF Work in Progress � Resource,Economic and Business Response,UNIVERSITY OF WOLVERHAMPTON,,,,,7700006679,,ERDF grant payment,WV1 1LY,"330,948.00",Yes
"Housing, Communities & Local Government",MHCLG,09/06/2020,EXP � PURCHASE OF GOODS /SERVICES R & D,Economic and Business Response,RSM UK CONSULTING LLP,,Large,,,5106260991,Research,Research - Allocation Evidence Collection Exercise  ,CB2 1RE,"8,775.00",
"Housing, Communities & Local Government",MHCLG,09/06/2020,IT - Service Contracts,Corporate and GOLD Secretariat Cells,ARCUS GLOBAL LIMITED,,Medium,,,5106260969,IT Managed / Outsourced Services,Datamart/MCIS/TESA AWS Hosting,CB4 2HY,"11,804.30",
"Housing, Communities & Local Government",MHCLG,09/06/2020,IT - Service Contracts,Corporate and GOLD Secretariat Cells,ARCUS GLOBAL LIMITED,,Medium,,,5106260973,IT Managed / Outsourced Services,Datamart/MCIS/TESA AWS Hosting,CB4 2HY,"82,776.58",
"Housing, Communities & Local Government",MHCLG,09/06/2020,IT - Service Contracts,Economic and Business Response,ARCUS GLOBAL LIMITED,,Medium,,,5106260972,IT Managed / Outsourced Services,Data Analytics Platform,CB4 2HY,"45,083.46",
"Housing, Communities & Local Government",MHCLG,09/06/2020,Legal Fees,Corporate and GOLD Secretariat Cells,PINSENT MASONS LLP,,Large,,215580626,5106260829,Legal,Legal Advice,EC2A 4ES,"15,623.52",
"Housing, Communities & Local Government",MHCLG,09/06/2020,Legal Fees,Emergency Response,GOVERNMENT LEGAL DEPARTMENT,,Public Bodies,,215580680,5106260967,Legal,Legal Advice,SW1H 9GL,"3,449.50",
"Housing, Communities & Local Government",MHCLG,09/06/2020,Printing,Economic and Business Response,STATIONERY OFFICE LTD,,Large,,779375633,5106260983,Printing Services,Statutory Instruments Print -VAT (19-20),NR3 1PD,610.00,
"Housing, Communities & Local Government",MHCLG,09/06/2020,Professional services,Housing and Vulnerable People Responses,LOCALITY,,Medium,,347998312,5106260986,Technical Services,N'hood Planning Support Contract (Discounted Market Homes),N1 6DR,"8,514.17",
"Housing, Communities & Local Government",MHCLG,09/06/2020,Professional services,Housing and Vulnerable People Responses,LOCALITY,,Medium,,347998312,5106260989,Technical Services,N'hood Planning Support Contract (Discounted Market Homes),N1 6DR,"84,552.66",
"Housing, Communities & Local Government",MHCLG,09/06/2020,Software Licences,Corporate and GOLD Secretariat Cells,BYTES SOFTWARE SERVICES LTD,,Medium,,225273754,5106260959,Software,"Command Line Powered By PGP Technology,",KT22 7TW,"3,618.62",
"Housing, Communities & Local Government",MHCLG,09/06/2020,Steady State Service Provision,Housing and Vulnerable People Responses,LOCALITY,,Medium,,347998312,5106260963,Business Process Outsourcing Services,Neighbourhood Planning Support Contract,N1 6DR,"134,099.50",
"Housing, Communities & Local Government",MHCLG,09/06/2020,Steady State Service Provision,Housing and Vulnerable People Responses,LOCALITY,,Medium,,347998312,5106260990,Business Process Outsourcing Services,Neighbourhood Planning Support Contract,N1 6DR,"34,722.23",
"Housing, Communities & Local Government",MHCLG,10/06/2020,ERDF Work in Progress � Capital,Economic and Business Response,CHELTENHAM BOROUGH COUNCIL,,,,,7700006694,,ERDF grant payment,GL50 9SA,"11,052.51",Yes
"Housing, Communities & Local Government",MHCLG,10/06/2020,ERDF Work in Progress � Capital,Economic and Business Response,EDEN GEOTHERMAL LTD,,,,,7700006686,,ERDF grant payment,PI24 2SG,"2,075.73",Yes
"Housing, Communities & Local Government",MHCLG,10/06/2020,ERDF Work in Progress � Capital,Economic and Business Response,LOW CARBON HUB CIC,,Micro,,,7700006693,,ERDF grant payment,OX1 1HH,"84,166.10",Yes
"Housing, Communities & Local Government",MHCLG,10/06/2020,ERDF Work in Progress � Capital,Economic and Business Response,WORCESTERSHIRE COUNTY COUNCIL,,,,,7700006695,,ERDF grant payment,WR5 2NP,"38,642.94",Yes
"Housing, Communities & Local Government",MHCLG,10/06/2020,ERDF Work in Progress � Resource,Economic and Business Response,ASTON UNIVERSITY,,Large,,227749751,7700006688,,ERDF grant payment,B4 7ET,"33,290.14",Yes
"Housing, Communities & Local Government",MHCLG,10/06/2020,ERDF Work in Progress � Resource,Economic and Business Response,CHELTENHAM BOROUGH COUNCIL,,,,,7700006694,,ERDF grant payment,GL50 9SA,"35,819.14",Yes
"Housing, Communities & Local Government",MHCLG,10/06/2020,ERDF Work in Progress � Resource,Economic and Business Response,CUMBRIA COUNTY COUNCIL,,,,,7700006690,,ERDF grant payment,CA3 8NA,810.00,Yes
"Housing, Communities & Local Government",MHCLG,10/06/2020,ERDF Work in Progress � Resource,Economic and Business Response,DURHAM UNIVERSITY,,Large,,,7700006687,,ERDF grant payment,DH1 3LE,"25,648.80",Yes
"Housing, Communities & Local Government",MHCLG,10/06/2020,ERDF Work in Progress � Resource,Economic and Business Response,EDEN GEOTHERMAL LTD,,,,,7700006686,,ERDF grant payment,PI24 2SG,"99,890.28",Yes
"Housing, Communities & Local Government",MHCLG,10/06/2020,ERDF Work in Progress � Resource,Economic and Business Response,HEALTH ENTERPRISE EAST LTD,,,,,7700006689,,ERDF grant payment,CB24 6WZ,"30,603.77",Yes
"Housing, Communities & Local Government",MHCLG,10/06/2020,ERDF Work in Progress � Resource,Economic and Business Response,INNOVATION AGENCY AHSN,,,,,7700006692,,ERDF grant payment,PR5 6XT,"76,030.26",Yes
"Housing, Communities & Local Government",MHCLG,10/06/2020,ERDF Work in Progress � Resource,Economic and Business Response,KINGSTON UPON HULL CITY COUNCIL,,Large,,,7700006691,,ERDF grant payment,HU1 2AA,"137,249.21",Yes
"Housing, Communities & Local Government",MHCLG,10/06/2020,ERDF Work in Progress � Resource,Economic and Business Response,LOW CARBON HUB CIC,,Micro,,,7700006693,,ERDF grant payment,OX1 1HH,"217,681.03",Yes
"Housing, Communities & Local Government",MHCLG,10/06/2020,ERDF Work in Progress � Resource,Economic and Business Response,NORTH TYNESIDE COUNCIL,,Large,,,7700006696,,ERDF grant payment,NE27 0BY,"9,514.24",Yes
"Housing, Communities & Local Government",MHCLG,10/06/2020,ERDF Work in Progress � Resource,Economic and Business Response,WMMBF LIMITED,,Small,,,2300003146,,Overpayment of ERDF grant for Project 50R17P01532,LS1 5AB,"-180,463.21",Yes
"Housing, Communities & Local Government",MHCLG,10/06/2020,ERDF Work in Progress � Resource,Economic and Business Response,WORCESTERSHIRE COUNTY COUNCIL,,,,,7700006695,,ERDF grant payment,WR5 2NP,"63,011.23",Yes
"Housing, Communities & Local Government",MHCLG,10/06/2020,EXP � PURCHASE OF GOODS /SERVICES R & D,Economic and Business Response,SHEFFIELD HALLAM UNIVERSITY,,Large,,211278783,5106260015,Research,Research - Complex Needs Process Evaluation,S1 1WB,"67,868.60",
"Housing, Communities & Local Government",MHCLG,10/06/2020,Facilities Management (ISD use only),Corporate and GOLD Secretariat Cells,MINISTRY OF JUSTICE,,,,211860841,5106261014,Property Occupation,Rental Payments - MOJ,NP20 9BB,"41,819.96",
"Housing, Communities & Local Government",MHCLG,10/06/2020,Grant in Aid to NDPBs (non budget),Housing and Vulnerable People Responses,HOMES ENGLAND,,Public Bodies,,215576860,2100306411,,Homes England June 2020 Grant in Aid payment,NE11 0NA,"137,422,476.00",Yes
"Housing, Communities & Local Government",MHCLG,10/06/2020,"IT - PC, Network & Hardware",Corporate and GOLD Secretariat Cells,21st CENTURY OFFICE CONCEPTS LTD,,Small,,,5106261021,ICT Hardware,CV-19 Home Working Requirements,SG12 0SS,"2,397.96",
"Housing, Communities & Local Government",MHCLG,10/06/2020,IT - Service Contracts,Economic and Business Response,SWIRRL IT LIMITED,,Micro,,211074993,5106261011,IT Managed / Outsourced Services,Open Data Communities Development  work,FK7 7WT,"5,280.00",
"Housing, Communities & Local Government",MHCLG,10/06/2020,IT - Software Maintenance,Corporate and GOLD Secretariat Cells,SAP (UK) LTD,,Large,,396951675,5106260997,IT Managed / Outsourced Services,New GL Migration Services,TW14 8HD,"19,980.00",
"Housing, Communities & Local Government",MHCLG,10/06/2020,Legal Fees,Emergency Response,GOVERNMENT LEGAL DEPARTMENT,,Public Bodies,,215580680,5106261019,Legal,Legal Advice,SW1H 9GL,"9,336.10",
"Housing, Communities & Local Government",MHCLG,10/06/2020,Legal Fees,Emergency Response,GOVERNMENT LEGAL DEPARTMENT,,Public Bodies,,215580680,5106261019,Legal,Legal Advice,SW1H 9GL,"8,324.10",
"Housing, Communities & Local Government",MHCLG,10/06/2020,Legal Fees,Housing and Vulnerable People Responses,HER MAJESTYS COURTS & TRIBUNAL SERV,,Public Bodies,,212437904,5106261008,Legal,Legal Advice,NP10 8FZ,"15,005.00",
"Housing, Communities & Local Government",MHCLG,10/06/2020,Management Consultancy,Emergency Response,4C ASSOCIATES LTD,,Medium,,220151604,5106260653,Consultancy,PPE distribution and associated services,W6 7JP,"55,983.97",
"Housing, Communities & Local Government",MHCLG,10/06/2020,Physical Storage,Corporate and GOLD Secretariat Cells,RESTORE PLC,,Large,,,5106261018,Warehousing and Storage,Storage Costs,RH1 3DY,"1,534.89",
"Housing, Communities & Local Government",MHCLG,10/06/2020,Physical Storage,Corporate and GOLD Secretariat Cells,RESTORE PLC,,Large,,,5106261030,Warehousing and Storage,Storage Costs,RH1 3DY,212.48,
"Housing, Communities & Local Government",MHCLG,10/06/2020,Property/Estates Consultancy,Corporate and GOLD Secretariat Cells,RIGHTMOVE,,Large,,,5106261003,Research,RightMove Housing Indicators,MK16 1AJ,"10,000.00",
"Housing, Communities & Local Government",MHCLG,10/06/2020,Steady State Service Provision,Corporate and GOLD Secretariat Cells,GREEN PARK INTERIM & EXECUTIVE,,Small,,348738829,5106261001,Business Process Outsourcing Services,UKHMF Research Assistant,W1K 4EG,"1,747.20",
"Housing, Communities & Local Government",MHCLG,10/06/2020,Training,Corporate and GOLD Secretariat Cells,MK-LF PARTNERSHIP LTD,,Micro,,,5106261002,Development and Training,Civil Service Training,NW1 7SN,"15,994.38",
"Housing, Communities & Local Government",MHCLG,10/06/2020,Training,Economic and Business Response,WISE OWL BUSINESS SOLUTIONS LTD,,Micro,,738553754,5106261022,Development and Training,Civil Service Training,SK13 2AA,395.00,
"Housing, Communities & Local Government",MHCLG,11/06/2020,Accommodation - actuals,Corporate and GOLD Secretariat Cells,CORPORATE TRAVEL MANAGEMENT(NORTH)L,,Small,,213089972,2100306430,Business Travel Accommodation,Consolidated Monthly Travel May 2020 Hotels,BD1 5HQ,"1,670.00",
"Housing, Communities & Local Government",MHCLG,11/06/2020,Accommodation - actuals,Economic and Business Response,CORPORATE TRAVEL MANAGEMENT(NORTH)L,,Small,,213089972,2100306430,Business Travel Accommodation,Consolidated Monthly Travel May 2020 Hotels,BD1 5HQ,"1,223.48",
"Housing, Communities & Local Government",MHCLG,11/06/2020,Accommodation - actuals,Economic and Business Response,CORPORATE TRAVEL MANAGEMENT(NORTH)L,,Small,,213089972,2100306430,Business Travel Accommodation,Consolidated Monthly Travel May 2020 Hotels,BD1 5HQ,-452.43,
"Housing, Communities & Local Government",MHCLG,11/06/2020,Accommodation - actuals,Emergency Response,CORPORATE TRAVEL MANAGEMENT(NORTH)L,,Small,,213089972,2100306430,Business Travel Accommodation,Consolidated Monthly Travel May 2020 Hotels,BD1 5HQ,491.95,
"Housing, Communities & Local Government",MHCLG,11/06/2020,Accommodation - actuals,Housing and Vulnerable People Responses,CORPORATE TRAVEL MANAGEMENT(NORTH)L,,Small,,213089972,2100306430,Business Travel Accommodation,Consolidated Monthly Travel May 2020 Hotels,BD1 5HQ,"1,362.73",
"Housing, Communities & Local Government",MHCLG,11/06/2020,Air Travel,Emergency Response,CORPORATE TRAVEL MANAGEMENT(NORTH)L,,Small,,213089972,2100306430,Air,Consolidated Monthly Travel May 2020 Air Tickets,BD1 5HQ,"2,627.34",
"Housing, Communities & Local Government",MHCLG,11/06/2020,Current Grants to Non Profit Bodies,Emergency Response,Rotary Club Doncaster St George�s T,,,,,2100306431,,Match Funding agreement (Nov 19 Floods),DN4 7RY,"17,447.00",Yes
"Housing, Communities & Local Government",MHCLG,11/06/2020,ERDF Work in Progress � Capital,Economic and Business Response,CENTRICA PLC,,,,,7700006697,,ERDF grant payment,SL4 5GD,"453,768.29",Yes
"Housing, Communities & Local Government",MHCLG,11/06/2020,ERDF Work in Progress � Capital,Economic and Business Response,OXFORDSHIRE COUNTY COUNCIL,,Large,,,7700006707,,ERDF grant payment,OX1 1ND,"4,379.11",Yes
"Housing, Communities & Local Government",MHCLG,11/06/2020,ERDF Work in Progress � Capital,Economic and Business Response,QUEEN MARY UNIVERSITY OF LONDON,,,,,7700006700,,ERDF grant payment,E1 4NS,"3,751.90",Yes
"Housing, Communities & Local Government",MHCLG,11/06/2020,ERDF Work in Progress � Capital,Economic and Business Response,UNIVERSITY OF CENTRAL LANCASHIRE,,Large,,,7700006699,,ERDF grant payment,PR7 7DL,"25,790.11",Yes
"Housing, Communities & Local Government",MHCLG,11/06/2020,ERDF Work in Progress � Resource,Economic and Business Response, WEST YORKSHIRE COMBINED AUTHORITY,,Large,,,7700006706,,ERDF grant payment,LS1 2DE,"82,185.17",Yes
"Housing, Communities & Local Government",MHCLG,11/06/2020,ERDF Work in Progress � Resource,Economic and Business Response,CENTRAL RESEARCH LABORATORY,,Micro,,,7700006709,,ERDF grant payment,SW1P 1DZ,"47,064.03",Yes
"Housing, Communities & Local Government",MHCLG,11/06/2020,ERDF Work in Progress � Resource,Economic and Business Response,CENTRICA PLC,,,,,7700006697,,ERDF grant payment,SL4 5GD,"531,840.16",Yes
"Housing, Communities & Local Government",MHCLG,11/06/2020,ERDF Work in Progress � Resource,Economic and Business Response,CENTRICA PLC,,,,,7700006703,,ERDF grant offset,SL4 5GD,"-3,813.43",Yes
"Housing, Communities & Local Government",MHCLG,11/06/2020,ERDF Work in Progress � Resource,Economic and Business Response,KINGSTON UPON HULL CITY COUNCIL,,Large,,,7700006705,,ERDF grant payment,HU1 2AA,"14,837.21",Yes
"Housing, Communities & Local Government",MHCLG,11/06/2020,ERDF Work in Progress � Resource,Economic and Business Response,NORTHERN FILM & MEDIA LIMITED,,Micro,,,7700006704,,ERDF grant payment,NE8 3BA,"26,675.77",Yes
"Housing, Communities & Local Government",MHCLG,11/06/2020,ERDF Work in Progress � Resource,Economic and Business Response,OXFORDSHIRE COUNTY COUNCIL,,Large,,,7700006707,,ERDF grant payment,OX1 1ND,"252,195.36",Yes
"Housing, Communities & Local Government",MHCLG,11/06/2020,ERDF Work in Progress � Resource,Economic and Business Response,PRINCE'S TRUST,,Large,,,7700006708,,ERDF grant payment,EC2M 7LS,"75,431.84",Yes
"Housing, Communities & Local Government",MHCLG,11/06/2020,ERDF Work in Progress � Resource,Economic and Business Response,QUEEN MARY UNIVERSITY OF LONDON,,,,,7700006700,,ERDF grant payment,E1 4NS,"143,966.63",Yes
"Housing, Communities & Local Government",MHCLG,11/06/2020,ERDF Work in Progress � Resource,Economic and Business Response,UNIVERSITY OF CENTRAL LANCASHIRE,,Large,,,7700006699,,ERDF grant payment,PR7 7DL,"51,410.61",Yes
"Housing, Communities & Local Government",MHCLG,11/06/2020,ERDF Work in Progress � Resource,Economic and Business Response,UNIVERSITY OF THE WEST OF ENGLAND,,Large,,,7700006702,,ERDF grant payment,BS16 1QY,"202,889.42",Yes
"Housing, Communities & Local Government",MHCLG,11/06/2020,"Furniture, Fittings and carpets",Corporate and GOLD Secretariat Cells,WAGSTAFF BROS LTD,,,,210307773,5106260968,"Furniture, Fixtures and Fittings",Reasonable Adjustments 20/21,EC1V 4JR,660.37,
"Housing, Communities & Local Government",MHCLG,11/06/2020,"Furniture, Fittings and carpets",Corporate and GOLD Secretariat Cells,WAGSTAFF BROS LTD,,,,210307773,5106260970,"Furniture, Fixtures and Fittings",Reasonable Adjustments 20/21,EC1V 4JR,966.61,
"Housing, Communities & Local Government",MHCLG,11/06/2020,IT - Service Contracts,Corporate and GOLD Secretariat Cells,CAPITO LTD,,Micro,,,5106261070,IT Managed / Outsourced Services,Ext to 16/12/19 plus dual hosting,EH54 8AS,"4,298.70",
"Housing, Communities & Local Government",MHCLG,11/06/2020,IT - Service Contracts,Corporate and GOLD Secretariat Cells,DAISY CORPORATE SERVICES LTD,,Large,,221481042,5106261065,IT Managed / Outsourced Services,Charges Jan-May 2020,BB9 5SR,"45,278.54",
"Housing, Communities & Local Government",MHCLG,11/06/2020,IT - Service Contracts,Corporate and GOLD Secretariat Cells,DAISY CORPORATE SERVICES LTD,,Large,,221481042,5106261066,IT Managed / Outsourced Services,Charges Jan-May 2020,BB9 5SR,"45,030.58",
"Housing, Communities & Local Government",MHCLG,11/06/2020,IT - Service Contracts,Corporate and GOLD Secretariat Cells,DAISY CORPORATE SERVICES LTD,,Large,,221481042,5106261067,IT Managed / Outsourced Services,Charges Jan-May 2020,BB9 5SR,"24,987.76",
"Housing, Communities & Local Government",MHCLG,11/06/2020,IT - Service Contracts,Corporate and GOLD Secretariat Cells,DAISY CORPORATE SERVICES LTD,,Large,,221481042,5106261068,IT Managed / Outsourced Services,Charges Jan-May 2020,BB9 5SR,"39,310.69",
"Housing, Communities & Local Government",MHCLG,11/06/2020,IT - Service Contracts,Corporate and GOLD Secretariat Cells,VELOCITII DIGITAL SOLUTIONS LTD,,Micro,,,5106260966,IT Managed / Outsourced Services,Digital Land Team Support,SE1 9LB,"52,850.00",
"Housing, Communities & Local Government",MHCLG,11/06/2020,IT - Service Contracts,Corporate and GOLD Secretariat Cells,VELOCITII DIGITAL SOLUTIONS LTD,,Micro,,,5106261053,IT Managed / Outsourced Services,Digital Design Support,SE1 9LB,"71,200.00",
"Housing, Communities & Local Government",MHCLG,11/06/2020,Legal Fees,Corporate and GOLD Secretariat Cells,PINSENT MASONS LLP,,Large,,215580626,5106260894,Legal,Legal Advice,EC2A 4ES,"3,478.92",
"Housing, Communities & Local Government",MHCLG,11/06/2020,Management Consultancy,Emergency Response,KPMG,,Large,,232252833,5106261044,Consultancy,Shielding PMO,WD17 1DE,"180,981.01",
"Housing, Communities & Local Government",MHCLG,11/06/2020,Mobile phone costs,Corporate and GOLD Secretariat Cells,GAMMA TELECOM LTD,,Large,,,5106261069,Telecoms,SO12178 - Contract Running Costs 18/19,EC4M 7RD,"16,713.79",
"Housing, Communities & Local Government",MHCLG,11/06/2020,Professional services,Corporate and GOLD Secretariat Cells,GOVT ACTUARYS DEPARTMENT,,Public Bodies,,217789766,5106261048,Financial,GAD Actuarial Services,EC4A 1AB,390.90,
"Housing, Communities & Local Government",MHCLG,11/06/2020,Publications,Emergency Response,SWEET & MAXWELL LTD,,Large,,365112320,5106261058,Learning and Development Materials,Schofield s Election Law amendments,SP10 9AH,291.50,
"Housing, Communities & Local Government",MHCLG,11/06/2020,Publishing,Economic and Business Response,Kalo Digital Ltd,,Small,,,5106261047,Printing Services,Graphic Design and After Effect,L3 9DG,400.00,
"Housing, Communities & Local Government",MHCLG,11/06/2020,Software Licences,Corporate and GOLD Secretariat Cells,BYTES SOFTWARE SERVICES LTD,,Medium,,225273754,5106261032,Software,Read & Wriet Gold (SJN),KT22 7TW,384.56,
"Housing, Communities & Local Government",MHCLG,11/06/2020,Software Licences,Corporate and GOLD Secretariat Cells,BYTES SOFTWARE SERVICES LTD,,Medium,,225273754,5106261033,Software,Mindview (SJN),KT22 7TW,292.88,
"Housing, Communities & Local Government",MHCLG,11/06/2020,Software Licences,Corporate and GOLD Secretariat Cells,BYTES SOFTWARE SERVICES LTD,,Medium,,225273754,5106261034,Software,Zoomtext software,KT22 7TW,715.20,
"Housing, Communities & Local Government",MHCLG,11/06/2020,Software Licences,Corporate and GOLD Secretariat Cells,BYTES SOFTWARE SERVICES LTD,,Medium,,225273754,5106261046,Software,Mindview Software CH,KT22 7TW,294.00,
"Housing, Communities & Local Government",MHCLG,11/06/2020,Software Licences,Emergency Response,Freshworks Inc,,,,,5106261061,Software,FreshService Ticketing software 15mths,94403-2199,"46,740.00",
"Housing, Communities & Local Government",MHCLG,11/06/2020,Steady State Service Provision,Corporate and GOLD Secretariat Cells,PLOWMAN CRAVEN LIMITED,,Medium,,,5106261054,Business Process Outsourcing Services,Grenfell Tower Surveying services,AL5 5EQ,"20,014.80",
"Housing, Communities & Local Government",MHCLG,11/06/2020,Training,Corporate and GOLD Secretariat Cells,CABINET OFFICE,,Large,,232159186,5106261052,Development and Training,Civil Service Training,FY5 3TA,"11,866.40",
"Housing, Communities & Local Government",MHCLG,12/06/2020,Capital Grants to People Non Profit,Economic and Business Response,ARUN DISTRICT COUNCIL,,,,,2100306326,,Coastal Communities Fund,BN17 6SL,"1,004,182.00",Yes
"Housing, Communities & Local Government",MHCLG,12/06/2020,Capital Grants to People Non Profit,Economic and Business Response,BLACKPOOL BC,,Public Bodies,,228593497,2100306327,,Coastal Communities Fund,FY1 1LZ,"626,524.00",Yes
"Housing, Communities & Local Government",MHCLG,12/06/2020,Capital Grants to People Non Profit,Economic and Business Response,BOURNEMOUTH BC&CHRISTCHURCH BC&POOL,,,,,2100306328,,Coastal Communities Fund,BH2 6DY,"1,397,913.00",Yes
"Housing, Communities & Local Government",MHCLG,12/06/2020,Capital Grants to People Non Profit,Economic and Business Response,CANTERBURY CITY COUNCIL,,Large,,,2100306329,,Coastal Communities Fund,CT1 1YW,"5,650.00",Yes
"Housing, Communities & Local Government",MHCLG,12/06/2020,Capital Grants to People Non Profit,Economic and Business Response,CASTLE POINT BC,,,,228217931,2100306330,,Coastal Communities Fund,SS7 1TF,"1,270,333.00",Yes
"Housing, Communities & Local Government",MHCLG,12/06/2020,Capital Grants to People Non Profit,Economic and Business Response,COPELAND BC,,,,,2100306331,,Coastal Communities Fund,CA28 7SJ,"661,230.00",Yes
"Housing, Communities & Local Government",MHCLG,12/06/2020,Capital Grants to People Non Profit,Economic and Business Response,COPELAND BC,,,,,2100306332,,Coastal Communities Fund,CA28 7SJ,"931,253.00",Yes
"Housing, Communities & Local Government",MHCLG,12/06/2020,Capital Grants to People Non Profit,Economic and Business Response,DOVER DC,,,,211389341,2100306333,,Coastal Communities Fund,CT16 3PF,"1,573,130.00",Yes
"Housing, Communities & Local Government",MHCLG,12/06/2020,Capital Grants to People Non Profit,Economic and Business Response,DURHAM COUNTY COUNCIL,,,,228453601,2100306334,,Coastal Communities Fund,DL16 6JQ,"739,527.00",Yes
"Housing, Communities & Local Government",MHCLG,12/06/2020,Capital Grants to People Non Profit,Economic and Business Response,ESSEX COUNTY COUNCIL,,Public Bodies,,233572986,2100306337,,Coastal Communities Fund,CM1 1JZ,"49,552.00",Yes
"Housing, Communities & Local Government",MHCLG,12/06/2020,Capital Grants to People Non Profit,Economic and Business Response,FOREST OF DEAN DC,,,,211278890,2100306338,,Coastal Communities Fund,GL16 8HG,"1,388,561.00",Yes
"Housing, Communities & Local Government",MHCLG,12/06/2020,Capital Grants to People Non Profit,Economic and Business Response,ISLE OF WIGHT COUNCIL,,,,232680157,2100306339,,Coastal Communities Fund,PO30 1UD,"20,000.00",Yes
"Housing, Communities & Local Government",MHCLG,12/06/2020,Capital Grants to People Non Profit,Economic and Business Response,KINGS LYNN & W NORFOLK BC,,,,236417671,2100306340,,Coastal Communities Fund,PE30 1EX,"33,176.00",Yes
"Housing, Communities & Local Government",MHCLG,12/06/2020,Capital Grants to People Non Profit,Economic and Business Response,NORTH DEVON DC,,,,236054946,2100306341,,Coastal Communities Fund,EX31 1EA,"675,000.00",Yes
"Housing, Communities & Local Government",MHCLG,12/06/2020,Capital Grants to People Non Profit,Economic and Business Response,NORTHUMBERLAND CC,,Large,,228141644,2100306342,,Coastal Communities Fund,NE61 2EF,"110,000.00",Yes
"Housing, Communities & Local Government",MHCLG,12/06/2020,Capital Grants to People Non Profit,Economic and Business Response,SOUTH LAKELAND DC,,Public Bodies,,,2100306344,,Coastal Communities Fund,LA9 4DQ,"1,190,575.00",Yes
"Housing, Communities & Local Government",MHCLG,12/06/2020,Capital Grants to People Non Profit,Economic and Business Response,SUFFOLK COASTAL& WAVENEY DC,,,,,2100306335,,Coastal Communities Fund,IP12 1RT,"504,597.00",Yes
"Housing, Communities & Local Government",MHCLG,12/06/2020,Capital Grants to People Non Profit,Economic and Business Response,SUFFOLK COASTAL& WAVENEY DC,,,,,2100306336,,Coastal Communities Fund,IP12 1RT,"409,000.00",Yes
"Housing, Communities & Local Government",MHCLG,12/06/2020,Capital Grants to People Non Profit,Economic and Business Response,SUNDERLAND CITY COUNCIL,,,,215599312,2100306345,,Coastal Communities Fund,SR2 7DN,"112,681.00",Yes
"Housing, Communities & Local Government",MHCLG,12/06/2020,Capital Grants to People Non Profit,Economic and Business Response,TORRIDGE DC,,,,,2100306346,,Coastal Communities Fund,EX39 2HT,"893,000.00",Yes
"Housing, Communities & Local Government",MHCLG,12/06/2020,Capital Grants to People Non Profit,Economic and Business Response,WESTSOMERSET&TAUNTON DEANE DC,,,,,2100306343,,Coastal Communities Fund,TA1 1HE,"3,084,937.00",Yes
"Housing, Communities & Local Government",MHCLG,12/06/2020,Capital Grants to People Non Profit,Economic and Business Response,WYRE BC,,,,424695609,2100306347,,Coastal Communities Fund,FY6 7PU,"58,000.00",Yes
"Housing, Communities & Local Government",MHCLG,12/06/2020,Current (non AEF) Grants to Local Authorities,Housing and Vulnerable People Responses,Amadudu??,,,,,3700062513,,Grant payable by the Exchequer,L17 3WU,"29,814.00",Yes
"Housing, Communities & Local Government",MHCLG,12/06/2020,Current (non AEF) Grants to Local Authorities,Housing and Vulnerable People Responses,ANAH PROJECT LTD,Yes,,,,3700062541,,Grant payable by the Exchequer,BD1 5YX,"20,000.00",Yes
"Housing, Communities & Local Government",MHCLG,12/06/2020,Current (non AEF) Grants to Local Authorities,Housing and Vulnerable People Responses,Bexley Women�s Aid,,,,,3700062539,,Grant payable by the Exchequer,DA7 4BS,"61,054.00",Yes
"Housing, Communities & Local Government",MHCLG,12/06/2020,Current (non AEF) Grants to Local Authorities,Housing and Vulnerable People Responses,Boston Women�s Aid,Yes,,,,3700062534,,Grant payable by the Exchequer,PE21 8JP,"61,464.00",Yes
"Housing, Communities & Local Government",MHCLG,12/06/2020,Current (non AEF) Grants to Local Authorities,Housing and Vulnerable People Responses,Cambridge Women�s Aid,Yes,,,,3700062516,,Grant payable by the Exchequer,CB1 2SN,"37,127.00",Yes
"Housing, Communities & Local Government",MHCLG,12/06/2020,Current (non AEF) Grants to Local Authorities,Housing and Vulnerable People Responses,Citizens Advice Stevenage,Yes,,,,3700062530,,Grant payable by the Exchequer,SG1 1HN,"74,342.00",Yes
"Housing, Communities & Local Government",MHCLG,12/06/2020,Current (non AEF) Grants to Local Authorities,Housing and Vulnerable People Responses,Dash Charity,,,,,3700062518,,Grant payable by the Exchequer,SL1 4PY,"24,760.00",Yes
"Housing, Communities & Local Government",MHCLG,12/06/2020,Current (non AEF) Grants to Local Authorities,Housing and Vulnerable People Responses,EVA Women�s Aid Ltd,Yes,,,,3700062526,,Grant payable by the Exchequer,TS10 3DL,"61,000.00",Yes
"Housing, Communities & Local Government",MHCLG,12/06/2020,Current (non AEF) Grants to Local Authorities,Housing and Vulnerable People Responses,FORTALICE LIMITED,,,,,3700062519,,Grant payable by the Exchequer,BL2 1HT,"100,112.00",Yes
"Housing, Communities & Local Government",MHCLG,12/06/2020,Current (non AEF) Grants to Local Authorities,Housing and Vulnerable People Responses,Gilgal Birmingham,,,,,3700062540,,Grant payable by the Exchequer,B90 2DL,"13,353.00",Yes
"Housing, Communities & Local Government",MHCLG,12/06/2020,Current (non AEF) Grants to Local Authorities,Housing and Vulnerable People Responses,GOOD NEWS FAMILY CARE,Yes,,,,3700062522,,Grant payable by the Exchequer,SK17 6PT,"25,700.00",Yes
"Housing, Communities & Local Government",MHCLG,12/06/2020,Current (non AEF) Grants to Local Authorities,Housing and Vulnerable People Responses,HARBOUR SUPPORT SERVICES,Yes,,,,3700062527,,Grant payable by the Exchequer,TS25 1QB,"94,927.00",Yes
"Housing, Communities & Local Government",MHCLG,12/06/2020,Current (non AEF) Grants to Local Authorities,Housing and Vulnerable People Responses,Hestia Housing and Support,,,,,3700062537,,Grant payable by the Exchequer,SE1 1LB,"98,292.00",Yes
"Housing, Communities & Local Government",MHCLG,12/06/2020,Current (non AEF) Grants to Local Authorities,Housing and Vulnerable People Responses,KIRAN SUPPORT SERVICES,Yes,,,,3700062525,,Grant payable by the Exchequer,E11 1AA,"25,245.00",Yes
"Housing, Communities & Local Government",MHCLG,12/06/2020,Current (non AEF) Grants to Local Authorities,Housing and Vulnerable People Responses,Muslim Welfare House Trust,Yes,,,,3700062532,,Grant payable by the Exchequer,N4 2DA,"74,959.00",Yes
"Housing, Communities & Local Government",MHCLG,12/06/2020,Current (non AEF) Grants to Local Authorities,Housing and Vulnerable People Responses,NEWARK WOMEN�S AID,,,,,3700062515,,Grant payable by the Exchequer,NG24 4WD,"30,356.00",Yes
"Housing, Communities & Local Government",MHCLG,12/06/2020,Current (non AEF) Grants to Local Authorities,Housing and Vulnerable People Responses,Next Chapter (East of England)??,,,,,3700062521,,Grant payable by the Exchequer,CO12XJ???,"234,316.00",Yes
"Housing, Communities & Local Government",MHCLG,12/06/2020,Current (non AEF) Grants to Local Authorities,Housing and Vulnerable People Responses,Northamptonshire Domestic Abuse Ser,,,,,3700062529,,Grant payable by the Exchequer,NN29 7RJ,"87,998.00",Yes
"Housing, Communities & Local Government",MHCLG,12/06/2020,Current (non AEF) Grants to Local Authorities,Housing and Vulnerable People Responses,Pankhurst Trust,,,,,3700062514,,Grant payable by the Exchequer,M13 9WP,"132,066.00",Yes
"Housing, Communities & Local Government",MHCLG,12/06/2020,Current (non AEF) Grants to Local Authorities,Housing and Vulnerable People Responses,Refuge,,,,,3700062543,,Grant payable by the Exchequer,E1W 1UN,"902,385.00",Yes
"Housing, Communities & Local Government",MHCLG,12/06/2020,Current (non AEF) Grants to Local Authorities,Housing and Vulnerable People Responses,REIGATE & BANSTEAD WOMEN'S AID,Yes,,,,3700062538,,Grant payable by the Exchequer,RH2 0AZ,"113,880.00",Yes
"Housing, Communities & Local Government",MHCLG,12/06/2020,Current (non AEF) Grants to Local Authorities,Housing and Vulnerable People Responses,Splitz Support Service,,,,,3700062524,,Grant payable by the Exchequer,BA14 0XG,"14,296.00",Yes
"Housing, Communities & Local Government",MHCLG,12/06/2020,Current (non AEF) Grants to Local Authorities,Housing and Vulnerable People Responses,Standing Together Against Domestic,,,,,3700062542,,Grant payable by the Exchequer,W6 0RF,"69,711.00",Yes
"Housing, Communities & Local Government",MHCLG,12/06/2020,Current (non AEF) Grants to Local Authorities,Housing and Vulnerable People Responses,Staying Put,,,,,3700062523,,Grant payable by the Exchequer,LS25 1AF,"120,207.00",Yes
"Housing, Communities & Local Government",MHCLG,12/06/2020,Current (non AEF) Grants to Local Authorities,Housing and Vulnerable People Responses,Stockport Without Abuse,,,,,3700062531,,Grant payable by the Exchequer,M4 1LE,"94,339.00",Yes
"Housing, Communities & Local Government",MHCLG,12/06/2020,Current (non AEF) Grants to Local Authorities,Housing and Vulnerable People Responses,Stonewall Housing Association,,,,,3700062517,,Grant payable by the Exchequer,N1 3QP,"60,460.00",Yes
"Housing, Communities & Local Government",MHCLG,12/06/2020,Current (non AEF) Grants to Local Authorities,Housing and Vulnerable People Responses,STOP DOMESTIC ABUSE,,,,,3700062544,,Grant payable by the Exchequer,PO0 1UA,"291,608.00",Yes
"Housing, Communities & Local Government",MHCLG,12/06/2020,Current (non AEF) Grants to Local Authorities,Housing and Vulnerable People Responses,Swindon Women�s Aid,,,,,3700062535,,Grant payable by the Exchequer,SN5 1BQ,"36,930.00",Yes
"Housing, Communities & Local Government",MHCLG,12/06/2020,Current (non AEF) Grants to Local Authorities,Housing and Vulnerable People Responses,Wirral Women & Children�s Aid,,,,,3700062536,,Grant payable by the Exchequer,CH424NT,"45,080.00",Yes
"Housing, Communities & Local Government",MHCLG,12/06/2020,Current (non AEF) Grants to Local Authorities,Housing and Vulnerable People Responses,Wycombe Women�s Aid Ltd,,,,,3700062520,,Grant payable by the Exchequer,HP11 9HP,"16,207.00",Yes
"Housing, Communities & Local Government",MHCLG,12/06/2020,Current (non AEF) Grants to Local Authorities,Housing and Vulnerable People Responses,YOU TRUST,,,,,3700062545,,Grant payable by the Exchequer,PO16 7BQ,"34,390.00",Yes
"Housing, Communities & Local Government",MHCLG,12/06/2020,Current (non AEF) Grants to Local Authorities,Housing and Vulnerable People Responses,Zinthiya Ganeshpanchan Trust,,,,,3700062528,,Grant payable by the Exchequer,LE1 6AF,"15,500.00",Yes
"Housing, Communities & Local Government",MHCLG,12/06/2020,Current Grants to Non Profit Bodies,Economic and Business Response,ADUR DC,,,,227472891,2100306348,,Coastal Communities Fund,BN11 1HA,"60,187.00",Yes
"Housing, Communities & Local Government",MHCLG,12/06/2020,Current Grants to Non Profit Bodies,Economic and Business Response,ARUN DISTRICT COUNCIL,,,,,2100306349,,Coastal Communities Fund,BN17 6SL,"93,738.00",Yes
"Housing, Communities & Local Government",MHCLG,12/06/2020,Current Grants to Non Profit Bodies,Economic and Business Response,BOURNEMOUTH BC&CHRISTCHURCH BC&POOL,,,,,2100306350,,Coastal Communities Fund,BH2 6DY,"121,600.00",Yes
"Housing, Communities & Local Government",MHCLG,12/06/2020,Current Grants to Non Profit Bodies,Economic and Business Response,CANTERBURY CITY COUNCIL,,Large,,,2100306351,,Coastal Communities Fund,CT1 1YW,"95,460.00",Yes
"Housing, Communities & Local Government",MHCLG,12/06/2020,Current Grants to Non Profit Bodies,Economic and Business Response,COPELAND BC,,,,,2100306352,,Coastal Communities Fund,CA28 7SJ,"82,819.00",Yes
"Housing, Communities & Local Government",MHCLG,12/06/2020,Current Grants to Non Profit Bodies,Economic and Business Response,COPELAND BC,,,,,2100306353,,Coastal Communities Fund,CA28 7SJ,"78,787.00",Yes
"Housing, Communities & Local Government",MHCLG,12/06/2020,Current Grants to Non Profit Bodies,Economic and Business Response,CORNWALL COUNTY COUNCIL,,Large,,211334404,2100306354,,Coastal Communities Fund,TR1 3AY,"358,736.00",Yes
"Housing, Communities & Local Government",MHCLG,12/06/2020,Current Grants to Non Profit Bodies,Economic and Business Response,ESSEX COUNTY COUNCIL,,Public Bodies,,233572986,2100306356,,Coastal Communities Fund,CM1 1JZ,"247,465.00",Yes
"Housing, Communities & Local Government",MHCLG,12/06/2020,Current Grants to Non Profit Bodies,Economic and Business Response,FOREST OF DEAN DC,,,,211278890,2100306357,,Coastal Communities Fund,GL16 8HG,"60,790.00",Yes
"Housing, Communities & Local Government",MHCLG,12/06/2020,Current Grants to Non Profit Bodies,Economic and Business Response,ISLE OF WIGHT COUNCIL,,,,232680157,2100306358,,Coastal Communities Fund,PO30 1UD,"10,000.00",Yes
"Housing, Communities & Local Government",MHCLG,12/06/2020,Current Grants to Non Profit Bodies,Economic and Business Response,ISLE OF WIGHT COUNCIL,,,,232680157,2100306359,,Coastal Communities Fund,PO30 1UD,"24,358.00",Yes
"Housing, Communities & Local Government",MHCLG,12/06/2020,Current Grants to Non Profit Bodies,Economic and Business Response,KINGS LYNN & W NORFOLK BC,,,,236417671,2100306360,,Coastal Communities Fund,PE30 1EX,"59,500.00",Yes
"Housing, Communities & Local Government",MHCLG,12/06/2020,Current Grants to Non Profit Bodies,Economic and Business Response,LINCOLNSHIRE CC,,Public Bodies,,213279305,2100306361,,Coastal Communities Fund,LN1 1YQ,"286,290.00",Yes
"Housing, Communities & Local Government",MHCLG,12/06/2020,Current Grants to Non Profit Bodies,Economic and Business Response,NORTHUMBERLAND CC,,Large,,228141644,2100306362,,Coastal Communities Fund,NE61 2EF,"86,000.00",Yes
"Housing, Communities & Local Government",MHCLG,12/06/2020,Current Grants to Non Profit Bodies,Economic and Business Response,SCARBOROUGH BC,,,,,2100306363,,Coastal Communities Fund,YO11 2HG,"230,027.84",Yes
"Housing, Communities & Local Government",MHCLG,12/06/2020,Current Grants to Non Profit Bodies,Economic and Business Response,SCARBOROUGH BC,,,,,2100306364,,Coastal Communities Fund,YO11 2HG,"51,500.00",Yes
"Housing, Communities & Local Government",MHCLG,12/06/2020,Current Grants to Non Profit Bodies,Economic and Business Response,SOUTH HAMS DC,,,,236445342,2100306365,,Coastal Communities Fund,TQ9 5NE,"7,250.00",Yes
"Housing, Communities & Local Government",MHCLG,12/06/2020,Current Grants to Non Profit Bodies,Economic and Business Response,SOUTH LAKELAND DC,,Public Bodies,,,2100306366,,Coastal Communities Fund,LA9 4DQ,"342,332.00",Yes
"Housing, Communities & Local Government",MHCLG,12/06/2020,Current Grants to Non Profit Bodies,Economic and Business Response,SOUTH TYNESIDE MBC,,Large,,210803024,2100306367,,Coastal Communities Fund,NE33 2RL,"19,540.00",Yes
"Housing, Communities & Local Government",MHCLG,12/06/2020,Current Grants to Non Profit Bodies,Economic and Business Response,SUFFOLK COASTAL& WAVENEY DC,,,,,2100306355,,Coastal Communities Fund,IP12 1RT,"111,629.00",Yes
"Housing, Communities & Local Government",MHCLG,12/06/2020,Current Grants to Non Profit Bodies,Economic and Business Response,SUFFOLK COUNTY COUNCIL,,Large,,236445243,2100306368,,Coastal Communities Fund,IP1 2BX,"172,043.81",Yes
"Housing, Communities & Local Government",MHCLG,12/06/2020,Current Grants to Non Profit Bodies,Economic and Business Response,SUNDERLAND CITY COUNCIL,,,,215599312,2100306369,,Coastal Communities Fund,SR2 7DN,"207,201.00",Yes
"Housing, Communities & Local Government",MHCLG,12/06/2020,Current Grants to Non Profit Bodies,Economic and Business Response,WYRE BC,,,,424695609,2100306370,,Coastal Communities Fund,FY6 7PU,"23,774.00",Yes
"Housing, Communities & Local Government",MHCLG,12/06/2020,ERDF Work in Progress � Capital,Economic and Business Response,PARK VALLEY HUDDERSFIELD LTD,,,,,7700006714,,ERDF grant payment,HD4 7BH,"146,967.92",Yes
"Housing, Communities & Local Government",MHCLG,12/06/2020,ERDF Work in Progress � Capital,Economic and Business Response,PROCURE PLUS LTD,,Medium,,,7700006717,,ERDF grant payment,M32 0FP,"23,731.81",Yes
"Housing, Communities & Local Government",MHCLG,12/06/2020,ERDF Work in Progress � Capital,Economic and Business Response,Real Ideas Organisation CIC,,,,,7700006718,,ERDF grant payment,PL1 4EL,"223,070.78",Yes
"Housing, Communities & Local Government",MHCLG,12/06/2020,ERDF Work in Progress � Capital,Economic and Business Response,SOUTH LAKELAND DICTRICT COUNCIL,,,,,7700006713,,ERDF grant payment,LA9 4DQ,"135,884.55",Yes
"Housing, Communities & Local Government",MHCLG,12/06/2020,ERDF Work in Progress � Resource,Economic and Business Response,CORNWALL COLLEGE,,,,,7700006716,,ERDF grant payment,PL25 4DJ,"229,773.40",Yes
"Housing, Communities & Local Government",MHCLG,12/06/2020,ERDF Work in Progress � Resource,Economic and Business Response,LANCASTER UNIVERISTY,,,,,7700006721,,ERDF grant payment,LA1 4YW,"142,371.75",Yes
"Housing, Communities & Local Government",MHCLG,12/06/2020,ERDF Work in Progress � Resource,Economic and Business Response,LIVERPOOL CITY REGION COMB AUTH,,,,,7700006715,,ERDF grant payment,L3 1FZ,"76,909.07",Yes
"Housing, Communities & Local Government",MHCLG,12/06/2020,ERDF Work in Progress � Resource,Economic and Business Response,OXFORD INNOVATION SERVICES LTD,,Medium,,,7700006712,,ERDF grant payment,OX1 1BY,"443,227.40",Yes
"Housing, Communities & Local Government",MHCLG,12/06/2020,ERDF Work in Progress � Resource,Economic and Business Response,OXFORD INNOVATION SERVICES LTD,,Medium,,,7700006719,,ERDF grant payment,OX1 1BY,"59,488.49",Yes
"Housing, Communities & Local Government",MHCLG,12/06/2020,ERDF Work in Progress � Resource,Economic and Business Response,OXFORD INNOVATION SERVICES LTD,,Medium,,,7700006720,,ERDF grant payment,OX1 1BY,"59,668.99",Yes
"Housing, Communities & Local Government",MHCLG,12/06/2020,ERDF Work in Progress � Resource,Economic and Business Response,PROCURE PLUS LTD,,Medium,,,7700006717,,ERDF grant payment,M32 0FP,"77,618.47",Yes
"Housing, Communities & Local Government",MHCLG,12/06/2020,ERDF Work in Progress � Resource,Economic and Business Response,Real Ideas Organisation CIC,,,,,7700006718,,ERDF grant payment,PL1 4EL,"18,494.60",Yes
"Housing, Communities & Local Government",MHCLG,12/06/2020,ERDF Work in Progress � Resource,Economic and Business Response,UNIVERSITY OF HULL,,Large,,,7700006710,,ERDF grant payment,HU6 7RX,"130,199.34",Yes
"Housing, Communities & Local Government",MHCLG,12/06/2020,ERDF Work in Progress � Resource,Economic and Business Response,UNIVERSITY OF HULL,,Large,,,7700006711,,ERDF grant payment,HU6 7RX,"114,004.84",Yes
"Housing, Communities & Local Government",MHCLG,12/06/2020,IT - Service Contracts,Corporate and GOLD Secretariat Cells,ARCUS GLOBAL LIMITED,,Medium,,,5106261103,IT Managed / Outsourced Services,ITMP AWS Hosting,CB4 2HY,"8,864.96",
"Housing, Communities & Local Government",MHCLG,12/06/2020,IT - Service Contracts,Economic and Business Response,CIVICA UK LTD,,Medium,,,5106261105,IT Managed / Outsourced Services,Despatch Box 2020/21,DY1 4TD,"4,216.67",
"Housing, Communities & Local Government",MHCLG,12/06/2020,Legal Fees,Corporate and GOLD Secretariat Cells,LANDMARK CHAMBERS,,Medium,,732521732,5106261043,Legal,Legal Advice,EC4A 2HG,750.00,
"Housing, Communities & Local Government",MHCLG,12/06/2020,Steady State Service Provision,Housing and Vulnerable People Responses,GROUNDWORK UK,Yes,,,739193758,5106260888,Business Process Outsourcing Services,Admin Costs for Neighbourhood Planning Support Contract,B1 2RR,"6,522.00",
"Housing, Communities & Local Government",MHCLG,15/06/2020,Agency Staff,Corporate and GOLD Secretariat Cells,ALEXANDER MANN SOLUTIONS LTD,,Large,,,5106261119,Contingent Labour,Interim Staff,EC2N 3AQ,"5,350.86",
"Housing, Communities & Local Government",MHCLG,15/06/2020,Agency Staff,Corporate and GOLD Secretariat Cells,ALEXANDER MANN SOLUTIONS LTD,,Large,,,5106261121,Contingent Labour,Temporary Admintrative Staff,EC2N 3AQ,"2,520.24",
"Housing, Communities & Local Government",MHCLG,15/06/2020,Agency Staff,Corporate and GOLD Secretariat Cells,ALEXANDER MANN SOLUTIONS LTD,,Large,,,5106261123,Contingent Labour,Interim Staff,EC2N 3AQ,"2,340.54",
"Housing, Communities & Local Government",MHCLG,15/06/2020,Agency Staff,Corporate and GOLD Secretariat Cells,ALEXANDER MANN SOLUTIONS LTD,,Large,,,5106261124,Contingent Labour,Interim Staff,EC2N 3AQ,"4,652.04",
"Housing, Communities & Local Government",MHCLG,15/06/2020,Agency Staff,Corporate and GOLD Secretariat Cells,ALEXANDER MANN SOLUTIONS LTD,,Large,,,5106261125,Contingent Labour,Interim Staff,EC2N 3AQ,"3,118.80",
"Housing, Communities & Local Government",MHCLG,15/06/2020,Agency Staff,Corporate and GOLD Secretariat Cells,ALEXANDER MANN SOLUTIONS LTD,,Large,,,5106261128,Contingent Labour,Interim Staff,EC2N 3AQ,"5,851.38",
"Housing, Communities & Local Government",MHCLG,15/06/2020,Agency Staff,Corporate and GOLD Secretariat Cells,ALEXANDER MANN SOLUTIONS LTD,,Large,,,5106261129,Contingent Labour,Interim Staff,EC2N 3AQ,"1,968.96",
"Housing, Communities & Local Government",MHCLG,15/06/2020,Agency Staff,Corporate and GOLD Secretariat Cells,ALEXANDER MANN SOLUTIONS LTD,,Large,,,5106261130,Contingent Labour,Interim Staff,EC2N 3AQ,"2,189.52",
"Housing, Communities & Local Government",MHCLG,15/06/2020,Agency Staff,Corporate and GOLD Secretariat Cells,ALEXANDER MANN SOLUTIONS LTD,,Large,,,5106261132,Contingent Labour,Interim Staff,EC2N 3AQ,"2,677.74",
"Housing, Communities & Local Government",MHCLG,15/06/2020,Agency Staff,Corporate and GOLD Secretariat Cells,ALEXANDER MANN SOLUTIONS LTD,,Large,,,5106261138,Contingent Labour,Interim Staff,EC2N 3AQ,"3,067.86",
"Housing, Communities & Local Government",MHCLG,15/06/2020,Agency Staff,Corporate and GOLD Secretariat Cells,ALEXANDER MANN SOLUTIONS LTD,,Large,,,5106261139,Contingent Labour,Interim Staff,EC2N 3AQ,"1,539.82",
"Housing, Communities & Local Government",MHCLG,15/06/2020,Agency Staff,Corporate and GOLD Secretariat Cells,ALEXANDER MANN SOLUTIONS LTD,,Large,,,5106261142,Contingent Labour,Interim Staff,EC2N 3AQ,"5,389.38",
"Housing, Communities & Local Government",MHCLG,15/06/2020,Agency Staff,Corporate and GOLD Secretariat Cells,ALEXANDER MANN SOLUTIONS LTD,,Large,,,5106261144,Contingent Labour,Interim Staff,EC2N 3AQ,"4,003.56",
"Housing, Communities & Local Government",MHCLG,15/06/2020,Agency Staff,Corporate and GOLD Secretariat Cells,ALEXANDER MANN SOLUTIONS LTD,,Large,,,5106261146,Contingent Labour,Interim Staff,EC2N 3AQ,"3,464.58",
"Housing, Communities & Local Government",MHCLG,15/06/2020,Agency Staff,Corporate and GOLD Secretariat Cells,ALEXANDER MANN SOLUTIONS LTD,,Large,,,5106261147,Contingent Labour,Interim Staff,EC2N 3AQ,"3,323.51",
"Housing, Communities & Local Government",MHCLG,15/06/2020,Agency Staff,Corporate and GOLD Secretariat Cells,ALEXANDER MANN SOLUTIONS LTD,,Large,,,5106261152,Contingent Labour,Interim Staff,EC2N 3AQ,"3,323.52",
"Housing, Communities & Local Government",MHCLG,15/06/2020,Agency Staff,Corporate and GOLD Secretariat Cells,ALEXANDER MANN SOLUTIONS LTD,,Large,,,5106261158,Contingent Labour,Temporary Adminstartratvie Staff,EC2N 3AQ,"5,387.04",
"Housing, Communities & Local Government",MHCLG,15/06/2020,Agency Staff,Corporate and GOLD Secretariat Cells,ALEXANDER MANN SOLUTIONS LTD,,Large,,,5106261160,Contingent Labour,Temporary Adminstartratvie Staff,EC2N 3AQ,"5,387.04",
"Housing, Communities & Local Government",MHCLG,15/06/2020,Agency Staff,Economic and Business Response,ALEXANDER MANN SOLUTIONS LTD,,Large,,,5106261141,Contingent Labour,contingent labour,EC2N 3AQ,586.66,
"Housing, Communities & Local Government",MHCLG,15/06/2020,Agency Staff,Economic and Business Response,ALEXANDER MANN SOLUTIONS LTD,,Large,,,5106261145,Contingent Labour,contingent labour,EC2N 3AQ,"1,025.53",
"Housing, Communities & Local Government",MHCLG,15/06/2020,Agency Staff,Economic and Business Response,ALEXANDER MANN SOLUTIONS LTD,,Large,,,5106261170,Contingent Labour,contingent labour,EC2N 3AQ,977.76,
"Housing, Communities & Local Government",MHCLG,15/06/2020,Agency Staff,Economic and Business Response,ALEXANDER MANN SOLUTIONS LTD,,Large,,,5106261172,Contingent Labour,contingent labour,EC2N 3AQ,977.76,
"Housing, Communities & Local Government",MHCLG,15/06/2020,Agency Staff,Emergency Response,ALEXANDER MANN SOLUTIONS LTD,,Large,,,5106261140,Contingent Labour,Interim Staff,EC2N 3AQ,"3,420.88",
"Housing, Communities & Local Government",MHCLG,15/06/2020,Agency Staff,Emergency Response,ALEXANDER MANN SOLUTIONS LTD,,Large,,,5106261143,Contingent Labour,Interim Staff,EC2N 3AQ,"1,016.28",
"Housing, Communities & Local Government",MHCLG,15/06/2020,Agency Staff,Housing and Vulnerable People Responses,ALEXANDER MANN SOLUTIONS LTD,,Large,,,5106261122,Contingent Labour,Short term policy backfill contractor,EC2N 3AQ,"4,003.56",
"Housing, Communities & Local Government",MHCLG,15/06/2020,Agency Staff,Housing and Vulnerable People Responses,ALEXANDER MANN SOLUTIONS LTD,,Large,,,5106261126,Contingent Labour,Short term policy backfill contractor,EC2N 3AQ,"3,811.86",
"Housing, Communities & Local Government",MHCLG,15/06/2020,Agency Staff,Housing and Vulnerable People Responses,ALEXANDER MANN SOLUTIONS LTD,,Large,,,5106261127,Contingent Labour,Short term programme backfill contractor,EC2N 3AQ,"2,835.24",
"Housing, Communities & Local Government",MHCLG,15/06/2020,Agency Staff,Housing and Vulnerable People Responses,ALEXANDER MANN SOLUTIONS LTD,,Large,,,5106261148,Contingent Labour,Short term policy backfill contractor,EC2N 3AQ,"1,323.12",
"Housing, Communities & Local Government",MHCLG,15/06/2020,Agency Staff,Housing and Vulnerable People Responses,ALEXANDER MANN SOLUTIONS LTD,,Large,,,5106261149,Not Addressable,Short term programme backfill contractor,EC2N 3AQ,"3,233.64",
"Housing, Communities & Local Government",MHCLG,15/06/2020,Agency Staff,Economic and Business Response,ALEXANDER MANN SOLUTIONS LTD,,Large,,,5106261120,Contingent Labour,Specialist Contractor ,EC2N 3AQ,"1,822.20",
"Housing, Communities & Local Government",MHCLG,15/06/2020,Cap Grants to Local Authorities (DEL),Corporate and GOLD Secretariat Cells,WATES PROPERTY SERVICES LTD,,Large,,,5106261099,Business Process Outsourcing Services,Specialist Contractors for Grenfell,EN1 3XA,"570,000.00",Yes
"Housing, Communities & Local Government",MHCLG,15/06/2020,Cap Grants to Private Sector Companies,Corporate and GOLD Secretariat Cells,ACADEMY CONSULTING SOLUTIONS LTD,,Small,,423486641,5106261117,Business Process Outsourcing Services,Academy Consultants,TN2 5AL,"4,158.00",Yes
"Housing, Communities & Local Government",MHCLG,15/06/2020,Cap Grants to Private Sector Companies,Corporate and GOLD Secretariat Cells,FAITHFUL&GOULD LTD,,Large,,,5106261157,Consultancy,Grenfell Construction Capability,KT18 5BW,"34,256.45",Yes
"Housing, Communities & Local Government",MHCLG,15/06/2020,Current (non AEF) Grants to Local Authorities,Emergency Response,ADUR DC,,,,227472891,3700062086,,Grant payable by the Exchequer,BN11 1HA,"296,213.00",Yes
"Housing, Communities & Local Government",MHCLG,15/06/2020,Current (non AEF) Grants to Local Authorities,Emergency Response,ADUR DC,,,,227472891,3700062124,,Grant payable by the Exchequer,BN11 1HA,"1,976.00",Yes
"Housing, Communities & Local Government",MHCLG,15/06/2020,Current (non AEF) Grants to Local Authorities,Emergency Response,ALLERDALE BOROUGH COUNCIL,,,,230824120,3700061830,,Grant payable by the Exchequer,CA14 3YJ,"563,450.00",Yes
"Housing, Communities & Local Government",MHCLG,15/06/2020,Current (non AEF) Grants to Local Authorities,Emergency Response,ALLERDALE BOROUGH COUNCIL,,,,230824120,3700062035,,Grant payable by the Exchequer,CA14 3YJ,"1,409.00",Yes
"Housing, Communities & Local Government",MHCLG,15/06/2020,Current (non AEF) Grants to Local Authorities,Emergency Response,AMBER VALLEY BC,,,,,3700061857,,Grant payable by the Exchequer,DE5 3BT,"4,761.00",Yes
"Housing, Communities & Local Government",MHCLG,15/06/2020,Current (non AEF) Grants to Local Authorities,Emergency Response,AMBER VALLEY BC,,,,,3700062183,,Grant payable by the Exchequer,DE5 3BT,"424,709.00",Yes
"Housing, Communities & Local Government",MHCLG,15/06/2020,Current (non AEF) Grants to Local Authorities,Emergency Response,ARUN DC,,,,211217668,3700061984,,Grant payable by the Exchequer,BN17 5LF,"754,805.00",Yes
"Housing, Communities & Local Government",MHCLG,15/06/2020,Current (non AEF) Grants to Local Authorities,Emergency Response,ARUN DC,,,,211217668,3700062273,,Grant payable by the Exchequer,BN17 5LF,"5,791.00",Yes
"Housing, Communities & Local Government",MHCLG,15/06/2020,Current (non AEF) Grants to Local Authorities,Emergency Response,ASHFIELD DC,,,,235415296,3700062294,,Grant payable by the Exchequer,NG17 8DA,"5,757.00",Yes
"Housing, Communities & Local Government",MHCLG,15/06/2020,Current (non AEF) Grants to Local Authorities,Emergency Response,ASHFIELD DC,,,,235415296,3700062493,,Grant payable by the Exchequer,NG17 8DA,"382,140.00",Yes
"Housing, Communities & Local Government",MHCLG,15/06/2020,Current (non AEF) Grants to Local Authorities,Emergency Response,ASHFORD BC,,,,229467071,3700062119,,Grant payable by the Exchequer,TN23 1PL,"1,076,708.00",Yes
"Housing, Communities & Local Government",MHCLG,15/06/2020,Current (non AEF) Grants to Local Authorities,Emergency Response,ASHFORD BC,,,,229467071,3700062474,,Grant payable by the Exchequer,TN23 1PL,"3,860.00",Yes
"Housing, Communities & Local Government",MHCLG,15/06/2020,Current (non AEF) Grants to Local Authorities,Emergency Response,BABERGH DC,,,,232618405,3700062057,,Grant payable by the Exchequer,IP7 6SJ,"407,638.00",Yes
"Housing, Communities & Local Government",MHCLG,15/06/2020,Current (non AEF) Grants to Local Authorities,Emergency Response,BABERGH DC,,,,232618405,3700062427,,Grant payable by the Exchequer,IP7 6SJ,"6,520.00",Yes
"Housing, Communities & Local Government",MHCLG,15/06/2020,Current (non AEF) Grants to Local Authorities,Emergency Response,BARKING & DAGENHAM LB,,Public Bodies,,227419488,3700061802,,Grant payable by the Exchequer,RM10 7BY,"18,026.00",Yes
"Housing, Communities & Local Government",MHCLG,15/06/2020,Current (non AEF) Grants to Local Authorities,Emergency Response,BARKING & DAGENHAM LB,,Public Bodies,,227419488,3700061868,,Grant payable by the Exchequer,RM10 7BY,"698,337.00",Yes
"Housing, Communities & Local Government",MHCLG,15/06/2020,Current (non AEF) Grants to Local Authorities,Emergency Response,BARNET LBC,,,,211049507,3700062172,,Grant payable by the Exchequer,N11 1NP,"43,286.00",Yes
"Housing, Communities & Local Government",MHCLG,15/06/2020,Current (non AEF) Grants to Local Authorities,Emergency Response,BARNET LBC,,,,211049507,3700062278,,Grant payable by the Exchequer,N11 1NP,"3,895,388.00",Yes
"Housing, Communities & Local Government",MHCLG,15/06/2020,Current (non AEF) Grants to Local Authorities,Emergency Response,BARNSLEY MBC,,Public Bodies,,211178595,3700061970,,Grant payable by the Exchequer,S70 2AQ,"732,061.00",Yes
"Housing, Communities & Local Government",MHCLG,15/06/2020,Current (non AEF) Grants to Local Authorities,Emergency Response,BARNSLEY MBC,,Public Bodies,,211178595,3700062034,,Grant payable by the Exchequer,S70 2AQ,"5,233.00",Yes
"Housing, Communities & Local Government",MHCLG,15/06/2020,Current (non AEF) Grants to Local Authorities,Emergency Response,BARROW BC,,,,295632913,3700062142,,Grant payable by the Exchequer,LA14 2LD,"2,306.00",Yes
"Housing, Communities & Local Government",MHCLG,15/06/2020,Current (non AEF) Grants to Local Authorities,Emergency Response,BARROW BC,,,,295632913,3700062494,,Grant payable by the Exchequer,LA14 2LD,"172,235.00",Yes
"Housing, Communities & Local Government",MHCLG,15/06/2020,Current (non AEF) Grants to Local Authorities,Emergency Response,BASILDON DC,,,,,3700061939,,Grant payable by the Exchequer,SS14 0DF,"1,232,072.00",Yes
"Housing, Communities & Local Government",MHCLG,15/06/2020,Current (non AEF) Grants to Local Authorities,Emergency Response,BASILDON DC,,,,,3700062495,,Grant payable by the Exchequer,SS14 0DF,"6,136.00",Yes
"Housing, Communities & Local Government",MHCLG,15/06/2020,Current (non AEF) Grants to Local Authorities,Emergency Response,BASINGSTOKE & DEANE BC,,,,228328506,3700062134,,Grant payable by the Exchequer,RG21 2AJ,"1,066,930.00",Yes
"Housing, Communities & Local Government",MHCLG,15/06/2020,Current (non AEF) Grants to Local Authorities,Emergency Response,BASINGSTOKE & DEANE BC,,,,228328506,3700062222,,Grant payable by the Exchequer,RG21 2AJ,"24,817.00",Yes
"Housing, Communities & Local Government",MHCLG,15/06/2020,Current (non AEF) Grants to Local Authorities,Emergency Response,BASSETLAW DC,,,,230225054,3700062092,,Grant payable by the Exchequer,S80 2AH,"9,166.00",Yes
"Housing, Communities & Local Government",MHCLG,15/06/2020,Current (non AEF) Grants to Local Authorities,Emergency Response,BASSETLAW DC,,,,230225054,3700062211,,Grant payable by the Exchequer,S80 2AH,"487,861.00",Yes
"Housing, Communities & Local Government",MHCLG,15/06/2020,Current (non AEF) Grants to Local Authorities,Emergency Response,BATH & NORTH EAST SOMERSET DC,,,,214502499,3700061945,,Grant payable by the Exchequer,BA1 5AW,"3,406,038.00",Yes
"Housing, Communities & Local Government",MHCLG,15/06/2020,Current (non AEF) Grants to Local Authorities,Emergency Response,BATH & NORTH EAST SOMERSET DC,,,,214502499,3700062451,,Grant payable by the Exchequer,BA1 5AW,"18,520.00",Yes
"Housing, Communities & Local Government",MHCLG,15/06/2020,Current (non AEF) Grants to Local Authorities,Emergency Response,BEDFORD BOROUGH COUNCIL,,,,211166889,3700062227,,Grant payable by the Exchequer,MK40 1SJ,"1,018,304.00",Yes
"Housing, Communities & Local Government",MHCLG,15/06/2020,Current (non AEF) Grants to Local Authorities,Emergency Response,BEDFORD BOROUGH COUNCIL,,,,211166889,3700062510,,Grant payable by the Exchequer,MK40 1SJ,"11,721.00",Yes
"Housing, Communities & Local Government",MHCLG,15/06/2020,Current (non AEF) Grants to Local Authorities,Emergency Response,BEXLEY LB,,,,,3700062016,,Grant payable by the Exchequer,DA8 1TL,"15,508.00",Yes
"Housing, Communities & Local Government",MHCLG,15/06/2020,Current (non AEF) Grants to Local Authorities,Emergency Response,BEXLEY LB,,,,,3700062442,,Grant payable by the Exchequer,DA8 1TL,"1,543,990.00",Yes
"Housing, Communities & Local Government",MHCLG,15/06/2020,Current (non AEF) Grants to Local Authorities,Emergency Response,BIRMINGHAM CITY CNCL,,,,213780559,3700061892,,Grant payable by the Exchequer,B3 3AB,"13,583,976.00",Yes
"Housing, Communities & Local Government",MHCLG,15/06/2020,Current (non AEF) Grants to Local Authorities,Emergency Response,BIRMINGHAM CITY CNCL,,,,213780559,3700062097,,Grant payable by the Exchequer,B3 3AB,"203,766.00",Yes
"Housing, Communities & Local Government",MHCLG,15/06/2020,Current (non AEF) Grants to Local Authorities,Emergency Response,BLABY DC,,,,,3700062313,,Grant payable by the Exchequer,LE9 5EP,"817,768.00",Yes
"Housing, Communities & Local Government",MHCLG,15/06/2020,Current (non AEF) Grants to Local Authorities,Emergency Response,BLABY DC,,,,,3700062408,,Grant payable by the Exchequer,LE9 5EP,"8,701.00",Yes
"Housing, Communities & Local Government",MHCLG,15/06/2020,Current (non AEF) Grants to Local Authorities,Emergency Response,BLACKBURN WITH DARWEN BC,,,,,3700062384,,Grant payable by the Exchequer,BB1 7DY,"9,618.00",Yes
"Housing, Communities & Local Government",MHCLG,15/06/2020,Current (non AEF) Grants to Local Authorities,Emergency Response,BLACKBURN WITH DARWEN BC,,,,,3700062391,,Grant payable by the Exchequer,BB1 7DY,"670,470.00",Yes
"Housing, Communities & Local Government",MHCLG,15/06/2020,Current (non AEF) Grants to Local Authorities,Emergency Response,BLACKPOOL BC,,,,,3700061909,,Grant payable by the Exchequer,FY1 1NA,"5,463.00",Yes
"Housing, Communities & Local Government",MHCLG,15/06/2020,Current (non AEF) Grants to Local Authorities,Emergency Response,BLACKPOOL BC,,,,,3700062000,,Grant payable by the Exchequer,FY1 1NA,"1,189,922.00",Yes
"Housing, Communities & Local Government",MHCLG,15/06/2020,Current (non AEF) Grants to Local Authorities,Emergency Response,BOLSOVER DC,,Large,,235516523,3700062260,,Grant payable by the Exchequer,S43 4JY,"1,977.00",Yes
"Housing, Communities & Local Government",MHCLG,15/06/2020,Current (non AEF) Grants to Local Authorities,Emergency Response,BOLSOVER DC,,Large,,235516523,3700062299,,Grant payable by the Exchequer,S43 4JY,"282,797.00",Yes
"Housing, Communities & Local Government",MHCLG,15/06/2020,Current (non AEF) Grants to Local Authorities,Emergency Response,BOLTON MBC,,,,,3700062146,,Grant payable by the Exchequer,BL1 1RU,"2,978,454.00",Yes
"Housing, Communities & Local Government",MHCLG,15/06/2020,Current (non AEF) Grants to Local Authorities,Emergency Response,BOLTON MBC,,,,,3700062335,,Grant payable by the Exchequer,BL1 1RU,"33,898.00",Yes
"Housing, Communities & Local Government",MHCLG,15/06/2020,Current (non AEF) Grants to Local Authorities,Emergency Response,BOSTON BC,,,,236417713,3700062041,,Grant payable by the Exchequer,PE21 8QR,"4,910.00",Yes
"Housing, Communities & Local Government",MHCLG,15/06/2020,Current (non AEF) Grants to Local Authorities,Emergency Response,BOSTON BC,,,,236417713,3700062144,,Grant payable by the Exchequer,PE21 8QR,"365,843.00",Yes
"Housing, Communities & Local Government",MHCLG,15/06/2020,Current (non AEF) Grants to Local Authorities,Emergency Response,"Bournemouth, Christchurch and Poole",,,,,3700061914,,Grant payable by the Exchequer,BH2 6DY,"3,237,724.00",Yes
"Housing, Communities & Local Government",MHCLG,15/06/2020,Current (non AEF) Grants to Local Authorities,Emergency Response,"Bournemouth, Christchurch and Poole",,,,,3700062255,,Grant payable by the Exchequer,BH2 6DY,"23,647.00",Yes
"Housing, Communities & Local Government",MHCLG,15/06/2020,Current (non AEF) Grants to Local Authorities,Emergency Response,BRACKNELL FOREST DC,,,,236184867,3700062247,,Grant payable by the Exchequer,RG12 1JD,"1,076,597.00",Yes
"Housing, Communities & Local Government",MHCLG,15/06/2020,Current (non AEF) Grants to Local Authorities,Emergency Response,BRACKNELL FOREST DC,,,,236184867,3700062398,,Grant payable by the Exchequer,RG12 1JD,"9,952.00",Yes
"Housing, Communities & Local Government",MHCLG,15/06/2020,Current (non AEF) Grants to Local Authorities,Emergency Response,BRADFORD MBC,,,,,3700062023,,Grant payable by the Exchequer,BD1 1HX,"1,848,645.00",Yes
"Housing, Communities & Local Government",MHCLG,15/06/2020,Current (non AEF) Grants to Local Authorities,Emergency Response,BRADFORD MBC,,,,,3700062120,,Grant payable by the Exchequer,BD1 1HX,"40,832.00",Yes
"Housing, Communities & Local Government",MHCLG,15/06/2020,Current (non AEF) Grants to Local Authorities,Emergency Response,BRAINTREE DC,,,,226941730,3700061847,,Grant payable by the Exchequer,CM7 9HB,"8,145.00",Yes
"Housing, Communities & Local Government",MHCLG,15/06/2020,Current (non AEF) Grants to Local Authorities,Emergency Response,BRAINTREE DC,,,,226941730,3700062447,,Grant payable by the Exchequer,CM7 9HB,"645,869.00",Yes
"Housing, Communities & Local Government",MHCLG,15/06/2020,Current (non AEF) Grants to Local Authorities,Emergency Response,BRECKLAND DC,,,,232611384,3700061824,,Grant payable by the Exchequer,NR19 1EE,"506,235.00",Yes
"Housing, Communities & Local Government",MHCLG,15/06/2020,Current (non AEF) Grants to Local Authorities,Emergency Response,BRECKLAND DC,,,,232611384,3700062005,,Grant payable by the Exchequer,NR19 1EE,"6,275.00",Yes
"Housing, Communities & Local Government",MHCLG,15/06/2020,Current (non AEF) Grants to Local Authorities,Emergency Response,BRENT LB,,,,,3700061962,,Grant payable by the Exchequer,HA9 9EZ,"19,212.00",Yes
"Housing, Communities & Local Government",MHCLG,15/06/2020,Current (non AEF) Grants to Local Authorities,Emergency Response,BRENT LB,,,,,3700062483,,Grant payable by the Exchequer,HA9 9EZ,"2,617,011.00",Yes
"Housing, Communities & Local Government",MHCLG,15/06/2020,Current (non AEF) Grants to Local Authorities,Emergency Response,BRENTWOOD BC,,,,227473188,3700062084,,Grant payable by the Exchequer,CM15 8AY,"436,784.00",Yes
"Housing, Communities & Local Government",MHCLG,15/06/2020,Current (non AEF) Grants to Local Authorities,Emergency Response,BRENTWOOD BC,,,,227473188,3700062317,,Grant payable by the Exchequer,CM15 8AY,"5,660.00",Yes
"Housing, Communities & Local Government",MHCLG,15/06/2020,Current (non AEF) Grants to Local Authorities,Emergency Response,BRIGHTON & HOVE CITY COUNCIL,,Large,,228455218,3700062281,,Grant payable by the Exchequer,BN1 3JE,"33,531.00",Yes
"Housing, Communities & Local Government",MHCLG,15/06/2020,Current (non AEF) Grants to Local Authorities,Emergency Response,BRIGHTON & HOVE CITY COUNCIL,,Large,,228455218,3700062461,,Grant payable by the Exchequer,BN1 3JE,"2,659,960.00",Yes
"Housing, Communities & Local Government",MHCLG,15/06/2020,Current (non AEF) Grants to Local Authorities,Emergency Response,BRISTOL CITY CNCL,,,,211103882,3700062411,,Grant payable by the Exchequer,BS99 7BL,"5,889,373.00",Yes
"Housing, Communities & Local Government",MHCLG,15/06/2020,Current (non AEF) Grants to Local Authorities,Emergency Response,BRISTOL CITY CNCL,,,,211103882,3700062478,,Grant payable by the Exchequer,BS99 7BL,"72,838.00",Yes
"Housing, Communities & Local Government",MHCLG,15/06/2020,Current (non AEF) Grants to Local Authorities,Emergency Response,BROADLAND DC,,,,219737785,3700061821,,Grant payable by the Exchequer,NR7 0DU,"5,456.00",Yes
"Housing, Communities & Local Government",MHCLG,15/06/2020,Current (non AEF) Grants to Local Authorities,Emergency Response,BROADLAND DC,,,,219737785,3700062242,,Grant payable by the Exchequer,NR7 0DU,"529,994.00",Yes
"Housing, Communities & Local Government",MHCLG,15/06/2020,Current (non AEF) Grants to Local Authorities,Emergency Response,BROMLEY LB,,,,211331954,3700061853,,Grant payable by the Exchequer,BR1 3UH,"45,969.00",Yes
"Housing, Communities & Local Government",MHCLG,15/06/2020,Current (non AEF) Grants to Local Authorities,Emergency Response,BROMLEY LB,,,,211331954,3700061889,,Grant payable by the Exchequer,BR1 3UH,"2,809,106.00",Yes
"Housing, Communities & Local Government",MHCLG,15/06/2020,Current (non AEF) Grants to Local Authorities,Emergency Response,BROMSGROVE DC,,,,236654745,3700061936,,Grant payable by the Exchequer,B60 1AA,"390,518.00",Yes
"Housing, Communities & Local Government",MHCLG,15/06/2020,Current (non AEF) Grants to Local Authorities,Emergency Response,BROMSGROVE DC,,,,236654745,3700062298,,Grant payable by the Exchequer,B60 1AA,"9,255.00",Yes
"Housing, Communities & Local Government",MHCLG,15/06/2020,Current (non AEF) Grants to Local Authorities,Emergency Response,BROXBOURNE BOROUGH COUNCIL,,,,239931918,3700062154,,Grant payable by the Exchequer,EN8 9XQ,"6,439.00",Yes
"Housing, Communities & Local Government",MHCLG,15/06/2020,Current (non AEF) Grants to Local Authorities,Emergency Response,BROXBOURNE BOROUGH COUNCIL,,,,239931918,3700062353,,Grant payable by the Exchequer,EN8 9XQ,"511,896.00",Yes
"Housing, Communities & Local Government",MHCLG,15/06/2020,Current (non AEF) Grants to Local Authorities,Emergency Response,BROXTOWE BC,,,,239877640,3700062205,,Grant payable by the Exchequer,NG9 1AB,"8,499.00",Yes
"Housing, Communities & Local Government",MHCLG,15/06/2020,Current (non AEF) Grants to Local Authorities,Emergency Response,BROXTOWE BC,,,,239877640,3700062290,,Grant payable by the Exchequer,NG9 1AB,"662,272.00",Yes
"Housing, Communities & Local Government",MHCLG,15/06/2020,Current (non AEF) Grants to Local Authorities,Emergency Response,Buckinghamshire Council,,,,,3700062252,,Grant payable by the Exchequer,HP19 8FF,"3,037,979.00",Yes
"Housing, Communities & Local Government",MHCLG,15/06/2020,Current (non AEF) Grants to Local Authorities,Emergency Response,Buckinghamshire Council,,,,,3700062279,,Grant payable by the Exchequer,HP19 8FF,"61,151.00",Yes
"Housing, Communities & Local Government",MHCLG,15/06/2020,Current (non AEF) Grants to Local Authorities,Emergency Response,BURNLEY BC,,,,229413281,3700062053,,Grant payable by the Exchequer,BB11 1JA,"458,288.00",Yes
"Housing, Communities & Local Government",MHCLG,15/06/2020,Current (non AEF) Grants to Local Authorities,Emergency Response,BURNLEY BC,,,,229413281,3700062432,,Grant payable by the Exchequer,BB11 1JA,"4,125.00",Yes
"Housing, Communities & Local Government",MHCLG,15/06/2020,Current (non AEF) Grants to Local Authorities,Emergency Response,BURY MBC,,,,236491114,3700061859,,Grant payable by the Exchequer,BL9 0SP,"28,868.00",Yes
"Housing, Communities & Local Government",MHCLG,15/06/2020,Current (non AEF) Grants to Local Authorities,Emergency Response,BURY MBC,,,,236491114,3700062117,,Grant payable by the Exchequer,BL9 0SP,"1,856,060.00",Yes
"Housing, Communities & Local Government",MHCLG,15/06/2020,Current (non AEF) Grants to Local Authorities,Emergency Response,CALDERDALE MBC,,Public Bodies,,,3700061811,,Grant payable by the Exchequer,HX1 1YP,"8,486.00",Yes
"Housing, Communities & Local Government",MHCLG,15/06/2020,Current (non AEF) Grants to Local Authorities,Emergency Response,CALDERDALE MBC,,Public Bodies,,,3700061937,,Grant payable by the Exchequer,HX1 1YP,"222,512.00",Yes
"Housing, Communities & Local Government",MHCLG,15/06/2020,Current (non AEF) Grants to Local Authorities,Emergency Response,CAMBRIDGE CITY COUNCIL,,,,210357534,3700062437,,Grant payable by the Exchequer,CB1 0JH,"23,999.00",Yes
"Housing, Communities & Local Government",MHCLG,15/06/2020,Current (non AEF) Grants to Local Authorities,Emergency Response,CAMBRIDGE CITY COUNCIL,,,,210357534,3700062456,,Grant payable by the Exchequer,CB1 0JH,"2,066,703.00",Yes
"Housing, Communities & Local Government",MHCLG,15/06/2020,Current (non AEF) Grants to Local Authorities,Emergency Response,CAMDEN LONDON BOROUGH,,,,,3700062133,,Grant payable by the Exchequer,WC1H 8NG,"26,244.00",Yes
"Housing, Communities & Local Government",MHCLG,15/06/2020,Current (non AEF) Grants to Local Authorities,Emergency Response,CAMDEN LONDON BOROUGH,,,,,3700062169,,Grant payable by the Exchequer,WC1H 8NG,"10,386,265.00",Yes
"Housing, Communities & Local Government",MHCLG,15/06/2020,Current (non AEF) Grants to Local Authorities,Emergency Response,CANNOCK CHASE DC,,,,215064770,3700061929,,Grant payable by the Exchequer,WS11 1BG,"1,653.00",Yes
"Housing, Communities & Local Government",MHCLG,15/06/2020,Current (non AEF) Grants to Local Authorities,Emergency Response,CANNOCK CHASE DC,,,,215064770,3700062040,,Grant payable by the Exchequer,WS11 1BG,"569,213.00",Yes
"Housing, Communities & Local Government",MHCLG,15/06/2020,Current (non AEF) Grants to Local Authorities,Emergency Response,CANTERBURY CITY CNCL,,,,,3700062008,,Grant payable by the Exchequer,CT1 1YW,"1,338,924.00",Yes
"Housing, Communities & Local Government",MHCLG,15/06/2020,Current (non AEF) Grants to Local Authorities,Emergency Response,CANTERBURY CITY CNCL,,,,,3700062204,,Grant payable by the Exchequer,CT1 1YW,"4,422.00",Yes
"Housing, Communities & Local Government",MHCLG,15/06/2020,Current (non AEF) Grants to Local Authorities,Emergency Response,CARLISLE CITY CNCL,,,,227471059,3700061812,,Grant payable by the Exchequer,CA3 8QG,"4,032.00",Yes
"Housing, Communities & Local Government",MHCLG,15/06/2020,Current (non AEF) Grants to Local Authorities,Emergency Response,CARLISLE CITY CNCL,,,,227471059,3700062062,,Grant payable by the Exchequer,CA3 8QG,"898,863.00",Yes
"Housing, Communities & Local Government",MHCLG,15/06/2020,Current (non AEF) Grants to Local Authorities,Emergency Response,CASTLE POINT BC,,Public Bodies,,228217931,3700062329,,Grant payable by the Exchequer,SS7 1TF,"324,053.00",Yes
"Housing, Communities & Local Government",MHCLG,15/06/2020,Current (non AEF) Grants to Local Authorities,Emergency Response,CASTLE POINT BC,,Public Bodies,,228217931,3700062489,,Grant payable by the Exchequer,SS7 1TF,"3,199.00",Yes
"Housing, Communities & Local Government",MHCLG,15/06/2020,Current (non AEF) Grants to Local Authorities,Emergency Response,CENTRAL BEDFORDSHIRE COUNCIL,,,,232624882,3700062036,,Grant payable by the Exchequer,SG17 5TQ,"1,003,424.00",Yes
"Housing, Communities & Local Government",MHCLG,15/06/2020,Current (non AEF) Grants to Local Authorities,Emergency Response,CENTRAL BEDFORDSHIRE COUNCIL,,,,232624882,3700062484,,Grant payable by the Exchequer,SG17 5TQ,"16,101.00",Yes
"Housing, Communities & Local Government",MHCLG,15/06/2020,Current (non AEF) Grants to Local Authorities,Emergency Response,CHARNWOOD BC,,,,,3700061848,,Grant payable by the Exchequer,LE11 2TU,"720,535.00",Yes
"Housing, Communities & Local Government",MHCLG,15/06/2020,Current (non AEF) Grants to Local Authorities,Emergency Response,CHARNWOOD BC,,,,,3700061963,,Grant payable by the Exchequer,LE11 2TU,"8,106.00",Yes
"Housing, Communities & Local Government",MHCLG,15/06/2020,Current (non AEF) Grants to Local Authorities,Emergency Response,CHELMSFORD BC,,,,,3700061899,,Grant payable by the Exchequer,CM1 1JE,"1,296,429.00",Yes
"Housing, Communities & Local Government",MHCLG,15/06/2020,Current (non AEF) Grants to Local Authorities,Emergency Response,CHELMSFORD BC,,,,,3700062217,,Grant payable by the Exchequer,CM1 1JE,"2,793.00",Yes
"Housing, Communities & Local Government",MHCLG,15/06/2020,Current (non AEF) Grants to Local Authorities,Emergency Response,CHELTENHAM BC,,,,,3700062145,,Grant payable by the Exchequer,GL50 1PW,"1,266,558.00",Yes
"Housing, Communities & Local Government",MHCLG,15/06/2020,Current (non AEF) Grants to Local Authorities,Emergency Response,CHELTENHAM BC,,,,,3700062315,,Grant payable by the Exchequer,GL50 1PW,"4,315.00",Yes
"Housing, Communities & Local Government",MHCLG,15/06/2020,Current (non AEF) Grants to Local Authorities,Emergency Response,CHERWELL DC,,,,,3700062324,,Grant payable by the Exchequer,OX15 4AA,"9,558.00",Yes
"Housing, Communities & Local Government",MHCLG,15/06/2020,Current (non AEF) Grants to Local Authorities,Emergency Response,CHERWELL DC,,,,,3700062455,,Grant payable by the Exchequer,OX15 4AA,"2,148,727.00",Yes
"Housing, Communities & Local Government",MHCLG,15/06/2020,Current (non AEF) Grants to Local Authorities,Emergency Response,CHESHIRE EAST BOROUGH COUNCIL,,,,293699450,3700061875,,Grant payable by the Exchequer,CW11 1HZ,"40,410.00",Yes
"Housing, Communities & Local Government",MHCLG,15/06/2020,Current (non AEF) Grants to Local Authorities,Emergency Response,CHESHIRE EAST BOROUGH COUNCIL,,,,293699450,3700062112,,Grant payable by the Exchequer,CW11 1HZ,"2,408,831.00",Yes
"Housing, Communities & Local Government",MHCLG,15/06/2020,Current (non AEF) Grants to Local Authorities,Emergency Response,CHESHIRE WEST AND CHESTER,,Large,,215584383,3700062047,,Grant payable by the Exchequer,CH1 2NP,"2,970,667.00",Yes
"Housing, Communities & Local Government",MHCLG,15/06/2020,Current (non AEF) Grants to Local Authorities,Emergency Response,CHESHIRE WEST AND CHESTER,,Large,,215584383,3700062334,,Grant payable by the Exchequer,CH1 2NP,"25,032.00",Yes
"Housing, Communities & Local Government",MHCLG,15/06/2020,Current (non AEF) Grants to Local Authorities,Emergency Response,CHESTERFIELD BC,,,,232102301,3700062155,,Grant payable by the Exchequer,S40 1LP,"675,154.00",Yes
"Housing, Communities & Local Government",MHCLG,15/06/2020,Current (non AEF) Grants to Local Authorities,Emergency Response,CHESTERFIELD BC,,,,232102301,3700062416,,Grant payable by the Exchequer,S40 1LP,"2,838.00",Yes
"Housing, Communities & Local Government",MHCLG,15/06/2020,Current (non AEF) Grants to Local Authorities,Emergency Response,CHICHESTER DC,,,,739800998,3700062060,,Grant payable by the Exchequer,PO19 1TY,"10,256.00",Yes
"Housing, Communities & Local Government",MHCLG,15/06/2020,Current (non AEF) Grants to Local Authorities,Emergency Response,CHICHESTER DC,,,,739800998,3700062401,,Grant payable by the Exchequer,PO19 1TY,"1,066,308.00",Yes
"Housing, Communities & Local Government",MHCLG,15/06/2020,Current (non AEF) Grants to Local Authorities,Emergency Response,CHORLEY DC,,,,236415576,3700061882,,Grant payable by the Exchequer,PR7 1DP,"412,501.00",Yes
"Housing, Communities & Local Government",MHCLG,15/06/2020,Current (non AEF) Grants to Local Authorities,Emergency Response,CHORLEY DC,,,,236415576,3700061973,,Grant payable by the Exchequer,PR7 1DP,"8,834.00",Yes
"Housing, Communities & Local Government",MHCLG,15/06/2020,Current (non AEF) Grants to Local Authorities,Emergency Response,CITY OF LINCOLN COUNCIL,,,,,3700062096,,Grant payable by the Exchequer,LN1 1DB,"6,299.00",Yes
"Housing, Communities & Local Government",MHCLG,15/06/2020,Current (non AEF) Grants to Local Authorities,Emergency Response,CITY OF LINCOLN COUNCIL,,,,,3700062306,,Grant payable by the Exchequer,LN1 1DB,"1,028,191.00",Yes
"Housing, Communities & Local Government",MHCLG,15/06/2020,Current (non AEF) Grants to Local Authorities,Emergency Response,CITY OF WAKEFIELD MDC,,,,,3700061806,,Grant payable by the Exchequer,WF1 2QW,"1,709,274.00",Yes
"Housing, Communities & Local Government",MHCLG,15/06/2020,Current (non AEF) Grants to Local Authorities,Emergency Response,CITY OF WAKEFIELD MDC,,,,,3700062219,,Grant payable by the Exchequer,WF1 2QW,"14,508.00",Yes
"Housing, Communities & Local Government",MHCLG,15/06/2020,Current (non AEF) Grants to Local Authorities,Emergency Response,COLCHESTER BC,,,,,3700061931,,Grant payable by the Exchequer,CO3 3WG,"18,771.00",Yes
"Housing, Communities & Local Government",MHCLG,15/06/2020,Current (non AEF) Grants to Local Authorities,Emergency Response,COLCHESTER BC,,,,,3700062059,,Grant payable by the Exchequer,CO3 3WG,"1,331,994.00",Yes
"Housing, Communities & Local Government",MHCLG,15/06/2020,Current (non AEF) Grants to Local Authorities,Emergency Response,COPELAND BC,,,,236414827,3700061949,,Grant payable by the Exchequer,CA28 7NY,"205,557.00",Yes
"Housing, Communities & Local Government",MHCLG,15/06/2020,Current (non AEF) Grants to Local Authorities,Emergency Response,COPELAND BC,,,,236414827,3700062178,,Grant payable by the Exchequer,CA28 7NY,"2,262.00",Yes
"Housing, Communities & Local Government",MHCLG,15/06/2020,Current (non AEF) Grants to Local Authorities,Emergency Response,CORBY BC,,,,,3700061935,,Grant payable by the Exchequer,NN17 1GD,"4,208.00",Yes
"Housing, Communities & Local Government",MHCLG,15/06/2020,Current (non AEF) Grants to Local Authorities,Emergency Response,CORBY BC,,,,,3700062293,,Grant payable by the Exchequer,NN17 1GD,"158,107.00",Yes
"Housing, Communities & Local Government",MHCLG,15/06/2020,Current (non AEF) Grants to Local Authorities,Emergency Response,CORNWALL COUNCIL,,,,211334404,3700062156,,Grant payable by the Exchequer,TR1 3AY,"36,407.00",Yes
"Housing, Communities & Local Government",MHCLG,15/06/2020,Current (non AEF) Grants to Local Authorities,Emergency Response,CORNWALL COUNCIL,,,,211334404,3700062233,,Grant payable by the Exchequer,TR1 3AY,"7,581,202.00",Yes
"Housing, Communities & Local Government",MHCLG,15/06/2020,Current (non AEF) Grants to Local Authorities,Emergency Response,CORNWALL COUNCIL,,,,211334404,3700062399,,Grant payable by the Exchequer,TR1 3AY,625.00,Yes
"Housing, Communities & Local Government",MHCLG,15/06/2020,Current (non AEF) Grants to Local Authorities,Emergency Response,CORPORATION OF LONDON,,,,225438175,3700062284,,Grant payable by the Exchequer,EC2P 2EJ,"10,993.00",Yes
"Housing, Communities & Local Government",MHCLG,15/06/2020,Current (non AEF) Grants to Local Authorities,Emergency Response,CORPORATION OF LONDON,,,,225438175,3700062435,,Grant payable by the Exchequer,EC2P 2EJ,"6,347,741.00",Yes
"Housing, Communities & Local Government",MHCLG,15/06/2020,Current (non AEF) Grants to Local Authorities,Emergency Response,COTSWOLD DC,,,,232462085,3700061979,,Grant payable by the Exchequer,GL7 1PX,"659,061.00",Yes
"Housing, Communities & Local Government",MHCLG,15/06/2020,Current (non AEF) Grants to Local Authorities,Emergency Response,COTSWOLD DC,,,,232462085,3700062331,,Grant payable by the Exchequer,GL7 1PX,"2,963.00",Yes
"Housing, Communities & Local Government",MHCLG,15/06/2020,Current (non AEF) Grants to Local Authorities,Emergency Response,COVENTRY CITY CNCL,,,,210384802,3700061839,,Grant payable by the Exchequer,CV1 2QL,"3,884,821.00",Yes
"Housing, Communities & Local Government",MHCLG,15/06/2020,Current (non AEF) Grants to Local Authorities,Emergency Response,COVENTRY CITY CNCL,,,,210384802,3700061961,,Grant payable by the Exchequer,CV1 2QL,"41,234.00",Yes
"Housing, Communities & Local Government",MHCLG,15/06/2020,Current (non AEF) Grants to Local Authorities,Emergency Response,CRAVEN DISTRICT COUNCIL,,,,215577851,3700062056,,Grant payable by the Exchequer,BD23 1PS,"1,926.00",Yes
"Housing, Communities & Local Government",MHCLG,15/06/2020,Current (non AEF) Grants to Local Authorities,Emergency Response,CRAVEN DISTRICT COUNCIL,,,,215577851,3700062417,,Grant payable by the Exchequer,BD23 1PS,"85,288.00",Yes
"Housing, Communities & Local Government",MHCLG,15/06/2020,Current (non AEF) Grants to Local Authorities,Emergency Response,CRAWLEY BOROUGH COUNCIL,,,,211222500,3700062305,,Grant payable by the Exchequer,RH10 1UZ,"14,818.00",Yes
"Housing, Communities & Local Government",MHCLG,15/06/2020,Current (non AEF) Grants to Local Authorities,Emergency Response,CRAWLEY BOROUGH COUNCIL,,,,211222500,3700062499,,Grant payable by the Exchequer,RH10 1UZ,"1,395,064.00",Yes
"Housing, Communities & Local Government",MHCLG,15/06/2020,Current (non AEF) Grants to Local Authorities,Emergency Response,CROYDON LB,,,,212419973,3700061989,,Grant payable by the Exchequer,CR0 1EA,"63,058.00",Yes
"Housing, Communities & Local Government",MHCLG,15/06/2020,Current (non AEF) Grants to Local Authorities,Emergency Response,CROYDON LB,,,,212419973,3700062360,,Grant payable by the Exchequer,CR0 1EA,"3,160,387.00",Yes
"Housing, Communities & Local Government",MHCLG,15/06/2020,Current (non AEF) Grants to Local Authorities,Emergency Response,DACORUM BC,,,,236448643,3700062002,,Grant payable by the Exchequer,HP1 1DN,"12,250.00",Yes
"Housing, Communities & Local Government",MHCLG,15/06/2020,Current (non AEF) Grants to Local Authorities,Emergency Response,DACORUM BC,,,,236448643,3700062126,,Grant payable by the Exchequer,HP1 1DN,"1,072,981.00",Yes
"Housing, Communities & Local Government",MHCLG,15/06/2020,Current (non AEF) Grants to Local Authorities,Emergency Response,DARLINGTON BC,,,,,3700061820,,Grant payable by the Exchequer,TS19 1JA,"5,489.00",Yes
"Housing, Communities & Local Government",MHCLG,15/06/2020,Current (non AEF) Grants to Local Authorities,Emergency Response,DARLINGTON BC,,,,,3700062118,,Grant payable by the Exchequer,TS19 1JA,"641,711.00",Yes
"Housing, Communities & Local Government",MHCLG,15/06/2020,Current (non AEF) Grants to Local Authorities,Emergency Response,DARTFORD BC,,,,225694942,3700062307,,Grant payable by the Exchequer,DA1 1DR,"2,412,246.00",Yes
"Housing, Communities & Local Government",MHCLG,15/06/2020,Current (non AEF) Grants to Local Authorities,Emergency Response,DARTFORD BC,,,,225694942,3700062350,,Grant payable by the Exchequer,DA1 1DR,"13,550.00",Yes
"Housing, Communities & Local Government",MHCLG,15/06/2020,Current (non AEF) Grants to Local Authorities,Emergency Response,DAVENTRY DC,,,,239859333,3700061890,,Grant payable by the Exchequer,NN11 5AF,"5,791.00",Yes
"Housing, Communities & Local Government",MHCLG,15/06/2020,Current (non AEF) Grants to Local Authorities,Emergency Response,DAVENTRY DC,,,,239859333,3700062509,,Grant payable by the Exchequer,NN11 5AF,"144,923.00",Yes
"Housing, Communities & Local Government",MHCLG,15/06/2020,Current (non AEF) Grants to Local Authorities,Emergency Response,DERBY CITY CNCL,,,,229641378,3700061874,,Grant payable by the Exchequer,DE1 2FS,"1,383,939.00",Yes
"Housing, Communities & Local Government",MHCLG,15/06/2020,Current (non AEF) Grants to Local Authorities,Emergency Response,DERBY CITY CNCL,,,,229641378,3700062135,,Grant payable by the Exchequer,DE1 2FS,"18,686.00",Yes
"Housing, Communities & Local Government",MHCLG,15/06/2020,Current (non AEF) Grants to Local Authorities,Emergency Response,DERBYSHIRE DALES DC,,,,,3700062143,,Grant payable by the Exchequer,DE4 3NN,"289,634.00",Yes
"Housing, Communities & Local Government",MHCLG,15/06/2020,Current (non AEF) Grants to Local Authorities,Emergency Response,DERBYSHIRE DALES DC,,,,,3700062311,,Grant payable by the Exchequer,DE4 3NN,"1,465.00",Yes
"Housing, Communities & Local Government",MHCLG,15/06/2020,Current (non AEF) Grants to Local Authorities,Emergency Response,DONCASTER MBC,,,,,3700062138,,Grant payable by the Exchequer,DN1 3QA,"11,581.00",Yes
"Housing, Communities & Local Government",MHCLG,15/06/2020,Current (non AEF) Grants to Local Authorities,Emergency Response,DONCASTER MBC,,,,,3700062303,,Grant payable by the Exchequer,DN1 3QA,"1,531,029.00",Yes
"Housing, Communities & Local Government",MHCLG,15/06/2020,Current (non AEF) Grants to Local Authorities,Emergency Response,DORSET COUNCIL,,,,,3700062114,,Grant payable by the Exchequer,DT1 1UZ,"1,870,625.00",Yes
"Housing, Communities & Local Government",MHCLG,15/06/2020,Current (non AEF) Grants to Local Authorities,Emergency Response,DORSET COUNCIL,,,,,3700062486,,Grant payable by the Exchequer,DT1 1UZ,"17,854.00",Yes
"Housing, Communities & Local Government",MHCLG,15/06/2020,Current (non AEF) Grants to Local Authorities,Emergency Response,DOVER DC,,,,,3700061898,,Grant payable by the Exchequer,CT16 3PD,"4,128.00",Yes
"Housing, Communities & Local Government",MHCLG,15/06/2020,Current (non AEF) Grants to Local Authorities,Emergency Response,DOVER DC,,,,,3700062420,,Grant payable by the Exchequer,CT16 3PD,"478,494.00",Yes
"Housing, Communities & Local Government",MHCLG,15/06/2020,Current (non AEF) Grants to Local Authorities,Emergency Response,DUDLEY MBC,,,,,3700062044,,Grant payable by the Exchequer,DY1 1HF,"3,590,277.00",Yes
"Housing, Communities & Local Government",MHCLG,15/06/2020,Current (non AEF) Grants to Local Authorities,Emergency Response,DUDLEY MBC,,,,,3700062224,,Grant payable by the Exchequer,DY1 1HF,"14,570.00",Yes
"Housing, Communities & Local Government",MHCLG,15/06/2020,Current (non AEF) Grants to Local Authorities,Emergency Response,DURHAM COUNTY COUNCIL,,,,228453601,3700061860,,Grant payable by the Exchequer,DH1 5UE,"15,556.00",Yes
"Housing, Communities & Local Government",MHCLG,15/06/2020,Current (non AEF) Grants to Local Authorities,Emergency Response,DURHAM COUNTY COUNCIL,,,,228453601,3700062193,,Grant payable by the Exchequer,DH1 5UE,"1,970,984.00",Yes
"Housing, Communities & Local Government",MHCLG,15/06/2020,Current (non AEF) Grants to Local Authorities,Emergency Response,EALING LB,,,,,3700062166,,Grant payable by the Exchequer,W5 2HL,"2,872,336.00",Yes
"Housing, Communities & Local Government",MHCLG,15/06/2020,Current (non AEF) Grants to Local Authorities,Emergency Response,EALING LB,,,,,3700062471,,Grant payable by the Exchequer,W5 2HL,"52,324.00",Yes
"Housing, Communities & Local Government",MHCLG,15/06/2020,Current (non AEF) Grants to Local Authorities,Emergency Response,EAST CAMBRIDGESHIRE DC,,,,236472023,3700062189,,Grant payable by the Exchequer,CB7 4PL,"254,714.00",Yes
"Housing, Communities & Local Government",MHCLG,15/06/2020,Current (non AEF) Grants to Local Authorities,Emergency Response,EAST CAMBRIDGESHIRE DC,,,,236472023,3700062203,,Grant payable by the Exchequer,CB7 4PL,"5,024.00",Yes
"Housing, Communities & Local Government",MHCLG,15/06/2020,Current (non AEF) Grants to Local Authorities,Emergency Response,EAST DEVON DC,,,,,3700061870,,Grant payable by the Exchequer,EX10 8HL,"4,932.00",Yes
"Housing, Communities & Local Government",MHCLG,15/06/2020,Current (non AEF) Grants to Local Authorities,Emergency Response,EAST DEVON DC,,,,,3700062111,,Grant payable by the Exchequer,EX10 8HL,"702,617.00",Yes
"Housing, Communities & Local Government",MHCLG,15/06/2020,Current (non AEF) Grants to Local Authorities,Emergency Response,EAST HAMPSHIRE DC,,,,,3700061987,,Grant payable by the Exchequer,GU31 4EX,"520,465.00",Yes
"Housing, Communities & Local Government",MHCLG,15/06/2020,Current (non AEF) Grants to Local Authorities,Emergency Response,EAST HAMPSHIRE DC,,,,,3700062319,,Grant payable by the Exchequer,GU31 4EX,"5,666.00",Yes
"Housing, Communities & Local Government",MHCLG,15/06/2020,Current (non AEF) Grants to Local Authorities,Emergency Response,EAST HERTFORDSHIRE DC,,,,236176954,3700061941,,Grant payable by the Exchequer,SG13 8EQ,"11,195.00",Yes
"Housing, Communities & Local Government",MHCLG,15/06/2020,Current (non AEF) Grants to Local Authorities,Emergency Response,EAST HERTFORDSHIRE DC,,,,236176954,3700062196,,Grant payable by the Exchequer,SG13 8EQ,"688,912.00",Yes
"Housing, Communities & Local Government",MHCLG,15/06/2020,Current (non AEF) Grants to Local Authorities,Emergency Response,EAST LINDSEY DC,,,,,3700061861,,Grant payable by the Exchequer,LN11 8UP,"814,243.00",Yes
"Housing, Communities & Local Government",MHCLG,15/06/2020,Current (non AEF) Grants to Local Authorities,Emergency Response,EAST LINDSEY DC,,,,,3700062132,,Grant payable by the Exchequer,LN11 8UP,"5,238.00",Yes
"Housing, Communities & Local Government",MHCLG,15/06/2020,Current (non AEF) Grants to Local Authorities,Emergency Response,EAST NORTHAMPTONSHIRE COUNCIL,,,,227475290,3700061838,,Grant payable by the Exchequer,NN14 4LZ,"5,708.00",Yes
"Housing, Communities & Local Government",MHCLG,15/06/2020,Current (non AEF) Grants to Local Authorities,Emergency Response,EAST NORTHAMPTONSHIRE COUNCIL,,,,227475290,3700062263,,Grant payable by the Exchequer,NN14 4LZ,"464,579.00",Yes
"Housing, Communities & Local Government",MHCLG,15/06/2020,Current (non AEF) Grants to Local Authorities,Emergency Response,EAST RIDING OF YORKS,,,,,3700061900,,Grant payable by the Exchequer,HU17 9AB,"1,395,836.00",Yes
"Housing, Communities & Local Government",MHCLG,15/06/2020,Current (non AEF) Grants to Local Authorities,Emergency Response,EAST RIDING OF YORKS,,,,,3700062239,,Grant payable by the Exchequer,HU17 9AB,"16,503.00",Yes
"Housing, Communities & Local Government",MHCLG,15/06/2020,Current (non AEF) Grants to Local Authorities,Emergency Response,EAST STAFFORDSHIRE BC,,,,226778033,3700061862,,Grant payable by the Exchequer,DE14 2EB,"715,985.00",Yes
"Housing, Communities & Local Government",MHCLG,15/06/2020,Current (non AEF) Grants to Local Authorities,Emergency Response,EAST STAFFORDSHIRE BC,,,,226778033,3700061934,,Grant payable by the Exchequer,DE14 2EB,"9,674.00",Yes
"Housing, Communities & Local Government",MHCLG,15/06/2020,Current (non AEF) Grants to Local Authorities,Emergency Response,EAST SUFFOLK COUNCIL,,,,,3700061884,,Grant payable by the Exchequer,IP12 1RT,"9,484.00",Yes
"Housing, Communities & Local Government",MHCLG,15/06/2020,Current (non AEF) Grants to Local Authorities,Emergency Response,EAST SUFFOLK COUNCIL,,,,,3700062093,,Grant payable by the Exchequer,IP12 1RT,"1,167,008.00",Yes
"Housing, Communities & Local Government",MHCLG,15/06/2020,Current (non AEF) Grants to Local Authorities,Emergency Response,EASTBOURNE BC,,,,229896428,3700062049,,Grant payable by the Exchequer,BN21 4TW,"10,818.00",Yes
"Housing, Communities & Local Government",MHCLG,15/06/2020,Current (non AEF) Grants to Local Authorities,Emergency Response,EASTBOURNE BC,,,,229896428,3700062257,,Grant payable by the Exchequer,BN21 4TW,"977,825.00",Yes
"Housing, Communities & Local Government",MHCLG,15/06/2020,Current (non AEF) Grants to Local Authorities,Emergency Response,EASTLEIGH BOROUGH COUNCIL,,,,232669911,3700061906,,Grant payable by the Exchequer,SO5 9YN,"875,365.00",Yes
"Housing, Communities & Local Government",MHCLG,15/06/2020,Current (non AEF) Grants to Local Authorities,Emergency Response,EASTLEIGH BOROUGH COUNCIL,,,,232669911,3700062236,,Grant payable by the Exchequer,SO5 9YN,"8,522.00",Yes
"Housing, Communities & Local Government",MHCLG,15/06/2020,Current (non AEF) Grants to Local Authorities,Emergency Response,EDEN DC,,,,,3700062188,,Grant payable by the Exchequer,CA11 7QF,"1,928.00",Yes
"Housing, Communities & Local Government",MHCLG,15/06/2020,Current (non AEF) Grants to Local Authorities,Emergency Response,EDEN DC,,,,,3700062439,,Grant payable by the Exchequer,CA11 7QF,"555,803.00",Yes
"Housing, Communities & Local Government",MHCLG,15/06/2020,Current (non AEF) Grants to Local Authorities,Emergency Response,ELMBRIDGE BOROUGH COUNCIL,,Large,,236082442,3700062019,,Grant payable by the Exchequer,KT10 9SD,"1,121,633.00",Yes
"Housing, Communities & Local Government",MHCLG,15/06/2020,Current (non AEF) Grants to Local Authorities,Emergency Response,ELMBRIDGE BOROUGH COUNCIL,,Large,,236082442,3700062075,,Grant payable by the Exchequer,KT10 9SD,"24,411.00",Yes
"Housing, Communities & Local Government",MHCLG,15/06/2020,Current (non AEF) Grants to Local Authorities,Emergency Response,ENFIELD LB,,,,,3700062098,,Grant payable by the Exchequer,EN1 3XF,"29,817.00",Yes
"Housing, Communities & Local Government",MHCLG,15/06/2020,Current (non AEF) Grants to Local Authorities,Emergency Response,ENFIELD LB,,,,,3700062314,,Grant payable by the Exchequer,EN1 3XF,"2,224,830.00",Yes
"Housing, Communities & Local Government",MHCLG,15/06/2020,Current (non AEF) Grants to Local Authorities,Emergency Response,EPPING FOREST DC,,,,775876360,3700061990,,Grant payable by the Exchequer,CM16 4BZ,"575,547.00",Yes
"Housing, Communities & Local Government",MHCLG,15/06/2020,Current (non AEF) Grants to Local Authorities,Emergency Response,EPPING FOREST DC,,,,775876360,3700062251,,Grant payable by the Exchequer,CM16 4BZ,"11,129.00",Yes
"Housing, Communities & Local Government",MHCLG,15/06/2020,Current (non AEF) Grants to Local Authorities,Emergency Response,EPSOM & EWELL BC,,,,225423094,3700061846,,Grant payable by the Exchequer,KT18 5BY,"543,842.00",Yes
"Housing, Communities & Local Government",MHCLG,15/06/2020,Current (non AEF) Grants to Local Authorities,Emergency Response,EPSOM & EWELL BC,,,,225423094,3700062079,,Grant payable by the Exchequer,KT18 5BY,"17,965.00",Yes
"Housing, Communities & Local Government",MHCLG,15/06/2020,Current (non AEF) Grants to Local Authorities,Emergency Response,EREWASH BC,,,,211209762,3700061842,,Grant payable by the Exchequer,DE7 5RP,"402,355.00",Yes
"Housing, Communities & Local Government",MHCLG,15/06/2020,Current (non AEF) Grants to Local Authorities,Emergency Response,EREWASH BC,,,,211209762,3700062448,,Grant payable by the Exchequer,DE7 5RP,"7,051.00",Yes
"Housing, Communities & Local Government",MHCLG,15/06/2020,Current (non AEF) Grants to Local Authorities,Emergency Response,EXETER CITY CNCL,,,,,3700062067,,Grant payable by the Exchequer,EX1 1JW,"1,615,931.00",Yes
"Housing, Communities & Local Government",MHCLG,15/06/2020,Current (non AEF) Grants to Local Authorities,Emergency Response,EXETER CITY CNCL,,,,,3700062492,,Grant payable by the Exchequer,EX1 1JW,"12,958.00",Yes
"Housing, Communities & Local Government",MHCLG,15/06/2020,Current (non AEF) Grants to Local Authorities,Emergency Response,FAREHAM BC,,,,228474144,3700061865,,Grant payable by the Exchequer,PO16 7PU,"603,636.00",Yes
"Housing, Communities & Local Government",MHCLG,15/06/2020,Current (non AEF) Grants to Local Authorities,Emergency Response,FAREHAM BC,,,,228474144,3700062500,,Grant payable by the Exchequer,PO16 7PU,"9,593.00",Yes
"Housing, Communities & Local Government",MHCLG,15/06/2020,Current (non AEF) Grants to Local Authorities,Emergency Response,FENLAND DC,,,,227476348,3700062116,,Grant payable by the Exchequer,PE15 8NQ,"305,942.00",Yes
"Housing, Communities & Local Government",MHCLG,15/06/2020,Current (non AEF) Grants to Local Authorities,Emergency Response,FENLAND DC,,,,227476348,3700062151,,Grant payable by the Exchequer,PE15 8NQ,"2,743.00",Yes
"Housing, Communities & Local Government",MHCLG,15/06/2020,Current (non AEF) Grants to Local Authorities,Emergency Response,FOLKESTONE & HYTHE DC,,,,235550878,3700061827,,Grant payable by the Exchequer,CT20 2QY,"2,952.00",Yes
"Housing, Communities & Local Government",MHCLG,15/06/2020,Current (non AEF) Grants to Local Authorities,Emergency Response,FOLKESTONE & HYTHE DC,,,,235550878,3700061969,,Grant payable by the Exchequer,CT20 2QY,"558,521.00",Yes
"Housing, Communities & Local Government",MHCLG,15/06/2020,Current (non AEF) Grants to Local Authorities,Emergency Response,FOREST OF DEAN DC,,,,211278890,3700062026,,Grant payable by the Exchequer,GL16 8HG,"1,483.00",Yes
"Housing, Communities & Local Government",MHCLG,15/06/2020,Current (non AEF) Grants to Local Authorities,Emergency Response,FOREST OF DEAN DC,,,,211278890,3700062152,,Grant payable by the Exchequer,GL16 8HG,"140,540.00",Yes
"Housing, Communities & Local Government",MHCLG,15/06/2020,Current (non AEF) Grants to Local Authorities,Emergency Response,FYLDE BC,,,,227479912,3700061976,,Grant payable by the Exchequer,FY8 1LW,"3,455.00",Yes
"Housing, Communities & Local Government",MHCLG,15/06/2020,Current (non AEF) Grants to Local Authorities,Emergency Response,FYLDE BC,,,,227479912,3700062413,,Grant payable by the Exchequer,FY8 1LW,"466,960.00",Yes
"Housing, Communities & Local Government",MHCLG,15/06/2020,Current (non AEF) Grants to Local Authorities,Emergency Response,GATESHEAD COUNCIL,,,,216116041,3700061905,,Grant payable by the Exchequer,NE8 1HH,"2,249,985.00",Yes
"Housing, Communities & Local Government",MHCLG,15/06/2020,Current (non AEF) Grants to Local Authorities,Emergency Response,GATESHEAD COUNCIL,,,,216116041,3700062045,,Grant payable by the Exchequer,NE8 1HH,"8,804.00",Yes
"Housing, Communities & Local Government",MHCLG,15/06/2020,Current (non AEF) Grants to Local Authorities,Emergency Response,GEDLING BC,,,,236180337,3700061835,,Grant payable by the Exchequer,NG5 6LU,"444,314.00",Yes
"Housing, Communities & Local Government",MHCLG,15/06/2020,Current (non AEF) Grants to Local Authorities,Emergency Response,GEDLING BC,,,,236180337,3700061947,,Grant payable by the Exchequer,NG5 6LU,"4,967.00",Yes
"Housing, Communities & Local Government",MHCLG,15/06/2020,Current (non AEF) Grants to Local Authorities,Emergency Response,GLOUCESTER CITY COUNCIL,,,,230841392,3700061993,,Grant payable by the Exchequer,GL1 2EQ,"1,043,948.00",Yes
"Housing, Communities & Local Government",MHCLG,15/06/2020,Current (non AEF) Grants to Local Authorities,Emergency Response,GLOUCESTER CITY COUNCIL,,,,230841392,3700062487,,Grant payable by the Exchequer,GL1 2EQ,"8,558.00",Yes
"Housing, Communities & Local Government",MHCLG,15/06/2020,Current (non AEF) Grants to Local Authorities,Emergency Response,GOSPORT BOROUGH COUNCIL,,,,239825078,3700062085,,Grant payable by the Exchequer,PO12 1ED,"237,172.00",Yes
"Housing, Communities & Local Government",MHCLG,15/06/2020,Current (non AEF) Grants to Local Authorities,Emergency Response,GOSPORT BOROUGH COUNCIL,,,,239825078,3700062280,,Grant payable by the Exchequer,PO12 1ED,"5,146.00",Yes
"Housing, Communities & Local Government",MHCLG,15/06/2020,Current (non AEF) Grants to Local Authorities,Emergency Response,GRAVESHAM BC,,,,236178612,3700061988,,Grant payable by the Exchequer,DA12 1AU,"4,234.00",Yes
"Housing, Communities & Local Government",MHCLG,15/06/2020,Current (non AEF) Grants to Local Authorities,Emergency Response,GRAVESHAM BC,,,,236178612,3700062187,,Grant payable by the Exchequer,DA12 1AU,"182,401.00",Yes
"Housing, Communities & Local Government",MHCLG,15/06/2020,Current (non AEF) Grants to Local Authorities,Emergency Response,GREAT YARMOUTH BC,,,,292697372,3700061825,,Grant payable by the Exchequer,NR30 2QF,"564,048.00",Yes
"Housing, Communities & Local Government",MHCLG,15/06/2020,Current (non AEF) Grants to Local Authorities,Emergency Response,GREAT YARMOUTH BC,,,,292697372,3700062322,,Grant payable by the Exchequer,NR30 2QF,"3,712.00",Yes
"Housing, Communities & Local Government",MHCLG,15/06/2020,Current (non AEF) Grants to Local Authorities,Emergency Response,GREENWICH LB,,,,,3700061869,,Grant payable by the Exchequer,SE18 6HQ,"2,446,829.00",Yes
"Housing, Communities & Local Government",MHCLG,15/06/2020,Current (non AEF) Grants to Local Authorities,Emergency Response,GREENWICH LB,,,,,3700061944,,Grant payable by the Exchequer,SE18 6HQ,"19,932.00",Yes
"Housing, Communities & Local Government",MHCLG,15/06/2020,Current (non AEF) Grants to Local Authorities,Emergency Response,GUILDFORD BC,,,,236663720,3700062287,,Grant payable by the Exchequer,GU2 5BB,"26,044.00",Yes
"Housing, Communities & Local Government",MHCLG,15/06/2020,Current (non AEF) Grants to Local Authorities,Emergency Response,GUILDFORD BC,,,,236663720,3700062365,,Grant payable by the Exchequer,GU2 5BB,"1,609,840.00",Yes
"Housing, Communities & Local Government",MHCLG,15/06/2020,Current (non AEF) Grants to Local Authorities,Emergency Response,HALTON BC,,,,227959376,3700061923,,Grant payable by the Exchequer,WA8 7QF,"706,730.00",Yes
"Housing, Communities & Local Government",MHCLG,15/06/2020,Current (non AEF) Grants to Local Authorities,Emergency Response,HALTON BC,,,,227959376,3700062230,,Grant payable by the Exchequer,WA8 7QF,"17,613.00",Yes
"Housing, Communities & Local Government",MHCLG,15/06/2020,Current (non AEF) Grants to Local Authorities,Emergency Response,HAMBLETON DC,,Large,,503481319,3700062308,,Grant payable by the Exchequer,DL6 2UU,"6,808.00",Yes
"Housing, Communities & Local Government",MHCLG,15/06/2020,Current (non AEF) Grants to Local Authorities,Emergency Response,HAMBLETON DC,,Large,,503481319,3700062346,,Grant payable by the Exchequer,DL6 2UU,"420,878.00",Yes
"Housing, Communities & Local Government",MHCLG,15/06/2020,Current (non AEF) Grants to Local Authorities,Emergency Response,HAMMERSMITH & FULHAM LB,,,,216929489,3700061817,,Grant payable by the Exchequer,W6 9JU,"57,139.00",Yes
"Housing, Communities & Local Government",MHCLG,15/06/2020,Current (non AEF) Grants to Local Authorities,Emergency Response,HAMMERSMITH & FULHAM LB,,,,216929489,3700062270,,Grant payable by the Exchequer,W6 9JU,"5,988,686.00",Yes
"Housing, Communities & Local Government",MHCLG,15/06/2020,Current (non AEF) Grants to Local Authorities,Emergency Response,HARBOROUGH DC,,Public Bodies,,232611962,3700062326,,Grant payable by the Exchequer,LE16 7AG,"319,477.00",Yes
"Housing, Communities & Local Government",MHCLG,15/06/2020,Current (non AEF) Grants to Local Authorities,Emergency Response,HARBOROUGH DC,,Public Bodies,,232611962,3700062357,,Grant payable by the Exchequer,LE16 7AG,"5,921.00",Yes
"Housing, Communities & Local Government",MHCLG,15/06/2020,Current (non AEF) Grants to Local Authorities,Emergency Response,HARINGEY LB,,,,217471767,3700062007,,Grant payable by the Exchequer,N22 7TR,"2,053,065.00",Yes
"Housing, Communities & Local Government",MHCLG,15/06/2020,Current (non AEF) Grants to Local Authorities,Emergency Response,HARINGEY LB,,,,217471767,3700062137,,Grant payable by the Exchequer,N22 7TR,"26,429.00",Yes
"Housing, Communities & Local Government",MHCLG,15/06/2020,Current (non AEF) Grants to Local Authorities,Emergency Response,HARLOW COUNCIL,,,,239999055,3700061895,,Grant payable by the Exchequer,CM20 1WG,"9,770.00",Yes
"Housing, Communities & Local Government",MHCLG,15/06/2020,Current (non AEF) Grants to Local Authorities,Emergency Response,HARLOW COUNCIL,,,,239999055,3700062065,,Grant payable by the Exchequer,CM20 1WG,"683,914.00",Yes
"Housing, Communities & Local Government",MHCLG,15/06/2020,Current (non AEF) Grants to Local Authorities,Emergency Response,HARROGATE BOROUGH COUNCIL,,,,236660031,3700062024,,Grant payable by the Exchequer,HG1 2SG,"1,289,053.00",Yes
"Housing, Communities & Local Government",MHCLG,15/06/2020,Current (non AEF) Grants to Local Authorities,Emergency Response,HARROGATE BOROUGH COUNCIL,,,,236660031,3700062066,,Grant payable by the Exchequer,HG1 2SG,"10,948.00",Yes
"Housing, Communities & Local Government",MHCLG,15/06/2020,Current (non AEF) Grants to Local Authorities,Emergency Response,HARROW LB,,,,,3700062277,,Grant payable by the Exchequer,HA1 2UZ,"977,044.00",Yes
"Housing, Communities & Local Government",MHCLG,15/06/2020,Current (non AEF) Grants to Local Authorities,Emergency Response,HARROW LB,,,,,3700062397,,Grant payable by the Exchequer,HA1 2UZ,"20,937.00",Yes
"Housing, Communities & Local Government",MHCLG,15/06/2020,Current (non AEF) Grants to Local Authorities,Emergency Response,HART DC,,,,229723895,3700061805,,Grant payable by the Exchequer,GU13 8AE,"365,447.00",Yes
"Housing, Communities & Local Government",MHCLG,15/06/2020,Current (non AEF) Grants to Local Authorities,Emergency Response,HART DC,,,,229723895,3700062419,,Grant payable by the Exchequer,GU13 8AE,"12,125.00",Yes
"Housing, Communities & Local Government",MHCLG,15/06/2020,Current (non AEF) Grants to Local Authorities,Emergency Response,HARTLEPOOL BOROUGH COUNCIL,,,,424291797,3700061938,,Grant payable by the Exchequer,TS24 8AY,"1,363.00",Yes
"Housing, Communities & Local Government",MHCLG,15/06/2020,Current (non AEF) Grants to Local Authorities,Emergency Response,HARTLEPOOL BOROUGH COUNCIL,,,,424291797,3700062371,,Grant payable by the Exchequer,TS24 8AY,"442,989.00",Yes
"Housing, Communities & Local Government",MHCLG,15/06/2020,Current (non AEF) Grants to Local Authorities,Emergency Response,HASTINGS BC,,,,,3700061798,,Grant payable by the Exchequer,TN34 3WN,"506,274.00",Yes
"Housing, Communities & Local Government",MHCLG,15/06/2020,Current (non AEF) Grants to Local Authorities,Emergency Response,HASTINGS BC,,,,,3700061819,,Grant payable by the Exchequer,TN34 3WN,"4,066.00",Yes
"Housing, Communities & Local Government",MHCLG,15/06/2020,Current (non AEF) Grants to Local Authorities,Emergency Response,HAVANT BC,,,,211047543,3700061871,,Grant payable by the Exchequer,PO9 2AX,"706,536.00",Yes
"Housing, Communities & Local Government",MHCLG,15/06/2020,Current (non AEF) Grants to Local Authorities,Emergency Response,HAVANT BC,,,,211047543,3700062122,,Grant payable by the Exchequer,PO9 2AX,"6,202.00",Yes
"Housing, Communities & Local Government",MHCLG,15/06/2020,Current (non AEF) Grants to Local Authorities,Emergency Response,HAVERING LB,,,,211209770,3700061957,,Grant payable by the Exchequer,RM1 3BB,"2,140,807.00",Yes
"Housing, Communities & Local Government",MHCLG,15/06/2020,Current (non AEF) Grants to Local Authorities,Emergency Response,HAVERING LB,,,,211209770,3700062457,,Grant payable by the Exchequer,RM1 3BB,"30,352.00",Yes
"Housing, Communities & Local Government",MHCLG,15/06/2020,Current (non AEF) Grants to Local Authorities,Emergency Response,HEREFORDSHIRE DISTRICT COUNCIL,,,,211510826,3700061919,,Grant payable by the Exchequer,HR1 1SH,"1,083,691.00",Yes
"Housing, Communities & Local Government",MHCLG,15/06/2020,Current (non AEF) Grants to Local Authorities,Emergency Response,HEREFORDSHIRE DISTRICT COUNCIL,,,,211510826,3700062081,,Grant payable by the Exchequer,HR1 1SH,"2,585.00",Yes
"Housing, Communities & Local Government",MHCLG,15/06/2020,Current (non AEF) Grants to Local Authorities,Emergency Response,HERTSMERE BC,,,,237549253,3700061986,,Grant payable by the Exchequer,WD6 1WA,"829,010.00",Yes
"Housing, Communities & Local Government",MHCLG,15/06/2020,Current (non AEF) Grants to Local Authorities,Emergency Response,HERTSMERE BC,,,,237549253,3700062475,,Grant payable by the Exchequer,WD6 1WA,"13,035.00",Yes
"Housing, Communities & Local Government",MHCLG,15/06/2020,Current (non AEF) Grants to Local Authorities,Emergency Response,HIGH PEAK BC,,,,239967771,3700062003,,Grant payable by the Exchequer,SK17 6EL,"2,985.00",Yes
"Housing, Communities & Local Government",MHCLG,15/06/2020,Current (non AEF) Grants to Local Authorities,Emergency Response,HIGH PEAK BC,,,,239967771,3700062131,,Grant payable by the Exchequer,SK17 6EL,"325,990.00",Yes
"Housing, Communities & Local Government",MHCLG,15/06/2020,Current (non AEF) Grants to Local Authorities,Emergency Response,HILLINGDON LB,,,,211198585,3700061800,,Grant payable by the Exchequer,UB8 1UW,"35,458.00",Yes
"Housing, Communities & Local Government",MHCLG,15/06/2020,Current (non AEF) Grants to Local Authorities,Emergency Response,HILLINGDON LB,,,,211198585,3700062511,,Grant payable by the Exchequer,UB8 1UW,"3,374,529.00",Yes
"Housing, Communities & Local Government",MHCLG,15/06/2020,Current (non AEF) Grants to Local Authorities,Emergency Response,HINCKLEY & BOSWORTH BC,,,,211176144,3700061886,,Grant payable by the Exchequer,LE10 1BZ,"2,828.00",Yes
"Housing, Communities & Local Government",MHCLG,15/06/2020,Current (non AEF) Grants to Local Authorities,Emergency Response,HINCKLEY & BOSWORTH BC,,,,211176144,3700062347,,Grant payable by the Exchequer,LE10 1BZ,"306,975.00",Yes
"Housing, Communities & Local Government",MHCLG,15/06/2020,Current (non AEF) Grants to Local Authorities,Emergency Response,HORSHAM DC,,,,229776588,3700062022,,Grant payable by the Exchequer,RH12 1RL,"10,978.00",Yes
"Housing, Communities & Local Government",MHCLG,15/06/2020,Current (non AEF) Grants to Local Authorities,Emergency Response,HORSHAM DC,,,,229776588,3700062497,,Grant payable by the Exchequer,RH12 1RL,"740,010.00",Yes
"Housing, Communities & Local Government",MHCLG,15/06/2020,Current (non AEF) Grants to Local Authorities,Emergency Response,HOUNSLOW LB,,,,210388999,3700061876,,Grant payable by the Exchequer,TW3 4DN,"2,627,955.00",Yes
"Housing, Communities & Local Government",MHCLG,15/06/2020,Current (non AEF) Grants to Local Authorities,Emergency Response,HOUNSLOW LB,,,,210388999,3700062010,,Grant payable by the Exchequer,TW3 4DN,"8,990.00",Yes
"Housing, Communities & Local Government",MHCLG,15/06/2020,Current (non AEF) Grants to Local Authorities,Emergency Response,HULL CITY COUNCIL,,,,217460984,3700062043,,Grant payable by the Exchequer,HU1 2AA,"1,882,821.00",Yes
"Housing, Communities & Local Government",MHCLG,15/06/2020,Current (non AEF) Grants to Local Authorities,Emergency Response,HULL CITY COUNCIL,,,,217460984,3700062470,,Grant payable by the Exchequer,HU1 2AA,"7,466.00",Yes
"Housing, Communities & Local Government",MHCLG,15/06/2020,Current (non AEF) Grants to Local Authorities,Emergency Response,HUNTINGDONSHIRE DC,,,,235999216,3700062321,,Grant payable by the Exchequer,PE18 6TN,"17,750.00",Yes
"Housing, Communities & Local Government",MHCLG,15/06/2020,Current (non AEF) Grants to Local Authorities,Emergency Response,HUNTINGDONSHIRE DC,,,,235999216,3700062323,,Grant payable by the Exchequer,PE18 6TN,"784,744.00",Yes
"Housing, Communities & Local Government",MHCLG,15/06/2020,Current (non AEF) Grants to Local Authorities,Emergency Response,HYNDBURN BC,,,,,3700061940,,Grant payable by the Exchequer,BB5 1EZ,"62,874.00",Yes
"Housing, Communities & Local Government",MHCLG,15/06/2020,Current (non AEF) Grants to Local Authorities,Emergency Response,HYNDBURN BC,,,,,3700062369,,Grant payable by the Exchequer,BB5 1EZ,"1,695.00",Yes
"Housing, Communities & Local Government",MHCLG,15/06/2020,Current (non AEF) Grants to Local Authorities,Emergency Response,IPSWICH BC,,,,226861391,3700061877,,Grant payable by the Exchequer,IP3 8SF,"6,354.00",Yes
"Housing, Communities & Local Government",MHCLG,15/06/2020,Current (non AEF) Grants to Local Authorities,Emergency Response,IPSWICH BC,,,,226861391,3700061880,,Grant payable by the Exchequer,IP3 8SF,"1,025,782.00",Yes
"Housing, Communities & Local Government",MHCLG,15/06/2020,Current (non AEF) Grants to Local Authorities,Emergency Response,ISLE OF WIGHT CNCL,,,,236431730,3700062107,,Grant payable by the Exchequer,PO30 1UD,"963,859.00",Yes
"Housing, Communities & Local Government",MHCLG,15/06/2020,Current (non AEF) Grants to Local Authorities,Emergency Response,ISLE OF WIGHT CNCL,,,,236431730,3700062395,,Grant payable by the Exchequer,PO30 1UD,"5,837.00",Yes
"Housing, Communities & Local Government",MHCLG,15/06/2020,Current (non AEF) Grants to Local Authorities,Emergency Response,ISLES OF SCILLY COUNCIL,,,,214146040,3700062282,,Grant payable by the Exchequer,TR21 0LW,"47,251.00",Yes
"Housing, Communities & Local Government",MHCLG,15/06/2020,Current (non AEF) Grants to Local Authorities,Emergency Response,ISLINGTON LB,,,,225716729,3700061995,,Grant payable by the Exchequer,N1 1XR,"3,585,677.00",Yes
"Housing, Communities & Local Government",MHCLG,15/06/2020,Current (non AEF) Grants to Local Authorities,Emergency Response,ISLINGTON LB,,,,225716729,3700062180,,Grant payable by the Exchequer,N1 1XR,"34,724.00",Yes
"Housing, Communities & Local Government",MHCLG,15/06/2020,Current (non AEF) Grants to Local Authorities,Emergency Response,KETTERING BC,,,,211271796,3700062123,,Grant payable by the Exchequer,NN15 7QX,"4,929.00",Yes
"Housing, Communities & Local Government",MHCLG,15/06/2020,Current (non AEF) Grants to Local Authorities,Emergency Response,KETTERING BC,,,,211271796,3700062275,,Grant payable by the Exchequer,NN15 7QX,"469,891.00",Yes
"Housing, Communities & Local Government",MHCLG,15/06/2020,Current (non AEF) Grants to Local Authorities,Emergency Response,KINGS LYNN & WEST NORFOLK BC,,,,236417671,3700061948,,Grant payable by the Exchequer,PE30 1EX,"4,208.00",Yes
"Housing, Communities & Local Government",MHCLG,15/06/2020,Current (non AEF) Grants to Local Authorities,Emergency Response,KINGS LYNN & WEST NORFOLK BC,,,,236417671,3700062240,,Grant payable by the Exchequer,PE30 1EX,"833,300.00",Yes
"Housing, Communities & Local Government",MHCLG,15/06/2020,Current (non AEF) Grants to Local Authorities,Emergency Response,KINGSTON UPON THAMES,,,,,3700061807,,Grant payable by the Exchequer,KT1 1EU,"44,665.00",Yes
"Housing, Communities & Local Government",MHCLG,15/06/2020,Current (non AEF) Grants to Local Authorities,Emergency Response,KINGSTON UPON THAMES,,,,,3700062472,,Grant payable by the Exchequer,KT1 1EU,"2,653,094.00",Yes
"Housing, Communities & Local Government",MHCLG,15/06/2020,Current (non AEF) Grants to Local Authorities,Emergency Response,KIRKLEES COUNCIL,,Large,,,3700062101,,Grant payable by the Exchequer,HD1 2YU,"6,521.00",Yes
"Housing, Communities & Local Government",MHCLG,15/06/2020,Current (non AEF) Grants to Local Authorities,Emergency Response,KIRKLEES COUNCIL,,Large,,,3700062450,,Grant payable by the Exchequer,HD1 2YU,"430,508.00",Yes
"Housing, Communities & Local Government",MHCLG,15/06/2020,Current (non AEF) Grants to Local Authorities,Emergency Response,KNOWSLEY MBC,,,,,3700061888,,Grant payable by the Exchequer,L36 9YZ,"24,391.00",Yes
"Housing, Communities & Local Government",MHCLG,15/06/2020,Current (non AEF) Grants to Local Authorities,Emergency Response,KNOWSLEY MBC,,,,,3700062438,,Grant payable by the Exchequer,L36 9YZ,"942,729.00",Yes
"Housing, Communities & Local Government",MHCLG,15/06/2020,Current (non AEF) Grants to Local Authorities,Emergency Response,LANCASTER CITY CNCL,,,,228669990,3700061840,,Grant payable by the Exchequer,LA1 1PJ,"716,045.00",Yes
"Housing, Communities & Local Government",MHCLG,15/06/2020,Current (non AEF) Grants to Local Authorities,Emergency Response,LANCASTER CITY CNCL,,,,228669990,3700062400,,Grant payable by the Exchequer,LA1 1PJ,"4,124.00",Yes
"Housing, Communities & Local Government",MHCLG,15/06/2020,Current (non AEF) Grants to Local Authorities,Emergency Response,LEEDS CITY CNCL,,,,,3700061917,,Grant payable by the Exchequer,LS1 1JF,"70,701.00",Yes
"Housing, Communities & Local Government",MHCLG,15/06/2020,Current (non AEF) Grants to Local Authorities,Emergency Response,LEEDS CITY CNCL,,,,,3700062356,,Grant payable by the Exchequer,LS1 1JF,"6,075,079.00",Yes
"Housing, Communities & Local Government",MHCLG,15/06/2020,Current (non AEF) Grants to Local Authorities,Emergency Response,LEICESTER CITY CNCL,,,,228219960,3700061844,,Grant payable by the Exchequer,LE1 1FZ,"1,857,143.00",Yes
"Housing, Communities & Local Government",MHCLG,15/06/2020,Current (non AEF) Grants to Local Authorities,Emergency Response,LEICESTER CITY CNCL,,,,228219960,3700062382,,Grant payable by the Exchequer,LE1 1FZ,"12,726.00",Yes
"Housing, Communities & Local Government",MHCLG,15/06/2020,Current (non AEF) Grants to Local Authorities,Emergency Response,LEWES DC,,Large,,213090082,3700062215,,Grant payable by the Exchequer,BN7 1AB,"11,362.00",Yes
"Housing, Communities & Local Government",MHCLG,15/06/2020,Current (non AEF) Grants to Local Authorities,Emergency Response,LEWES DC,,Large,,213090082,3700062366,,Grant payable by the Exchequer,BN7 1AB,"338,191.00",Yes
"Housing, Communities & Local Government",MHCLG,15/06/2020,Current (non AEF) Grants to Local Authorities,Emergency Response,LEWISHAM LONDON BOROUGH,,Large,,235653300,3700061910,,Grant payable by the Exchequer,SE6 4RU,"50,536.00",Yes
"Housing, Communities & Local Government",MHCLG,15/06/2020,Current (non AEF) Grants to Local Authorities,Emergency Response,LEWISHAM LONDON BOROUGH,,Large,,235653300,3700062340,,Grant payable by the Exchequer,SE6 4RU,"1,647,647.00",Yes
"Housing, Communities & Local Government",MHCLG,15/06/2020,Current (non AEF) Grants to Local Authorities,Emergency Response,LICHFIELD DC,,,,236780086,3700061952,,Grant payable by the Exchequer,WS13 6YX,"12,500.00",Yes
"Housing, Communities & Local Government",MHCLG,15/06/2020,Current (non AEF) Grants to Local Authorities,Emergency Response,LICHFIELD DC,,,,236780086,3700062160,,Grant payable by the Exchequer,WS13 6YX,"539,325.00",Yes
"Housing, Communities & Local Government",MHCLG,15/06/2020,Current (non AEF) Grants to Local Authorities,Emergency Response,LIVERPOOL CITY COUNCIL,,,,,3700062342,,Grant payable by the Exchequer,L2 2DH,"47,668.00",Yes
"Housing, Communities & Local Government",MHCLG,15/06/2020,Current (non AEF) Grants to Local Authorities,Emergency Response,LIVERPOOL CITY COUNCIL,,,,,3700062375,,Grant payable by the Exchequer,L2 2DH,"10,347,428.00",Yes
"Housing, Communities & Local Government",MHCLG,15/06/2020,Current (non AEF) Grants to Local Authorities,Emergency Response,LONDON BOROUGH OF HACKNEY,,,,225221597,3700061951,,Grant payable by the Exchequer,E8 4RU,"41,593.00",Yes
"Housing, Communities & Local Government",MHCLG,15/06/2020,Current (non AEF) Grants to Local Authorities,Emergency Response,LONDON BOROUGH OF HACKNEY,,,,225221597,3700062501,,Grant payable by the Exchequer,E8 4RU,"2,337,339.00",Yes
"Housing, Communities & Local Government",MHCLG,15/06/2020,Current (non AEF) Grants to Local Authorities,Emergency Response,LONDON BOROUGH OF LAMBETH,,,,228216479,3700061808,,Grant payable by the Exchequer,SW2 1RL,"4,273,618.00",Yes
"Housing, Communities & Local Government",MHCLG,15/06/2020,Current (non AEF) Grants to Local Authorities,Emergency Response,LONDON BOROUGH OF LAMBETH,,,,228216479,3700061845,,Grant payable by the Exchequer,SW2 1RL,"61,421.00",Yes
"Housing, Communities & Local Government",MHCLG,15/06/2020,Current (non AEF) Grants to Local Authorities,Emergency Response,LONDON BOROUGH OF NEWHAM,,Large,,228454344,3700061926,,Grant payable by the Exchequer,E16 2QU,"31,765.00",Yes
"Housing, Communities & Local Government",MHCLG,15/06/2020,Current (non AEF) Grants to Local Authorities,Emergency Response,LONDON BOROUGH OF NEWHAM,,Large,,228454344,3700062392,,Grant payable by the Exchequer,E16 2QU,"4,758,804.00",Yes
"Housing, Communities & Local Government",MHCLG,15/06/2020,Current (non AEF) Grants to Local Authorities,Emergency Response,LONDON BOROUGH OF REDBRIDGE,,,,211341417,3700061946,,Grant payable by the Exchequer,IG1 1NN,"1,514,262.00",Yes
"Housing, Communities & Local Government",MHCLG,15/06/2020,Current (non AEF) Grants to Local Authorities,Emergency Response,LONDON BOROUGH OF REDBRIDGE,,,,211341417,3700062058,,Grant payable by the Exchequer,IG1 1NN,"47,758.00",Yes
"Housing, Communities & Local Government",MHCLG,15/06/2020,Current (non AEF) Grants to Local Authorities,Emergency Response,LUTON BC,,,,365112155,3700061852,,Grant payable by the Exchequer,LU1 2BQ,"974,970.00",Yes
"Housing, Communities & Local Government",MHCLG,15/06/2020,Current (non AEF) Grants to Local Authorities,Emergency Response,LUTON BC,,,,365112155,3700061885,,Grant payable by the Exchequer,LU1 2BQ,"7,098.00",Yes
"Housing, Communities & Local Government",MHCLG,15/06/2020,Current (non AEF) Grants to Local Authorities,Emergency Response,MAIDSTONE BC,,,,293004214,3700062087,,Grant payable by the Exchequer,ME15 6JQ,"1,038,568.00",Yes
"Housing, Communities & Local Government",MHCLG,15/06/2020,Current (non AEF) Grants to Local Authorities,Emergency Response,MAIDSTONE BC,,,,293004214,3700062195,,Grant payable by the Exchequer,ME15 6JQ,"10,957.00",Yes
"Housing, Communities & Local Government",MHCLG,15/06/2020,Current (non AEF) Grants to Local Authorities,Emergency Response,MALDON DC,,,,424668663,3700061893,,Grant payable by the Exchequer,CM9 7DL,"221,691.00",Yes
"Housing, Communities & Local Government",MHCLG,15/06/2020,Current (non AEF) Grants to Local Authorities,Emergency Response,MALDON DC,,,,424668663,3700062072,,Grant payable by the Exchequer,CM9 7DL,"1,708.00",Yes
"Housing, Communities & Local Government",MHCLG,15/06/2020,Current (non AEF) Grants to Local Authorities,Emergency Response,MALVERN HILLS DC,,,,227470424,3700062073,,Grant payable by the Exchequer,WR14 3AF,"1,934.00",Yes
"Housing, Communities & Local Government",MHCLG,15/06/2020,Current (non AEF) Grants to Local Authorities,Emergency Response,MALVERN HILLS DC,,,,227470424,3700062274,,Grant payable by the Exchequer,WR14 3AF,"243,968.00",Yes
"Housing, Communities & Local Government",MHCLG,15/06/2020,Current (non AEF) Grants to Local Authorities,Emergency Response,MANCHESTER CITY CNCL,,,,211241393,3700062381,,Grant payable by the Exchequer,M60 2JR,"87,380.00",Yes
"Housing, Communities & Local Government",MHCLG,15/06/2020,Current (non AEF) Grants to Local Authorities,Emergency Response,MANCHESTER CITY CNCL,,,,211241393,3700062418,,Grant payable by the Exchequer,M60 2JR,"11,568,465.00",Yes
"Housing, Communities & Local Government",MHCLG,15/06/2020,Current (non AEF) Grants to Local Authorities,Emergency Response,MANSFIELD DC,,,,237922968,3700061916,,Grant payable by the Exchequer,NG19 7BH,"5,626.00",Yes
"Housing, Communities & Local Government",MHCLG,15/06/2020,Current (non AEF) Grants to Local Authorities,Emergency Response,MANSFIELD DC,,,,237922968,3700062473,,Grant payable by the Exchequer,NG19 7BH,"669,110.00",Yes
"Housing, Communities & Local Government",MHCLG,15/06/2020,Current (non AEF) Grants to Local Authorities,Emergency Response,MEDWAY COUNCIL,,,,210389746,3700062015,,Grant payable by the Exchequer,ME4 4TR,"5,940.00",Yes
"Housing, Communities & Local Government",MHCLG,15/06/2020,Current (non AEF) Grants to Local Authorities,Emergency Response,MEDWAY COUNCIL,,,,210389746,3700062332,,Grant payable by the Exchequer,ME4 4TR,"1,114,128.00",Yes
"Housing, Communities & Local Government",MHCLG,15/06/2020,Current (non AEF) Grants to Local Authorities,Emergency Response,MELTON BC,,,,346268340,3700061872,,Grant payable by the Exchequer,LE13 0UL,"255,819.00",Yes
"Housing, Communities & Local Government",MHCLG,15/06/2020,Current (non AEF) Grants to Local Authorities,Emergency Response,MELTON BC,,,,346268340,3700062405,,Grant payable by the Exchequer,LE13 0UL,"2,675.00",Yes
"Housing, Communities & Local Government",MHCLG,15/06/2020,Current (non AEF) Grants to Local Authorities,Emergency Response,MENDIP DISTRICT COUNCIL,,,,,3700061804,,Grant payable by the Exchequer,BA4 5BA,"712,115.00",Yes
"Housing, Communities & Local Government",MHCLG,15/06/2020,Current (non AEF) Grants to Local Authorities,Emergency Response,MENDIP DISTRICT COUNCIL,,,,,3700062234,,Grant payable by the Exchequer,BA4 5BA,"4,913.00",Yes
"Housing, Communities & Local Government",MHCLG,15/06/2020,Current (non AEF) Grants to Local Authorities,Emergency Response,MERTON LB,,,,,3700062163,,Grant payable by the Exchequer,SM4 5DX,"2,255,613.00",Yes
"Housing, Communities & Local Government",MHCLG,15/06/2020,Current (non AEF) Grants to Local Authorities,Emergency Response,MERTON LB,,,,,3700062220,,Grant payable by the Exchequer,SM4 5DX,"43,738.00",Yes
"Housing, Communities & Local Government",MHCLG,15/06/2020,Current (non AEF) Grants to Local Authorities,Emergency Response,MID DEVON DC,,,,213241137,3700061965,,Grant payable by the Exchequer,EX16 6PP,"239,124.00",Yes
"Housing, Communities & Local Government",MHCLG,15/06/2020,Current (non AEF) Grants to Local Authorities,Emergency Response,MID DEVON DC,,,,213241137,3700062064,,Grant payable by the Exchequer,EX16 6PP,"1,000.00",Yes
"Housing, Communities & Local Government",MHCLG,15/06/2020,Current (non AEF) Grants to Local Authorities,Emergency Response,MID SUFFOLK DC,,,,219028933,3700062256,,Grant payable by the Exchequer,IP6 8DL,"168,771.00",Yes
"Housing, Communities & Local Government",MHCLG,15/06/2020,Current (non AEF) Grants to Local Authorities,Emergency Response,MID SUFFOLK DC,,,,219028933,3700062431,,Grant payable by the Exchequer,IP6 8DL,"3,817.00",Yes
"Housing, Communities & Local Government",MHCLG,15/06/2020,Current (non AEF) Grants to Local Authorities,Emergency Response,MID SUSSEX DC,,,,236675989,3700062063,,Grant payable by the Exchequer,RH16 1SS,"174,410.00",Yes
"Housing, Communities & Local Government",MHCLG,15/06/2020,Current (non AEF) Grants to Local Authorities,Emergency Response,MID SUSSEX DC,,,,236675989,3700062502,,Grant payable by the Exchequer,RH16 1SS,"15,518.00",Yes
"Housing, Communities & Local Government",MHCLG,15/06/2020,Current (non AEF) Grants to Local Authorities,Emergency Response,MIDDLESBROUGH BC,,,,,3700062104,,Grant payable by the Exchequer,TS1 9GA,"848,038.00",Yes
"Housing, Communities & Local Government",MHCLG,15/06/2020,Current (non AEF) Grants to Local Authorities,Emergency Response,MIDDLESBROUGH BC,,,,,3700062186,,Grant payable by the Exchequer,TS1 9GA,"6,666.00",Yes
"Housing, Communities & Local Government",MHCLG,15/06/2020,Current (non AEF) Grants to Local Authorities,Emergency Response,MILTON KEYNES BC,,,,506884659,3700062182,,Grant payable by the Exchequer,MK9 3EJ,"3,208,205.00",Yes
"Housing, Communities & Local Government",MHCLG,15/06/2020,Current (non AEF) Grants to Local Authorities,Emergency Response,MILTON KEYNES BC,,,,506884659,3700062300,,Grant payable by the Exchequer,MK9 3EJ,"24,999.00",Yes
"Housing, Communities & Local Government",MHCLG,15/06/2020,Current (non AEF) Grants to Local Authorities,Emergency Response,MOLE VALLEY DC,,,,225385772,3700062235,,Grant payable by the Exchequer,RH4 1SJ,"482,252.00",Yes
"Housing, Communities & Local Government",MHCLG,15/06/2020,Current (non AEF) Grants to Local Authorities,Emergency Response,MOLE VALLEY DC,,,,225385772,3700062344,,Grant payable by the Exchequer,RH4 1SJ,"8,628.00",Yes
"Housing, Communities & Local Government",MHCLG,15/06/2020,Current (non AEF) Grants to Local Authorities,Emergency Response,NEW FOREST DC,,,,,3700061856,,Grant payable by the Exchequer,SO41 9ZG,"7,806.00",Yes
"Housing, Communities & Local Government",MHCLG,15/06/2020,Current (non AEF) Grants to Local Authorities,Emergency Response,NEW FOREST DC,,,,,3700062482,,Grant payable by the Exchequer,SO41 9ZG,"989,308.00",Yes
"Housing, Communities & Local Government",MHCLG,15/06/2020,Current (non AEF) Grants to Local Authorities,Emergency Response,NEWARK & SHERWOOD DC,,,,236186755,3700062074,,Grant payable by the Exchequer,NG23 5QX,"8,166.00",Yes
"Housing, Communities & Local Government",MHCLG,15/06/2020,Current (non AEF) Grants to Local Authorities,Emergency Response,NEWARK & SHERWOOD DC,,,,236186755,3700062302,,Grant payable by the Exchequer,NG23 5QX,"613,177.00",Yes
"Housing, Communities & Local Government",MHCLG,15/06/2020,Current (non AEF) Grants to Local Authorities,Emergency Response,NEWCASTLE CITY COUNCIL,,,,239154040,3700062191,,Grant payable by the Exchequer,NE99 2BN,"3,409,906.00",Yes
"Housing, Communities & Local Government",MHCLG,15/06/2020,Current (non AEF) Grants to Local Authorities,Emergency Response,NEWCASTLE CITY COUNCIL,,,,239154040,3700062261,,Grant payable by the Exchequer,NE99 2BN,"13,860.00",Yes
"Housing, Communities & Local Government",MHCLG,15/06/2020,Current (non AEF) Grants to Local Authorities,Emergency Response,NEWCASTLE UNDER LYME BC,,,,229894373,3700061826,,Grant payable by the Exchequer,ST5 2AG,"144,306.00",Yes
"Housing, Communities & Local Government",MHCLG,15/06/2020,Current (non AEF) Grants to Local Authorities,Emergency Response,NEWCASTLE UNDER LYME BC,,,,229894373,3700061959,,Grant payable by the Exchequer,ST5 2AG,"1,782.00",Yes
"Housing, Communities & Local Government",MHCLG,15/06/2020,Current (non AEF) Grants to Local Authorities,Emergency Response,NORTH DEVON DC,,,,,3700062014,,Grant payable by the Exchequer,EX31 1EA,"2,923.00",Yes
"Housing, Communities & Local Government",MHCLG,15/06/2020,Current (non AEF) Grants to Local Authorities,Emergency Response,NORTH DEVON DC,,,,,3700062157,,Grant payable by the Exchequer,EX31 1EA,"794,789.00",Yes
"Housing, Communities & Local Government",MHCLG,15/06/2020,Current (non AEF) Grants to Local Authorities,Emergency Response,NORTH EAST DERBYSHIRE DC,,,,238879308,3700062173,,Grant payable by the Exchequer,S42 6NG,"191,292.00",Yes
"Housing, Communities & Local Government",MHCLG,15/06/2020,Current (non AEF) Grants to Local Authorities,Emergency Response,NORTH EAST DERBYSHIRE DC,,,,238879308,3700062507,,Grant payable by the Exchequer,S42 6NG,"2,206.00",Yes
"Housing, Communities & Local Government",MHCLG,15/06/2020,Current (non AEF) Grants to Local Authorities,Emergency Response,NORTH EAST LINCOLN COUNCIL,,Public Bodies,,423962570,3700062013,,Grant payable by the Exchequer,DN31 1HU,"832,214.00",Yes
"Housing, Communities & Local Government",MHCLG,15/06/2020,Current (non AEF) Grants to Local Authorities,Emergency Response,NORTH EAST LINCOLN COUNCIL,,Public Bodies,,423962570,3700062102,,Grant payable by the Exchequer,DN31 1HU,"3,229.00",Yes
"Housing, Communities & Local Government",MHCLG,15/06/2020,Current (non AEF) Grants to Local Authorities,Emergency Response,NORTH HERTS DC,,,,233593917,3700062139,,Grant payable by the Exchequer,SG6 3HN,"684,524.00",Yes
"Housing, Communities & Local Government",MHCLG,15/06/2020,Current (non AEF) Grants to Local Authorities,Emergency Response,NORTH HERTS DC,,,,233593917,3700062209,,Grant payable by the Exchequer,SG6 3HN,"16,945.00",Yes
"Housing, Communities & Local Government",MHCLG,15/06/2020,Current (non AEF) Grants to Local Authorities,Emergency Response,NORTH KESTEVEN DC,,,,,3700062042,,Grant payable by the Exchequer,NG34 7EF,"7,090.00",Yes
"Housing, Communities & Local Government",MHCLG,15/06/2020,Current (non AEF) Grants to Local Authorities,Emergency Response,NORTH KESTEVEN DC,,,,,3700062258,,Grant payable by the Exchequer,NG34 7EF,"300,493.00",Yes
